Organisation Code,Organisation Label,Effective Date,Organisational Unit,Service Division Label,Category Internal Name,Purpose,Detailed Expenditure Code,Payment Date,Transaction Number,Irrecoverable VAT Amount,Amount,Capital Or Revenue,Beneficiary Name,Procurement Card
Http://opendatacommunities.org/id/metropolitan-district-council/leeds,Leeds City Council,30/09/2023,Adults and Health,Services For Older People Under 65 P/Dis,Agency Payments,Sheltered Accommodation,569,13/09/2023,2309-00001,0.00,5400.00,R,A & V TRANSITIONAL HOMES,No
Http://opendatacommunities.org/id/metropolitan-district-council/leeds,Leeds City Council,30/09/2023,Strategic Landlord,HRA Housing Leeds,Capital,CONSTRUCTION,3,21/09/2023,2309-00002,0.00,36685.21,C,A Connolly Limited,No
Http://opendatacommunities.org/id/metropolitan-district-council/leeds,Leeds City Council,30/09/2023,Strategy and Resources,Leeds Building Services,Supplies and Services,Other Hired And Contracted Services,265,06/09/2023,2309-00003,0.00,7375.10,R,A Coole Electrical Ltd,No
Http://opendatacommunities.org/id/metropolitan-district-council/leeds,Leeds City Council,30/09/2023,Strategy and Resources,Leeds Building Services,Supplies and Services,Other Hired And Contracted Services,265,08/09/2023,2309-00004,0.00,175.00,R,A Coole Electrical Ltd,No
Http://opendatacommunities.org/id/metropolitan-district-council/leeds,Leeds City Council,30/09/2023,Strategy and Resources,Leeds Building Services,Supplies and Services,Other Hired And Contracted Services,265,08/09/2023,2309-00005,0.00,13270.19,R,A Coole Electrical Ltd,No
Http://opendatacommunities.org/id/metropolitan-district-council/leeds,Leeds City Council,30/09/2023,Strategy and Resources,Leeds Building Services,Supplies and Services,Other Hired And Contracted Services,265,20/09/2023,2309-00006,0.00,120.00,R,A Coole Electrical Ltd,No
Http://opendatacommunities.org/id/metropolitan-district-council/leeds,Leeds City Council,30/09/2023,Strategy and Resources,Leeds Building Services,Supplies and Services,Other Hired And Contracted Services,265,20/09/2023,2309-00007,0.00,5547.79,R,A Coole Electrical Ltd,No
Http://opendatacommunities.org/id/metropolitan-district-council/leeds,Leeds City Council,30/09/2023,Strategy and Resources,Leeds Building Services,Supplies and Services,Other Hired And Contracted Services,265,29/09/2023,2309-00008,0.00,9650.34,R,A Coole Electrical Ltd,No
Http://opendatacommunities.org/id/metropolitan-district-council/leeds,Leeds City Council,30/09/2023,Strategy and Resources,Leeds Building Services,Supplies and Services,Other Hired And Contracted Services,265,29/09/2023,2309-00009,0.00,11823.00,R,A Coole Electrical Ltd,No
Http://opendatacommunities.org/id/metropolitan-district-council/leeds,Leeds City Council,30/09/2023,Communities Housing and Environment,Customer Access,Supplies and Services,Bought In Professional Services,277,06/09/2023,2309-00010,0.00,106.50,R,REDACTED COMMERCIAL CONFIDENTIALITY,No
Http://opendatacommunities.org/id/metropolitan-district-council/leeds,Leeds City Council,30/09/2023,Communities Housing and Environment,Customer Access,Supplies and Services,Bought In Professional Services,277,06/09/2023,2309-00011,0.00,111.00,R,REDACTED COMMERCIAL CONFIDENTIALITY,No
Http://opendatacommunities.org/id/metropolitan-district-council/leeds,Leeds City Council,30/09/2023,Communities Housing and Environment,Customer Access,Supplies and Services,Bought In Professional Services,277,06/09/2023,2309-00012,0.00,70.50,R,REDACTED COMMERCIAL CONFIDENTIALITY,No
Http://opendatacommunities.org/id/metropolitan-district-council/leeds,Leeds City Council,30/09/2023,Communities Housing and Environment,Customer Access,Supplies and Services,Bought In Professional Services,277,06/09/2023,2309-00013,0.00,106.50,R,REDACTED COMMERCIAL CONFIDENTIALITY,No
Http://opendatacommunities.org/id/metropolitan-district-council/leeds,Leeds City Council,30/09/2023,Communities Housing and Environment,Customer Access,Supplies and Services,Bought In Professional Services,277,06/09/2023,2309-00014,0.00,97.50,R,REDACTED COMMERCIAL CONFIDENTIALITY,No
Http://opendatacommunities.org/id/metropolitan-district-council/leeds,Leeds City Council,30/09/2023,Communities Housing and Environment,Customer Access,Supplies and Services,Bought In Professional Services,277,06/09/2023,2309-00015,0.00,9.00,R,REDACTED COMMERCIAL CONFIDENTIALITY,No
Http://opendatacommunities.org/id/metropolitan-district-council/leeds,Leeds City Council,30/09/2023,Communities Housing and Environment,Customer Access,Supplies and Services,Bought In Professional Services,277,13/09/2023,2309-00016,0.00,18.00,R,REDACTED COMMERCIAL CONFIDENTIALITY,No
Http://opendatacommunities.org/id/metropolitan-district-council/leeds,Leeds City Council,30/09/2023,Communities Housing and Environment,Customer Access,Supplies and Services,Bought In Professional Services,277,13/09/2023,2309-00017,0.00,84.00,R,REDACTED COMMERCIAL CONFIDENTIALITY,No
Http://opendatacommunities.org/id/metropolitan-district-council/leeds,Leeds City Council,30/09/2023,Communities Housing and Environment,Customer Access,Supplies and Services,Bought In Professional Services,277,13/09/2023,2309-00018,0.00,18.00,R,REDACTED COMMERCIAL CONFIDENTIALITY,No
Http://opendatacommunities.org/id/metropolitan-district-council/leeds,Leeds City Council,30/09/2023,Communities Housing and Environment,Customer Access,Supplies and Services,Bought In Professional Services,277,13/09/2023,2309-00019,0.00,18.00,R,REDACTED COMMERCIAL CONFIDENTIALITY,No
Http://opendatacommunities.org/id/metropolitan-district-council/leeds,Leeds City Council,30/09/2023,Communities Housing and Environment,Customer Access,Supplies and Services,Bought In Professional Services,277,13/09/2023,2309-00020,0.00,30.00,R,REDACTED COMMERCIAL CONFIDENTIALITY,No
Http://opendatacommunities.org/id/metropolitan-district-council/leeds,Leeds City Council,30/09/2023,Communities Housing and Environment,Customer Access,Supplies and Services,Bought In Professional Services,277,13/09/2023,2309-00021,0.00,18.00,R,REDACTED COMMERCIAL CONFIDENTIALITY,No
Http://opendatacommunities.org/id/metropolitan-district-council/leeds,Leeds City Council,30/09/2023,Communities Housing and Environment,Customer Access,Supplies and Services,Bought In Professional Services,277,13/09/2023,2309-00022,0.00,9.00,R,REDACTED COMMERCIAL CONFIDENTIALITY,No
Http://opendatacommunities.org/id/metropolitan-district-council/leeds,Leeds City Council,30/09/2023,Communities Housing and Environment,Customer Access,Supplies and Services,Bought In Professional Services,277,13/09/2023,2309-00023,0.00,36.00,R,REDACTED COMMERCIAL CONFIDENTIALITY,No
Http://opendatacommunities.org/id/metropolitan-district-council/leeds,Leeds City Council,30/09/2023,Communities Housing and Environment,Customer Access,Supplies and Services,Bought In Professional Services,277,20/09/2023,2309-00024,0.00,18.00,R,REDACTED COMMERCIAL CONFIDENTIALITY,No
Http://opendatacommunities.org/id/metropolitan-district-council/leeds,Leeds City Council,30/09/2023,Communities Housing and Environment,Customer Access,Supplies and Services,Bought In Professional Services,277,20/09/2023,2309-00025,0.00,18.00,R,REDACTED COMMERCIAL CONFIDENTIALITY,No
Http://opendatacommunities.org/id/metropolitan-district-council/leeds,Leeds City Council,30/09/2023,Communities Housing and Environment,Customer Access,Supplies and Services,Bought In Professional Services,277,20/09/2023,2309-00026,0.00,114.00,R,REDACTED COMMERCIAL CONFIDENTIALITY,No
Http://opendatacommunities.org/id/metropolitan-district-council/leeds,Leeds City Council,30/09/2023,Communities Housing and Environment,Customer Access,Supplies and Services,Bought In Professional Services,277,20/09/2023,2309-00027,0.00,36.00,R,REDACTED COMMERCIAL CONFIDENTIALITY,No
Http://opendatacommunities.org/id/metropolitan-district-council/leeds,Leeds City Council,30/09/2023,Communities Housing and Environment,Customer Access,Supplies and Services,Bought In Professional Services,277,20/09/2023,2309-00028,0.00,18.00,R,REDACTED COMMERCIAL CONFIDENTIALITY,No
Http://opendatacommunities.org/id/metropolitan-district-council/leeds,Leeds City Council,30/09/2023,Communities Housing and Environment,Customer Access,Supplies and Services,Bought In Professional Services,277,27/09/2023,2309-00029,0.00,70.50,R,REDACTED COMMERCIAL CONFIDENTIALITY,No
Http://opendatacommunities.org/id/metropolitan-district-council/leeds,Leeds City Council,30/09/2023,Communities Housing and Environment,Customer Access,Supplies and Services,Bought In Professional Services,277,27/09/2023,2309-00030,0.00,18.00,R,REDACTED COMMERCIAL CONFIDENTIALITY,No
Http://opendatacommunities.org/id/metropolitan-district-council/leeds,Leeds City Council,30/09/2023,Communities Housing and Environment,Customer Access,Supplies and Services,Bought In Professional Services,277,27/09/2023,2309-00031,0.00,18.00,R,REDACTED COMMERCIAL CONFIDENTIALITY,No
Http://opendatacommunities.org/id/metropolitan-district-council/leeds,Leeds City Council,30/09/2023,Communities Housing and Environment,Customer Access,Supplies and Services,Bought In Professional Services,277,27/09/2023,2309-00032,0.00,18.00,R,REDACTED COMMERCIAL CONFIDENTIALITY,No
Http://opendatacommunities.org/id/metropolitan-district-council/leeds,Leeds City Council,30/09/2023,Children and Families,Social Care,Agency Payments,Services Rendered By Voluntary Sector,505,01/09/2023,2309-00033,0.00,5292.00,R,REDACTED PERSONAL DATA,No
Http://opendatacommunities.org/id/metropolitan-district-council/leeds,Leeds City Council,30/09/2023,Children and Families,Social Care,Agency Payments,Services Rendered By Voluntary Sector,505,06/09/2023,2309-00034,0.00,4740.00,R,REDACTED PERSONAL DATA,No
Http://opendatacommunities.org/id/metropolitan-district-council/leeds,Leeds City Council,30/09/2023,City Development,Libraries Arts & Heritage,Supplies and Services,Bought In Professional Services,277,13/09/2023,2309-00035,0.00,1955.00,R,A F Miller,No
Http://opendatacommunities.org/id/metropolitan-district-council/leeds,Leeds City Council,30/09/2023,Communities Housing and Environment,Strategic Housing Partnership & Support,Supplies and Services,Other Hired And Contracted Services,265,18/09/2023,2309-00036,0.00,807.71,R,REDACTED PERSONAL DATA,No
Http://opendatacommunities.org/id/metropolitan-district-council/leeds,Leeds City Council,30/09/2023,Strategic Landlord,HRA Housing Leeds,Capital,OTHER COSTS,7,07/09/2023,2309-00037,0.00,80.00,C,REDACTED PERSONAL DATA,No
Http://opendatacommunities.org/id/metropolitan-district-council/leeds,Leeds City Council,30/09/2023,Children and Families,Social Care,Agency Payments,Services Rendered By Other Organisations,511,01/09/2023,2309-00038,0.00,529.20,R,REDACTED PERSONAL DATA,No
Http://opendatacommunities.org/id/metropolitan-district-council/leeds,Leeds City Council,30/09/2023,Children and Families,Social Care,Agency Payments,Services Rendered By Other Organisations,511,06/09/2023,2309-00039,0.00,816.90,R,REDACTED PERSONAL DATA,No
Http://opendatacommunities.org/id/metropolitan-district-council/leeds,Leeds City Council,30/09/2023,Children and Families,Social Care,Agency Payments,Services Rendered By Other Organisations,511,01/09/2023,2309-00040,0.00,220.50,R,REDACTED PERSONAL DATA,No
Http://opendatacommunities.org/id/metropolitan-district-council/leeds,Leeds City Council,30/09/2023,Strategic Landlord,HRA Housing Leeds,Capital,OTHER COSTS,7,12/09/2023,2309-00041,0.00,100.00,C,REDACTED PERSONAL DATA,No
Http://opendatacommunities.org/id/metropolitan-district-council/leeds,Leeds City Council,30/09/2023,Adults and Health,Other Generic Services,Agency Payments,Fees To Carers,563,01/09/2023,2309-00042,0.00,140.73,R,REDACTED PERSONAL DATA,No
Http://opendatacommunities.org/id/metropolitan-district-council/leeds,Leeds City Council,30/09/2023,Adults and Health,Other Generic Services,Agency Payments,Fees To Carers,563,08/09/2023,2309-00043,0.00,187.64,R,REDACTED PERSONAL DATA,No
Http://opendatacommunities.org/id/metropolitan-district-council/leeds,Leeds City Council,30/09/2023,Adults and Health,Other Generic Services,Agency Payments,Fees To Carers,563,15/09/2023,2309-00044,0.00,678.00,R,REDACTED PERSONAL DATA,No
Http://opendatacommunities.org/id/metropolitan-district-council/leeds,Leeds City Council,30/09/2023,Adults and Health,Other Generic Services,Agency Payments,Fees To Carers,563,15/09/2023,2309-00045,0.00,63.00,R,REDACTED PERSONAL DATA,No
Http://opendatacommunities.org/id/metropolitan-district-council/leeds,Leeds City Council,30/09/2023,Strategy and Resources,Leeds Building Services,Supplies and Services,Operational Materials,205,29/09/2023,2309-00046,0.00,678.00,R,A J H  Pump Supply & Repair Ltd,No
Http://opendatacommunities.org/id/metropolitan-district-council/leeds,Leeds City Council,30/09/2023,Communities Housing and Environment,Climate Energy & Greenspaces,Supplies and Services,Resaleable Materials,204,04/09/2023,2309-00047,0.00,855.00,R,A J PROMOTIONS,No
Http://opendatacommunities.org/id/metropolitan-district-council/leeds,Leeds City Council,30/09/2023,City Development,Libraries Arts & Heritage,Supplies and Services,Resaleable Materials,204,06/09/2023,2309-00048,0.00,1600.00,R,A J PROMOTIONS,No
Http://opendatacommunities.org/id/metropolitan-district-council/leeds,Leeds City Council,30/09/2023,Children and Families,Social Care,Agency Payments,Services Rendered By Other Organisations,511,01/09/2023,2309-00049,0.00,2646.00,R,REDACTED PERSONAL DATA,No
Http://opendatacommunities.org/id/metropolitan-district-council/leeds,Leeds City Council,30/09/2023,City Development,Employment & Skills,Supplies and Services,Other Hired And Contracted Services,265,01/09/2023,2309-00050,0.00,546.00,R,A Little Something Extra Ltd,No
Http://opendatacommunities.org/id/metropolitan-district-council/leeds,Leeds City Council,30/09/2023,Children and Families,Social Care,Employees,Agency Staff,8,01/09/2023,2309-00051,0.00,-78.00,R,A Little Something Extra Ltd,No
Http://opendatacommunities.org/id/metropolitan-district-council/leeds,Leeds City Council,30/09/2023,Children and Families,Social Care,Agency Payments,Services Rendered By Other Organisations,511,01/09/2023,2309-00052,0.00,793.80,R,REDACTED PERSONAL DATA,No
Http://opendatacommunities.org/id/metropolitan-district-council/leeds,Leeds City Council,30/09/2023,Children and Families,Social Care,Agency Payments,Services Rendered By Other Organisations,511,06/09/2023,2309-00053,0.00,1225.35,R,REDACTED PERSONAL DATA,No
Http://opendatacommunities.org/id/metropolitan-district-council/leeds,Leeds City Council,30/09/2023,Communities Housing and Environment,Customer Access,Supplies and Services,Bought In Professional Services,277,06/09/2023,2309-00054,0.00,108.00,R,A NAMAKI,No
Http://opendatacommunities.org/id/metropolitan-district-council/leeds,Leeds City Council,30/09/2023,Communities Housing and Environment,Customer Access,Supplies and Services,Bought In Professional Services,277,06/09/2023,2309-00055,0.00,108.00,R,A NAMAKI,No
Http://opendatacommunities.org/id/metropolitan-district-council/leeds,Leeds City Council,30/09/2023,Communities Housing and Environment,Customer Access,Supplies and Services,Bought In Professional Services,277,06/09/2023,2309-00056,0.00,108.00,R,A NAMAKI,No
Http://opendatacommunities.org/id/metropolitan-district-council/leeds,Leeds City Council,30/09/2023,Communities Housing and Environment,Customer Access,Supplies and Services,Bought In Professional Services,277,13/09/2023,2309-00057,0.00,54.00,R,A NAMAKI,No
Http://opendatacommunities.org/id/metropolitan-district-council/leeds,Leeds City Council,30/09/2023,Communities Housing and Environment,Customer Access,Supplies and Services,Bought In Professional Services,277,13/09/2023,2309-00058,0.00,18.00,R,A NAMAKI,No
Http://opendatacommunities.org/id/metropolitan-district-council/leeds,Leeds City Council,30/09/2023,Communities Housing and Environment,Customer Access,Supplies and Services,Bought In Professional Services,277,13/09/2023,2309-00059,0.00,18.00,R,A NAMAKI,No
Http://opendatacommunities.org/id/metropolitan-district-council/leeds,Leeds City Council,30/09/2023,Communities Housing and Environment,Customer Access,Supplies and Services,Bought In Professional Services,277,13/09/2023,2309-00060,0.00,18.00,R,A NAMAKI,No
Http://opendatacommunities.org/id/metropolitan-district-council/leeds,Leeds City Council,30/09/2023,Communities Housing and Environment,Customer Access,Supplies and Services,Bought In Professional Services,277,13/09/2023,2309-00061,0.00,27.00,R,A NAMAKI,No
Http://opendatacommunities.org/id/metropolitan-district-council/leeds,Leeds City Council,30/09/2023,Communities Housing and Environment,Customer Access,Supplies and Services,Bought In Professional Services,277,20/09/2023,2309-00062,0.00,18.00,R,A NAMAKI,No
Http://opendatacommunities.org/id/metropolitan-district-council/leeds,Leeds City Council,30/09/2023,Communities Housing and Environment,Customer Access,Supplies and Services,Bought In Professional Services,277,27/09/2023,2309-00063,0.00,54.00,R,A NAMAKI,No
Http://opendatacommunities.org/id/metropolitan-district-council/leeds,Leeds City Council,30/09/2023,Communities Housing and Environment,Customer Access,Supplies and Services,Bought In Professional Services,277,27/09/2023,2309-00064,0.00,18.00,R,A NAMAKI,No
Http://opendatacommunities.org/id/metropolitan-district-council/leeds,Leeds City Council,30/09/2023,Communities Housing and Environment,Customer Access,Supplies and Services,Bought In Professional Services,277,27/09/2023,2309-00065,0.00,36.00,R,A NAMAKI,No
Http://opendatacommunities.org/id/metropolitan-district-council/leeds,Leeds City Council,30/09/2023,Communities Housing and Environment,Customer Access,Supplies and Services,Bought In Professional Services,277,27/09/2023,2309-00066,0.00,36.00,R,A NAMAKI,No
Http://opendatacommunities.org/id/metropolitan-district-council/leeds,Leeds City Council,30/09/2023,Children and Families,Social Care,Agency Payments,Services Rendered By Other Organisations,511,01/09/2023,2309-00067,0.00,264.60,R,REDACTED PERSONAL DATA,No
Http://opendatacommunities.org/id/metropolitan-district-council/leeds,Leeds City Council,30/09/2023,Children and Families,Social Care,Agency Payments,Services Rendered By Other Organisations,511,01/09/2023,2309-00068,0.00,264.60,R,REDACTED PERSONAL DATA,No
Http://opendatacommunities.org/id/metropolitan-district-council/leeds,Leeds City Council,30/09/2023,Children and Families,Social Care,Agency Payments,Services Rendered By Other Organisations,511,06/09/2023,2309-00069,0.00,58.35,R,REDACTED PERSONAL DATA,No
Http://opendatacommunities.org/id/metropolitan-district-council/leeds,Leeds City Council,30/09/2023,Children and Families,Social Care,Agency Payments,Services Rendered By Other Organisations,511,08/09/2023,2309-00070,0.00,758.55,R,REDACTED PERSONAL DATA,No
Http://opendatacommunities.org/id/metropolitan-district-council/leeds,Leeds City Council,30/09/2023,Strategy and Resources,Shared Services,Supplies and Services,Other Hired And Contracted Services,265,01/09/2023,2309-00071,0.00,50.00,R,A Star Couriers Ltd,No
Http://opendatacommunities.org/id/metropolitan-district-council/leeds,Leeds City Council,30/09/2023,Communities Housing and Environment,Waste Management,Employees,Training & Development,70,07/09/2023,2309-00072,0.00,154.40,R,A T Nerac Ltd,No
Http://opendatacommunities.org/id/metropolitan-district-council/leeds,Leeds City Council,30/09/2023,Communities Housing and Environment,Waste Management,Employees,Training & Development,70,07/09/2023,2309-00073,0.00,346.40,R,A T Nerac Ltd,No
Http://opendatacommunities.org/id/metropolitan-district-council/leeds,Leeds City Council,30/09/2023,Communities Housing and Environment,Waste Management,Employees,Training & Development,70,20/09/2023,2309-00074,0.00,282.40,R,A T Nerac Ltd,No
Http://opendatacommunities.org/id/metropolitan-district-council/leeds,Leeds City Council as Accountable Body ,30/09/2023,Social Services Pooled Budgets,Jcs For People With Learning Disabilitie,Agency Payments,Residential,580,26/09/2023,2309-00075,0.00,653.68,R,REDACTED PERSONAL DATA,No
Http://opendatacommunities.org/id/metropolitan-district-council/leeds,Leeds City Council,30/09/2023,Children and Families,Social Care,Agency Payments,Services Rendered By Other Organisations,511,01/09/2023,2309-00076,0.00,529.20,R,REDACTED PERSONAL DATA,No
Http://opendatacommunities.org/id/metropolitan-district-council/leeds,Leeds City Council,30/09/2023,Children and Families,Social Care,Agency Payments,Services Rendered By Other Organisations,511,01/09/2023,2309-00077,0.00,264.60,R,REDACTED PERSONAL DATA,No
Http://opendatacommunities.org/id/metropolitan-district-council/leeds,Leeds City Council,30/09/2023,Strategy and Resources,Leeds Building Services,Supplies and Services,Operational Materials,205,08/09/2023,2309-00078,0.00,99.50,R,A1 STAIR LIFT SERVICES,No
Http://opendatacommunities.org/id/metropolitan-district-council/leeds,Leeds City Council,30/09/2023,Strategy and Resources,Leeds Building Services,Supplies and Services,Operational Materials,205,08/09/2023,2309-00079,0.00,235.00,R,A1 STAIR LIFT SERVICES,No
Http://opendatacommunities.org/id/metropolitan-district-council/leeds,Leeds City Council,30/09/2023,Strategy and Resources,Leeds Building Services,Supplies and Services,Operational Materials,205,08/09/2023,2309-00080,0.00,275.00,R,A1 STAIR LIFT SERVICES,No
Http://opendatacommunities.org/id/metropolitan-district-council/leeds,Leeds City Council,30/09/2023,Strategy and Resources,Leeds Building Services,Supplies and Services,Operational Materials,205,08/09/2023,2309-00081,0.00,278.00,R,A1 STAIR LIFT SERVICES,No
Http://opendatacommunities.org/id/metropolitan-district-council/leeds,Leeds City Council,30/09/2023,Strategy and Resources,Leeds Building Services,Supplies and Services,Operational Materials,205,14/09/2023,2309-00082,0.00,238.30,R,A1 STAIR LIFT SERVICES,No
Http://opendatacommunities.org/id/metropolitan-district-council/leeds,Leeds City Council,30/09/2023,Strategy and Resources,Leeds Building Services,Supplies and Services,Operational Materials,205,15/09/2023,2309-00083,0.00,303.90,R,A1 STAIR LIFT SERVICES,No
Http://opendatacommunities.org/id/metropolitan-district-council/leeds,Leeds City Council,30/09/2023,Strategy and Resources,Leeds Building Services,Supplies and Services,Operational Materials,205,21/09/2023,2309-00084,0.00,325.00,R,A1 STAIR LIFT SERVICES,No
Http://opendatacommunities.org/id/metropolitan-district-council/leeds,Leeds City Council,30/09/2023,City Development,Recreation Total,Supplies and Services,Operational Furniture And Equipment,203,20/09/2023,2309-00085,0.00,35.84,R,Aal Ltd,Yes
Http://opendatacommunities.org/id/metropolitan-district-council/leeds,Leeds City Council,30/09/2023,City Development,Employment & Skills,Supplies and Services,College Contracts,276,14/09/2023,2309-00086,0.00,6760.00,R,Aalfy Ltd,No
Http://opendatacommunities.org/id/metropolitan-district-council/leeds,Leeds City Council,30/09/2023,Children and Families,Social Care,Internal Recharges,Legal Disbursements,411,07/09/2023,2309-00087,0.00,495.00,R,Aaqib Javed,No
Http://opendatacommunities.org/id/metropolitan-district-council/leeds,Leeds City Council,30/09/2023,Children and Families,Social Care,Internal Recharges,Legal Disbursements,411,29/09/2023,2309-00088,0.00,375.00,R,Aaqib Javed,No
Http://opendatacommunities.org/id/metropolitan-district-council/leeds,Leeds City Council,30/09/2023,Adults and Health,Services For Older People - 65 And Over,Agency Payments,Residential Care Dementia,571,13/09/2023,2309-00089,0.00,2469.52,R,Aaron Court Care Home,No
Http://opendatacommunities.org/id/metropolitan-district-council/leeds,Leeds City Council as Accountable Body ,30/09/2023,Social Services Pooled Budgets,Leeds Community Equip Store Pooled Budgt,Supplies and Services,Other Equipment,203,08/09/2023,2309-00090,0.00,1388.00,R,AAT (GB) LTD,No
Http://opendatacommunities.org/id/metropolitan-district-council/leeds,Leeds City Council as Accountable Body ,30/09/2023,Social Services Pooled Budgets,Leeds Community Equip Store Pooled Budgt,Supplies and Services,Other Equipment,203,08/09/2023,2309-00091,0.00,1168.00,R,AAT (GB) LTD,No
Http://opendatacommunities.org/id/metropolitan-district-council/leeds,Leeds City Council as Accountable Body ,30/09/2023,Social Services Pooled Budgets,Leeds Community Equip Store Pooled Budgt,Supplies and Services,Other Equipment,203,29/09/2023,2309-00092,0.00,2602.00,R,AAT (GB) LTD,No
Http://opendatacommunities.org/id/metropolitan-district-council/leeds,Leeds City Council,30/09/2023,Communities Housing and Environment,Customer Access,Supplies and Services,Bought In Professional Services,277,06/09/2023,2309-00093,0.00,18.00,R,Abadit Kiros,No
Http://opendatacommunities.org/id/metropolitan-district-council/leeds,Leeds City Council,30/09/2023,Communities Housing and Environment,Customer Access,Supplies and Services,Bought In Professional Services,277,06/09/2023,2309-00094,0.00,27.00,R,Abadit Kiros,No
Http://opendatacommunities.org/id/metropolitan-district-council/leeds,Leeds City Council,30/09/2023,Communities Housing and Environment,Customer Access,Supplies and Services,Bought In Professional Services,277,06/09/2023,2309-00095,0.00,27.00,R,Abadit Kiros,No
Http://opendatacommunities.org/id/metropolitan-district-council/leeds,Leeds City Council,30/09/2023,Communities Housing and Environment,Customer Access,Supplies and Services,Bought In Professional Services,277,06/09/2023,2309-00096,0.00,27.00,R,Abadit Kiros,No
Http://opendatacommunities.org/id/metropolitan-district-council/leeds,Leeds City Council,30/09/2023,Communities Housing and Environment,Customer Access,Supplies and Services,Bought In Professional Services,277,13/09/2023,2309-00097,0.00,18.00,R,Abadit Kiros,No
Http://opendatacommunities.org/id/metropolitan-district-council/leeds,Leeds City Council,30/09/2023,Communities Housing and Environment,Customer Access,Supplies and Services,Bought In Professional Services,277,13/09/2023,2309-00098,0.00,18.00,R,Abadit Kiros,No
Http://opendatacommunities.org/id/metropolitan-district-council/leeds,Leeds City Council,30/09/2023,Communities Housing and Environment,Customer Access,Supplies and Services,Bought In Professional Services,277,13/09/2023,2309-00099,0.00,18.00,R,Abadit Kiros,No
Http://opendatacommunities.org/id/metropolitan-district-council/leeds,Leeds City Council,30/09/2023,Communities Housing and Environment,Customer Access,Supplies and Services,Bought In Professional Services,277,20/09/2023,2309-00100,0.00,13.50,R,Abadit Kiros,No
Http://opendatacommunities.org/id/metropolitan-district-council/leeds,Leeds City Council,30/09/2023,Communities Housing and Environment,Customer Access,Supplies and Services,Bought In Professional Services,277,20/09/2023,2309-00101,0.00,22.50,R,Abadit Kiros,No
Http://opendatacommunities.org/id/metropolitan-district-council/leeds,Leeds City Council,30/09/2023,Communities Housing and Environment,Customer Access,Supplies and Services,Bought In Professional Services,277,27/09/2023,2309-00102,0.00,33.00,R,Abadit Kiros,No
Http://opendatacommunities.org/id/metropolitan-district-council/leeds,Leeds City Council,30/09/2023,Adults and Health,Services For Adults Under 65 Mental/Dis,Agency Payments,Home Care,568,14/09/2023,2309-00103,0.00,252.00,R,Abbeyfield The Dales Limited,No
Http://opendatacommunities.org/id/metropolitan-district-council/leeds,Leeds City Council,30/09/2023,Children and Families,Social Care,Agency Payments,Allowances,546,21/09/2023,2309-00104,0.00,618.18,R,Abbie O Mahony ,No
Http://opendatacommunities.org/id/metropolitan-district-council/leeds,Leeds City Council,30/09/2023,Communities Housing and Environment,Climate Energy & Greenspaces Total,Supplies and Services,Other Hired And Contracted Services,265,07/09/2023,2309-00105,0.00,1000.00,R,Abbotts Memorial Compa,Yes
Http://opendatacommunities.org/id/metropolitan-district-council/leeds,Leeds City Council,30/09/2023,Communities Housing and Environment,Climate Energy & Greenspaces Total,Supplies and Services,Other Hired And Contracted Services,265,07/09/2023,2309-00106,0.00,1400.00,R,Abbotts Memorial Compa,Yes
Http://opendatacommunities.org/id/metropolitan-district-council/leeds,Leeds City Council,30/09/2023,Communities Housing and Environment,Climate Energy & Greenspaces Total,Supplies and Services,Other Hired And Contracted Services,265,07/09/2023,2309-00107,0.00,3050.00,R,Abbotts Memorial Compa,Yes
Http://opendatacommunities.org/id/metropolitan-district-council/leeds,Leeds City Council,30/09/2023,Children and Families,Social Care,Agency Payments,General External Residential Placements,507,11/09/2023,2309-00108,0.00,17515.09,R,Abc Care And Education Ltd,No
Http://opendatacommunities.org/id/metropolitan-district-council/leeds,Leeds City Council,30/09/2023,Children and Families,Social Care,Agency Payments,Services Rendered By Other Organisations,511,01/09/2023,2309-00109,0.00,5292.00,R,ABC NURSERY AT LUFC,No
Http://opendatacommunities.org/id/metropolitan-district-council/leeds,Leeds City Council,30/09/2023,Children and Families,Social Care,Agency Payments,Services Rendered By Other Organisations,511,06/09/2023,2309-00110,0.00,3676.05,R,ABC NURSERY AT LUFC,No
Http://opendatacommunities.org/id/metropolitan-district-council/leeds,Leeds City Council,30/09/2023,Children and Families,Social Care,Appropriations,Direct Payments,626,20/09/2023,2309-00111,0.00,4640.00,R,ABC NURSERY AT LUFC,No
Http://opendatacommunities.org/id/metropolitan-district-council/leeds,Leeds City Council,30/09/2023,Children and Families,Social Care,Agency Payments,Services Rendered By Other Organisations,511,01/09/2023,2309-00112,0.00,8505.00,R,Abc@D'S Childcare,No
Http://opendatacommunities.org/id/metropolitan-district-council/leeds,Leeds City Council,30/09/2023,Children and Families,Social Care,Agency Payments,Services Rendered By Other Organisations,511,06/09/2023,2309-00113,0.00,1312.88,R,Abc@D'S Childcare,No
Http://opendatacommunities.org/id/metropolitan-district-council/leeds,Leeds City Council,30/09/2023,Communities Housing and Environment,Customer Access,Supplies and Services,Bought In Professional Services,277,13/09/2023,2309-00114,0.00,18.00,R,Abdiqafar Abdullahi,No
Http://opendatacommunities.org/id/metropolitan-district-council/leeds,Leeds City Council,30/09/2023,Communities Housing and Environment,Customer Access,Supplies and Services,Bought In Professional Services,277,13/09/2023,2309-00115,0.00,27.00,R,Abdiqafar Abdullahi,No
Http://opendatacommunities.org/id/metropolitan-district-council/leeds,Leeds City Council,30/09/2023,Communities Housing and Environment,Customer Access,Supplies and Services,Bought In Professional Services,277,13/09/2023,2309-00116,0.00,22.50,R,Abdiqafar Abdullahi,No
Http://opendatacommunities.org/id/metropolitan-district-council/leeds,Leeds City Council,30/09/2023,Communities Housing and Environment,Customer Access,Supplies and Services,Bought In Professional Services,277,20/09/2023,2309-00117,0.00,31.50,R,Abdiqafar Abdullahi,No
Http://opendatacommunities.org/id/metropolitan-district-council/leeds,Leeds City Council,30/09/2023,Communities Housing and Environment,Customer Access,Supplies and Services,Bought In Professional Services,277,20/09/2023,2309-00118,0.00,18.00,R,Abdiqafar Abdullahi,No
Http://opendatacommunities.org/id/metropolitan-district-council/leeds,Leeds City Council,30/09/2023,Communities Housing and Environment,Customer Access,Supplies and Services,Bought In Professional Services,277,20/09/2023,2309-00119,0.00,18.00,R,Abdiqafar Abdullahi,No
Http://opendatacommunities.org/id/metropolitan-district-council/leeds,Leeds City Council,30/09/2023,Children and Families,Social Care,Agency Payments,Placement Support,550,19/09/2023,2309-00120,0.00,100.00,R,REDACTED PERSONAL DATA,No
Http://opendatacommunities.org/id/metropolitan-district-council/leeds,Leeds City Council,30/09/2023,Communities Housing and Environment,Customer Access,Supplies and Services,Bought In Professional Services,277,06/09/2023,2309-00121,0.00,18.00,R,Abdulahad Denha,No
Http://opendatacommunities.org/id/metropolitan-district-council/leeds,Leeds City Council,30/09/2023,Communities Housing and Environment,Customer Access,Supplies and Services,Bought In Professional Services,277,06/09/2023,2309-00122,0.00,18.00,R,Abdulahad Denha,No
Http://opendatacommunities.org/id/metropolitan-district-council/leeds,Leeds City Council,30/09/2023,Communities Housing and Environment,Customer Access,Supplies and Services,Bought In Professional Services,277,06/09/2023,2309-00123,0.00,27.00,R,Abdulahad Denha,No
Http://opendatacommunities.org/id/metropolitan-district-council/leeds,Leeds City Council,30/09/2023,Communities Housing and Environment,Customer Access,Supplies and Services,Bought In Professional Services,277,13/09/2023,2309-00124,0.00,18.00,R,Abdulahad Denha,No
Http://opendatacommunities.org/id/metropolitan-district-council/leeds,Leeds City Council,30/09/2023,Communities Housing and Environment,Customer Access,Supplies and Services,Bought In Professional Services,277,13/09/2023,2309-00125,0.00,27.00,R,Abdulahad Denha,No
Http://opendatacommunities.org/id/metropolitan-district-council/leeds,Leeds City Council,30/09/2023,Communities Housing and Environment,Customer Access,Supplies and Services,Bought In Professional Services,277,13/09/2023,2309-00126,0.00,18.00,R,Abdulahad Denha,No
Http://opendatacommunities.org/id/metropolitan-district-council/leeds,Leeds City Council,30/09/2023,Communities Housing and Environment,Customer Access,Supplies and Services,Bought In Professional Services,277,13/09/2023,2309-00127,0.00,18.00,R,Abdulahad Denha,No
Http://opendatacommunities.org/id/metropolitan-district-council/leeds,Leeds City Council,30/09/2023,Communities Housing and Environment,Customer Access,Supplies and Services,Bought In Professional Services,277,20/09/2023,2309-00128,0.00,18.00,R,Abdulahad Denha,No
Http://opendatacommunities.org/id/metropolitan-district-council/leeds,Leeds City Council,30/09/2023,Communities Housing and Environment,Customer Access,Supplies and Services,Bought In Professional Services,277,20/09/2023,2309-00129,0.00,18.00,R,Abdulahad Denha,No
Http://opendatacommunities.org/id/metropolitan-district-council/leeds,Leeds City Council,30/09/2023,Communities Housing and Environment,Customer Access,Supplies and Services,Bought In Professional Services,277,20/09/2023,2309-00130,0.00,45.00,R,Abdulahad Denha,No
Http://opendatacommunities.org/id/metropolitan-district-council/leeds,Leeds City Council,30/09/2023,Communities Housing and Environment,Customer Access,Supplies and Services,Bought In Professional Services,277,27/09/2023,2309-00131,0.00,18.00,R,Abdulahad Denha,No
Http://opendatacommunities.org/id/metropolitan-district-council/leeds,Leeds City Council,30/09/2023,Communities Housing and Environment,Customer Access,Supplies and Services,Bought In Professional Services,277,27/09/2023,2309-00132,0.00,18.00,R,Abdulahad Denha,No
Http://opendatacommunities.org/id/metropolitan-district-council/leeds,Leeds City Council,30/09/2023,Communities Housing and Environment,Customer Access,Supplies and Services,Bought In Professional Services,277,27/09/2023,2309-00133,0.00,18.00,R,Abdulahad Denha,No
Http://opendatacommunities.org/id/metropolitan-district-council/leeds,Leeds City Council,30/09/2023,Communities Housing and Environment,Customer Access,Supplies and Services,Bought In Professional Services,277,27/09/2023,2309-00134,0.00,27.00,R,Abdulahad Denha,No
Http://opendatacommunities.org/id/metropolitan-district-council/leeds,Leeds City Council,30/09/2023,Communities Housing and Environment,Customer Access,Supplies and Services,Bought In Professional Services,277,27/09/2023,2309-00135,0.00,18.00,R,Abdulahad Denha,No
Http://opendatacommunities.org/id/metropolitan-district-council/leeds,Leeds City Council,30/09/2023,Communities Housing and Environment,Customer Access,Supplies and Services,Bought In Professional Services,277,27/09/2023,2309-00136,0.00,18.00,R,Abdulahad Denha,No
Http://opendatacommunities.org/id/metropolitan-district-council/leeds,Leeds City Council,30/09/2023,Communities Housing and Environment,Customer Access,Supplies and Services,Bought In Professional Services,277,20/09/2023,2309-00137,0.00,18.00,R,Abdulrahim Dastyar,No
Http://opendatacommunities.org/id/metropolitan-district-council/leeds,Leeds City Council,30/09/2023,Communities Housing and Environment,Customer Access,Supplies and Services,Bought In Professional Services,277,27/09/2023,2309-00138,0.00,18.00,R,Abdulrahim Dastyar,No
Http://opendatacommunities.org/id/metropolitan-district-council/leeds,Leeds City Council,30/09/2023,Adults and Health,Services For Older People - 65 And Over,Agency Payments,Nursing Home,570,13/09/2023,2309-00139,0.00,58951.26,R,Aberford Hall,No
Http://opendatacommunities.org/id/metropolitan-district-council/leeds,Leeds City Council,30/09/2023,Adults and Health,Services For Older People Under 65 P/Dis,Agency Payments,Nursing Home,570,13/09/2023,2309-00140,0.00,3016.00,R,Aberford Hall,No
Http://opendatacommunities.org/id/metropolitan-district-council/leeds,Leeds City Council,30/09/2023,Strategy and Resources,Leeds Building Services,Supplies and Services,Operational Materials,205,06/09/2023,2309-00141,0.00,471.20,R,ABI GARAGE DOORS LTD,No
Http://opendatacommunities.org/id/metropolitan-district-council/leeds,Leeds City Council,30/09/2023,Strategy and Resources,Leeds Building Services,Supplies and Services,Operational Materials,205,08/09/2023,2309-00142,0.00,8.75,R,ABI GARAGE DOORS LTD,No
Http://opendatacommunities.org/id/metropolitan-district-council/leeds,Leeds City Council,30/09/2023,Strategy and Resources,Leeds Building Services,Supplies and Services,Operational Materials,205,22/09/2023,2309-00143,0.00,471.20,R,ABI GARAGE DOORS LTD,No
Http://opendatacommunities.org/id/metropolitan-district-council/leeds,Leeds City Council,30/09/2023,Strategy and Resources,Leeds Building Services,Supplies and Services,Operational Materials,205,29/09/2023,2309-00144,0.00,420.90,R,ABI GARAGE DOORS LTD,No
Http://opendatacommunities.org/id/metropolitan-district-council/leeds,Leeds City Council,30/09/2023,Strategy and Resources,Leeds Building Services,Supplies and Services,Operational Materials,205,29/09/2023,2309-00145,0.00,420.90,R,ABI GARAGE DOORS LTD,No
Http://opendatacommunities.org/id/metropolitan-district-council/leeds,Leeds City Council,30/09/2023,Strategy and Resources,Leeds Building Services,Supplies and Services,Operational Materials,205,29/09/2023,2309-00146,0.00,420.90,R,ABI GARAGE DOORS LTD,No
Http://opendatacommunities.org/id/metropolitan-district-council/leeds,Leeds City Council,30/09/2023,Children and Families,Social Care,Appropriations,16 Plus Top Up Allowance,625,22/09/2023,2309-00147,0.00,40.00,R,REDACTED PERSONAL DATA,No
Http://opendatacommunities.org/id/metropolitan-district-council/leeds,Leeds City Council,30/09/2023,Children and Families,Social Care,Agency Payments,Placement Support,550,01/09/2023,2309-00148,0.00,13.39,R,REDACTED PERSONAL DATA,No
Http://opendatacommunities.org/id/metropolitan-district-council/leeds,Leeds City Council,30/09/2023,Children and Families,Social Care,Appropriations,Leaving Care Allowances,634,01/09/2023,2309-00149,0.00,16.50,R,REDACTED PERSONAL DATA,No
Http://opendatacommunities.org/id/metropolitan-district-council/leeds,Leeds City Council,30/09/2023,Children and Families,Social Care,Agency Payments, Direct Work,549,01/09/2023,2309-00150,0.00,16.50,R,REDACTED PERSONAL DATA,No
Http://opendatacommunities.org/id/metropolitan-district-council/leeds,Leeds City Council,30/09/2023,City Development,Libraries Arts & Heritage Total,Supplies and Services,Other Hired And Contracted Services,265,08/09/2023,2309-00151,0.00,179.00,R,Able To Enable Limited,Yes
Http://opendatacommunities.org/id/metropolitan-district-council/leeds,Leeds City Council,30/09/2023,Children and Families,Social Care,Agency Payments,Education Fees/Bursary,565,19/09/2023,2309-00152,0.00,5940.00,R,Abodus Limited,No
Http://opendatacommunities.org/id/metropolitan-district-council/leeds,Leeds City Council,30/09/2023,Children and Families,Social Care Total,Supplies and Services,Operational Furniture And Equipment,203,19/09/2023,2309-00153,0.00,127.07,R,Absolute,Yes
Http://opendatacommunities.org/id/metropolitan-district-council/leeds,Leeds City Council,30/09/2023,Children and Families,Social Care,Agency Payments,General External Residential Placements,507,29/09/2023,2309-00154,0.00,17692.01,R,Absolute Children's Services Ltd,No
Http://opendatacommunities.org/id/metropolitan-district-council/leeds,Leeds City Council,30/09/2023,City Development,Libraries Arts & Heritage Total,Supplies and Services,Office Consumables,210,07/09/2023,2309-00155,0.00,142.68,R,Absoluteproduct.Co,Yes
Http://opendatacommunities.org/id/metropolitan-district-council/leeds,Leeds City Council,30/09/2023,Children and Families,Social Care Total,Supplies and Services,Food & Drink,231,03/09/2023,2309-00156,0.00,11.98,R,Abu Bakr Supermarket,Yes
Http://opendatacommunities.org/id/metropolitan-district-council/leeds,Leeds City Council,30/09/2023,Children and Families,Social Care Total,Agency Payments,Placement Support,550,06/09/2023,2309-00157,0.00,37.79,R,Abu Bakr Supermarket,Yes
Http://opendatacommunities.org/id/metropolitan-district-council/leeds,Leeds City Council,30/09/2023,Children and Families,Social Care Total,Supplies and Services,Food & Drink,231,25/09/2023,2309-00158,0.00,9.18,R,Abu Bakr Supermarket,Yes
Http://opendatacommunities.org/id/metropolitan-district-council/leeds,Leeds City Council,30/09/2023,Communities Housing and Environment,Communities,Supplies and Services,Other Hired And Contracted Services,265,25/09/2023,2309-00159,0.00,5307.96,R,ACCESS DISPLAYS LTD,No
Http://opendatacommunities.org/id/metropolitan-district-council/leeds,Leeds City Council,30/09/2023,City Development,Libraries Arts & Heritage,Supplies and Services,Bought In Professional Services,277,22/09/2023,2309-00160,0.00,2000.00,R,ACCESS MOVING IMAGE LTD,No
Http://opendatacommunities.org/id/metropolitan-district-council/leeds,Leeds City Council,30/09/2023,Insurance,Insurance,Supplies and Services,Insurance Claims,248,28/09/2023,2309-00161,0.00,3828.00,R,Accountant General Of The Senior Courts,No
Http://opendatacommunities.org/id/metropolitan-district-council/leeds,Leeds City Council,30/09/2023,Strategy and Resources,Leeds Building Services,Supplies and Services,Other Hired And Contracted Services,265,27/09/2023,2309-00162,0.00,525.00,R,Accuflow Commissioning Ltd,No
Http://opendatacommunities.org/id/metropolitan-district-council/leeds,Leeds City Council,30/09/2023,City Development,Recreation,Transport,External Hire -Occasional,304,29/09/2023,2309-00163,0.00,124.50,R,ACE CONTAINER SERVICES LIMITED,No
Http://opendatacommunities.org/id/metropolitan-district-council/leeds,Leeds City Council,30/09/2023,Strategy and Resources,Leeds Building Services,Supplies and Services,Other Hired And Contracted Services,265,08/09/2023,2309-00164,0.00,1240.00,R,Ace Elevators Limited,No
Http://opendatacommunities.org/id/metropolitan-district-council/leeds,Leeds City Council,30/09/2023,Strategy and Resources,Leeds Building Services,Supplies and Services,Other Hired And Contracted Services,265,15/09/2023,2309-00165,0.00,40.00,R,Ace Elevators Limited,No
Http://opendatacommunities.org/id/metropolitan-district-council/leeds,Leeds City Council,30/09/2023,Communities Housing and Environment,Communities,Transport,Private Hire,360,21/09/2023,2309-00166,0.00,750.00,R,Acklams Coaches Limited,No
Http://opendatacommunities.org/id/metropolitan-district-council/leeds,Leeds City Council as Accountable Body ,30/09/2023,Social Services Pooled Budgets,Jcs For People With Learning Disabilitie,Agency Payments,Residential,580,13/09/2023,2309-00167,0.00,103912.96,R,Acorn Care & Education Limited,No
Http://opendatacommunities.org/id/metropolitan-district-council/leeds,Leeds City Council as Accountable Body ,30/09/2023,Social Services Pooled Budgets,Jcs For People With Learning Disabilitie,Agency Payments,Residential,580,13/09/2023,2309-00168,0.00,21536.80,R,Acorn Care & Education Limited (Ofg),No
Http://opendatacommunities.org/id/metropolitan-district-council/leeds,Leeds City Council,30/09/2023,Children and Families,Social Care,Agency Payments,General External Residential Placements,507,01/09/2023,2309-00169,0.00,13387.57,R,Acorn Care & Education Ltd (Sales),No
Http://opendatacommunities.org/id/metropolitan-district-council/leeds,Leeds City Council,30/09/2023,Children and Families,Social Care,Agency Payments,General External Residential Placements,507,01/09/2023,2309-00170,0.00,9517.00,R,Acorn Care & Education Ltd (Sales),No
Http://opendatacommunities.org/id/metropolitan-district-council/leeds,Leeds City Council,30/09/2023,Children and Families,Social Care,Agency Payments,General External Residential Placements,507,01/09/2023,2309-00171,0.00,19048.75,R,Acorn Care & Education Ltd (Sales),No
Http://opendatacommunities.org/id/metropolitan-district-council/leeds,Leeds City Council,30/09/2023,Children and Families,Social Care,Agency Payments,General External Residential Placements,507,01/09/2023,2309-00172,0.00,18635.34,R,Acorn Care & Education Ltd (Sales),No
Http://opendatacommunities.org/id/metropolitan-district-council/leeds,Leeds City Council,30/09/2023,Children and Families,Social Care,Agency Payments,General External Residential Placements,507,07/09/2023,2309-00173,0.00,13350.99,R,Acorn Care & Education Ltd (Sales),No
Http://opendatacommunities.org/id/metropolitan-district-council/leeds,Leeds City Council,30/09/2023,Children and Families,Social Care,Agency Payments,General External Residential Placements,507,07/09/2023,2309-00174,0.00,9491.00,R,Acorn Care & Education Ltd (Sales),No
Http://opendatacommunities.org/id/metropolitan-district-council/leeds,Leeds City Council,30/09/2023,Children and Families,Learning,Agency Payments,SEN Placements,566,21/09/2023,2309-00175,0.00,23559.97,R,Acorn Care & Education Ltd (Sales),No
Http://opendatacommunities.org/id/metropolitan-district-council/leeds,Leeds City Council,30/09/2023,Children and Families,Learning,Agency Payments,SEN Placements,566,27/09/2023,2309-00176,0.00,20414.58,R,Acorn Care & Education Ltd (Sales),No
Http://opendatacommunities.org/id/metropolitan-district-council/leeds,Leeds City Council,30/09/2023,Children and Families,Learning,Agency Payments,SEN Placements,566,29/09/2023,2309-00177,0.00,12743.84,R,Acorn Care & Education Ltd (Sales),No
Http://opendatacommunities.org/id/metropolitan-district-council/leeds,Leeds City Council,30/09/2023,Children and Families,Learning,Agency Payments,SEN Placements,566,29/09/2023,2309-00178,0.00,13168.63,R,Acorn Care & Education Ltd (Sales),No
Http://opendatacommunities.org/id/metropolitan-district-council/leeds,Leeds City Council,30/09/2023,Children and Families,Social Care,Agency Payments,General External Residential Placements,507,29/09/2023,2309-00179,0.00,19048.75,R,Acorn Care & Education Ltd (Sales),No
Http://opendatacommunities.org/id/metropolitan-district-council/leeds,Leeds City Council,30/09/2023,Children and Families,Social Care,Agency Payments,General External Residential Placements,507,29/09/2023,2309-00180,0.00,18635.34,R,Acorn Care & Education Ltd (Sales),No
Http://opendatacommunities.org/id/metropolitan-district-council/leeds,Leeds City Council,30/09/2023,Children and Families,Learning,Agency Payments,SEN Placements,566,29/09/2023,2309-00181,0.00,13168.63,R,Acorn Care & Education Ltd (Sales),No
Http://opendatacommunities.org/id/metropolitan-district-council/leeds,Leeds City Council,30/09/2023,Children and Families,Learning,Agency Payments,SEN Placements,566,29/09/2023,2309-00182,0.00,12743.84,R,Acorn Care & Education Ltd (Sales),No
Http://opendatacommunities.org/id/metropolitan-district-council/leeds,Leeds City Council,30/09/2023,Children and Families,Learning,Agency Payments,SEN Placements,566,29/09/2023,2309-00183,0.00,13168.63,R,Acorn Care & Education Ltd (Sales),No
Http://opendatacommunities.org/id/metropolitan-district-council/leeds,Leeds City Council,30/09/2023,Children and Families,Learning,Agency Payments,SEN Placements,566,29/09/2023,2309-00184,0.00,12743.84,R,Acorn Care & Education Ltd (Sales),No
Http://opendatacommunities.org/id/metropolitan-district-council/leeds,Leeds City Council,30/09/2023,Children and Families,Learning,Agency Payments,SEN Placements,566,29/09/2023,2309-00185,0.00,13168.63,R,Acorn Care & Education Ltd (Sales),No
Http://opendatacommunities.org/id/metropolitan-district-council/leeds,Leeds City Council,30/09/2023,Children and Families,Learning,Agency Payments,SEN Placements,566,29/09/2023,2309-00186,0.00,13168.63,R,Acorn Care & Education Ltd (Sales),No
Http://opendatacommunities.org/id/metropolitan-district-council/leeds,Leeds City Council,30/09/2023,Children and Families,Learning,Agency Payments,SEN Placements,566,29/09/2023,2309-00187,0.00,11894.25,R,Acorn Care & Education Ltd (Sales),No
Http://opendatacommunities.org/id/metropolitan-district-council/leeds,Leeds City Council,30/09/2023,Children and Families,Learning,Agency Payments,SEN Placements,566,29/09/2023,2309-00188,0.00,13168.63,R,Acorn Care & Education Ltd (Sales),No
Http://opendatacommunities.org/id/metropolitan-district-council/leeds,Leeds City Council,30/09/2023,Children and Families,Learning,Agency Payments,SEN Placements,566,29/09/2023,2309-00189,0.00,12743.84,R,Acorn Care & Education Ltd (Sales),No
Http://opendatacommunities.org/id/metropolitan-district-council/leeds,Leeds City Council,30/09/2023,Adults and Health,Services For Older People Under 65 P/Dis,Agency Payments,Nursing Home,570,13/09/2023,2309-00190,0.00,3500.00,R,Acorn Care Home,No
Http://opendatacommunities.org/id/metropolitan-district-council/leeds,Leeds City Council,30/09/2023,Children and Families,Social Care,Agency Payments,Services Rendered By Other Organisations,511,01/09/2023,2309-00191,0.00,9790.20,R,ACORNS NURSERY,No
Http://opendatacommunities.org/id/metropolitan-district-council/leeds,Leeds City Council,30/09/2023,Children and Families,Social Care,Agency Payments,Services Rendered By Other Organisations,511,06/09/2023,2309-00192,0.00,350.10,R,ACORNS NURSERY,No
Http://opendatacommunities.org/id/metropolitan-district-council/leeds,Leeds City Council,30/09/2023,Adults and Health,Services For Older People - 65 And Over,Agency Payments,Nursing Home,570,13/09/2023,2309-00193,0.00,22967.42,R,Acre Green,No
Http://opendatacommunities.org/id/metropolitan-district-council/leeds,Leeds City Council,30/09/2023,Adults and Health,Services For Older People - 65 And Over,Agency Payments,Residential,580,13/09/2023,2309-00194,0.00,4548.80,R,Acre Green,No
Http://opendatacommunities.org/id/metropolitan-district-council/leeds,Leeds City Council,30/09/2023,Adults and Health,Services For Older People Under 65 P/Dis,Agency Payments,Nursing Home,570,13/09/2023,2309-00195,0.00,2479.64,R,Acre Green,No
Http://opendatacommunities.org/id/metropolitan-district-council/leeds,Leeds City Council,30/09/2023,Adults and Health,Services For Older People Under 65 P/Dis,Agency Payments,Residential,580,13/09/2023,2309-00196,0.00,2071.00,R,Acre Green,No
Http://opendatacommunities.org/id/metropolitan-district-council/leeds,Leeds City Council,30/09/2023,Children and Families,Social Care,Agency Payments,Services Rendered By Other Organisations,511,01/09/2023,2309-00197,0.00,6350.40,R,Acre Wood Day Nursery,No
Http://opendatacommunities.org/id/metropolitan-district-council/leeds,Leeds City Council,30/09/2023,Children and Families,Social Care,Agency Payments,Services Rendered By Other Organisations,511,06/09/2023,2309-00198,0.00,1404.87,R,Acre Wood Day Nursery,No
Http://opendatacommunities.org/id/metropolitan-district-council/leeds,Leeds City Council,30/09/2023,Adults and Health,Services For Adults Under 65 Mental/Dis,Agency Payments,Fees - Level 4,520,22/09/2023,2309-00199,0.00,3660.00,R,Action First Assessments Ltd,No
Http://opendatacommunities.org/id/metropolitan-district-council/leeds,Leeds City Council as Accountable Body ,30/09/2023,Social Services Pooled Budgets,Jcs For People With Learning Disabilitie,Agency Payments,Residential,580,13/09/2023,2309-00200,0.00,11613.36,R,Action For Care Contracts Limited,No
Http://opendatacommunities.org/id/metropolitan-district-council/leeds,Leeds City Council,30/09/2023,Adults and Health,Services For Older People - 65 And Over,Agency Payments,Payments To Voluntary Organisations,561,29/09/2023,2309-00201,0.00,45009.02,R,ACTION FOR GIPTON ELDERLY,No
Http://opendatacommunities.org/id/metropolitan-district-council/leeds,Leeds City Council,30/09/2023,City Development,Recreation,External Income,Instructor Lead Sporting Fees (coaching),927,07/09/2023,2309-00202,0.00,125.00,R,Activ First LTD,No
Http://opendatacommunities.org/id/metropolitan-district-council/leeds,Leeds City Council,30/09/2023,City Development,Recreation Total,Supplies and Services,Licences,266,22/09/2023,2309-00203,0.00,295.00,R,Active Hire (Leeds) Lt,Yes
Http://opendatacommunities.org/id/metropolitan-district-council/leeds,Leeds City Council,30/09/2023,City Development,Markets & City Centre Management,Supplies and Services,Publication And Promotion,267,01/09/2023,2309-00204,0.00,420.00,R,ACTIVE HIRE (LEEDS) LTD,No
Http://opendatacommunities.org/id/metropolitan-district-council/leeds,Leeds City Council,30/09/2023,Communities Housing and Environment,Communities,Supplies and Services,Well Being Small Grants Projects,228,08/09/2023,2309-00205,0.00,295.00,R,ACTIVE HIRE (LEEDS) LTD,No
Http://opendatacommunities.org/id/metropolitan-district-council/leeds,Leeds City Council,30/09/2023,Communities Housing and Environment,Communities,Supplies and Services,Well Being Small Grants Projects,228,11/09/2023,2309-00206,0.00,295.00,R,ACTIVE HIRE (LEEDS) LTD,No
Http://opendatacommunities.org/id/metropolitan-district-council/leeds,Leeds City Council,30/09/2023,Children and Families,Social Care,Appropriations,Direct Payments,626,20/09/2023,2309-00207,0.00,2784.00,R,Active Kids (Yeadon),No
Http://opendatacommunities.org/id/metropolitan-district-council/leeds,Leeds City Council,30/09/2023,Children and Families,Social Care,Agency Payments,Services Rendered By Other Organisations,511,01/09/2023,2309-00208,0.00,3704.40,R,ACTIVE KIDS YEADON LLP,No
Http://opendatacommunities.org/id/metropolitan-district-council/leeds,Leeds City Council,30/09/2023,Children and Families,Social Care,Agency Payments,Services Rendered By Other Organisations,511,06/09/2023,2309-00209,0.00,1225.35,R,ACTIVE KIDS YEADON LLP,No
Http://opendatacommunities.org/id/metropolitan-district-council/leeds,Leeds City Council,30/09/2023,City Development,Recreation Total,Supplies and Services,Other Hired And Contracted Services,265,06/09/2023,2309-00210,0.00,-34.73,R,Active Leeds,Yes
Http://opendatacommunities.org/id/metropolitan-district-council/leeds,Leeds City Council,30/09/2023,Adults and Health,Services For Adults Under 65 Mental/Dis,Agency Payments,Sheltered Accommodation,569,13/09/2023,2309-00211,0.00,102589.70,R,Active Pathways,No
Http://opendatacommunities.org/id/metropolitan-district-council/leeds,Leeds City Council,30/09/2023,Adults and Health,Services For Older People - 65 And Over,Agency Payments,Sheltered Accommodation,569,13/09/2023,2309-00212,0.00,-35058.75,R,Active Pathways,No
Http://opendatacommunities.org/id/metropolitan-district-council/leeds,Leeds City Council as Accountable Body ,30/09/2023,Social Services Pooled Budgets,Jcs For People With Learning Disabilitie,Agency Payments,Sheltered Accommodation,569,13/09/2023,2309-00213,0.00,25743.84,R,Active Pathways,No
Http://opendatacommunities.org/id/metropolitan-district-council/leeds,Leeds City Council,30/09/2023,Adults and Health,Services For Adults Under 65 Mental/Dis,Agency Payments,Residential,580,13/09/2023,2309-00214,0.00,-19451.92,R,Active Pathways Limited,No
Http://opendatacommunities.org/id/metropolitan-district-council/leeds,Leeds City Council,30/09/2023,Adults and Health,Services For Older People - 65 And Over,Agency Payments,Residential,580,13/09/2023,2309-00215,0.00,25720.17,R,Active Pathways Limited,No
Http://opendatacommunities.org/id/metropolitan-district-council/leeds,Leeds City Council,30/09/2023,Communities Housing and Environment,Waste Management,Supplies and Services,Waste Disposal Charges,236,06/09/2023,2309-00216,0.00,489.50,R,Acumen Waste Services Ltd,No
Http://opendatacommunities.org/id/metropolitan-district-council/leeds,Leeds City Council,30/09/2023,Communities Housing and Environment,Waste Management,Supplies and Services,Waste Disposal Charges,236,06/09/2023,2309-00217,0.00,3909.15,R,Acumen Waste Services Ltd,No
Http://opendatacommunities.org/id/metropolitan-district-council/leeds,Leeds City Council,30/09/2023,Communities Housing and Environment,Waste Management,Supplies and Services,Recycling & Reuse Charges,234,07/09/2023,2309-00218,0.00,6603.12,R,Acumen Waste Services Ltd,No
Http://opendatacommunities.org/id/metropolitan-district-council/leeds,Leeds City Council,30/09/2023,Communities Housing and Environment,Waste Management,Supplies and Services,Waste Disposal Charges,236,19/09/2023,2309-00219,0.00,969.85,R,Acumen Waste Services Ltd,No
Http://opendatacommunities.org/id/metropolitan-district-council/leeds,Leeds City Council,30/09/2023,Communities Housing and Environment,Waste Management,Supplies and Services,Waste Disposal Charges,236,19/09/2023,2309-00220,0.00,1099.25,R,Acumen Waste Services Ltd,No
Http://opendatacommunities.org/id/metropolitan-district-council/leeds,Leeds City Council,30/09/2023,Communities Housing and Environment,Waste Management,Supplies and Services,Waste Disposal Charges,236,19/09/2023,2309-00221,0.00,777.45,R,Acumen Waste Services Ltd,No
Http://opendatacommunities.org/id/metropolitan-district-council/leeds,Leeds City Council,30/09/2023,Communities Housing and Environment,Waste Management,Supplies and Services,Waste Disposal Charges,236,19/09/2023,2309-00222,0.00,445.50,R,Acumen Waste Services Ltd,No
Http://opendatacommunities.org/id/metropolitan-district-council/leeds,Leeds City Council,30/09/2023,Communities Housing and Environment,Waste Management,Supplies and Services,Waste Disposal Charges,236,19/09/2023,2309-00223,0.00,1066.25,R,Acumen Waste Services Ltd,No
Http://opendatacommunities.org/id/metropolitan-district-council/leeds,Leeds City Council,30/09/2023,Communities Housing and Environment,Waste Management,Supplies and Services,Waste Disposal Charges,236,19/09/2023,2309-00224,0.00,1198.90,R,Acumen Waste Services Ltd,No
Http://opendatacommunities.org/id/metropolitan-district-council/leeds,Leeds City Council,30/09/2023,Communities Housing and Environment,Waste Management,Supplies and Services,Recycling & Reuse Charges,234,21/09/2023,2309-00225,0.00,3977.28,R,Acumen Waste Services Ltd,No
Http://opendatacommunities.org/id/metropolitan-district-council/leeds,Leeds City Council,30/09/2023,Communities Housing and Environment,Waste Management,Supplies and Services,Recycling & Reuse Charges,234,21/09/2023,2309-00226,0.00,5647.68,R,Acumen Waste Services Ltd,No
Http://opendatacommunities.org/id/metropolitan-district-council/leeds,Leeds City Council,30/09/2023,Communities Housing and Environment,Waste Management,Supplies and Services,Recycling & Reuse Charges,234,22/09/2023,2309-00227,0.00,185.00,R,Acumen Waste Services Ltd,No
Http://opendatacommunities.org/id/metropolitan-district-council/leeds,Leeds City Council,30/09/2023,Communities Housing and Environment,Waste Management,Supplies and Services,Waste Disposal Charges,236,27/09/2023,2309-00228,0.00,443.30,R,Acumen Waste Services Ltd,No
Http://opendatacommunities.org/id/metropolitan-district-council/leeds,Leeds City Council,30/09/2023,Communities Housing and Environment,Waste Management,Supplies and Services,Recycling & Reuse Charges,234,28/09/2023,2309-00229,0.00,4788.00,R,Acumen Waste Services Ltd,No
Http://opendatacommunities.org/id/metropolitan-district-council/leeds,Leeds City Council,30/09/2023,Communities Housing and Environment,Waste Management,Supplies and Services,Recycling & Reuse Charges,234,29/09/2023,2309-00230,0.00,5613.12,R,Acumen Waste Services Ltd,No
Http://opendatacommunities.org/id/metropolitan-district-council/leeds,Leeds City Council,30/09/2023,Communities Housing and Environment,Climate Energy & Greenspaces Total,Supplies and Services,Resaleable Materials,204,04/09/2023,2309-00231,0.00,822.00,R,Acushnet Europe Ltd,Yes
Http://opendatacommunities.org/id/metropolitan-district-council/leeds,Leeds City Council,30/09/2023,Strategy and Resources,Shared Services,Supplies and Services,Operational Materials,205,01/09/2023,2309-00232,0.00,1497.00,R,AD3 Envelope Printers Limited,No
Http://opendatacommunities.org/id/metropolitan-district-council/leeds,Leeds City Council,30/09/2023,Strategy and Resources,Shared Services,Supplies and Services,Other Hired And Contracted Services,265,15/09/2023,2309-00233,0.00,163.54,R,AD3 Envelope Printers Limited,No
Http://opendatacommunities.org/id/metropolitan-district-council/leeds,Leeds City Council,30/09/2023,Strategy and Resources,Shared Services,Supplies and Services,Other Hired And Contracted Services,265,29/09/2023,2309-00234,0.00,451.25,R,AD3 Envelope Printers Limited,No
Http://opendatacommunities.org/id/metropolitan-district-council/leeds,Leeds City Council,30/09/2023,Strategy and Resources,Shared Services,Supplies and Services,Operational Materials,205,29/09/2023,2309-00235,0.00,1497.00,R,AD3 Envelope Printers Limited,No
Http://opendatacommunities.org/id/metropolitan-district-council/leeds,Leeds City Council,30/09/2023,City Development,Highways,Internal Recharges,Legal Disbursements,411,12/09/2023,2309-00236,0.00,169.52,R,Adam Aldred,No
Http://opendatacommunities.org/id/metropolitan-district-council/leeds,Leeds City Council,30/09/2023,Communities Housing and Environment,Elections Licensing and Registration,External Income,Admissions Booking Fees & Ticket Sales,933,14/09/2023,2309-00237,0.00,230.00,R,REDACTED PERSONAL DATA,No
Http://opendatacommunities.org/id/metropolitan-district-council/leeds,Leeds City Council,30/09/2023,Children and Families,Social Care,Appropriations,Leaving Care Allowances,634,07/09/2023,2309-00238,0.00,50.00,R,REDACTED PERSONAL DATA,No
Http://opendatacommunities.org/id/metropolitan-district-council/leeds,Leeds City Council,30/09/2023,City Development,Libraries Arts & Heritage,Supplies and Services,Books & Audio-Visual Materials,206,15/09/2023,2309-00239,0.00,40.00,R,REDACTED PERSONAL DATA,No
Http://opendatacommunities.org/id/metropolitan-district-council/leeds,Leeds City Council,30/09/2023,City Development,Libraries Arts & Heritage,Supplies and Services,Educational Visits,282,15/09/2023,2309-00240,0.00,20.00,R,REDACTED PERSONAL DATA,No
Http://opendatacommunities.org/id/metropolitan-district-council/leeds,Leeds City Council,30/09/2023,City Development,Recreation,Supplies and Services,Other Hired And Contracted Services,265,07/09/2023,2309-00241,0.00,7.99,R,REDACTED PERSONAL DATA,No
Http://opendatacommunities.org/id/metropolitan-district-council/leeds,Leeds City Council,30/09/2023,Adults and Health,Services For Older People - 65 And Over,Agency Payments,Residential Care Dementia,571,13/09/2023,2309-00242,0.00,1620.60,R,Adel Manor Care Centre,No
Http://opendatacommunities.org/id/metropolitan-district-council/leeds,Leeds City Council,30/09/2023,Adults and Health,Services For Older People - 65 And Over,Agency Payments,Residential,580,13/09/2023,2309-00243,0.00,5685.32,R,Adel Manor Care Centre,No
Http://opendatacommunities.org/id/metropolitan-district-council/leeds,Leeds City Council,30/09/2023,Adults and Health,Services For Older People Under 65 P/Dis,Agency Payments,Residential,580,13/09/2023,2309-00244,0.00,5000.00,R,Adel Manor Care Centre,No
Http://opendatacommunities.org/id/metropolitan-district-council/leeds,Leeds City Council,30/09/2023,Children and Families,Social Care,Agency Payments,Services Rendered By Voluntary Sector,505,01/09/2023,2309-00245,0.00,3194.10,R,ADEL PRE SCHOOL,No
Http://opendatacommunities.org/id/metropolitan-district-council/leeds,Leeds City Council,30/09/2023,Children and Families,Social Care,Agency Payments,Services Rendered By Voluntary Sector,505,06/09/2023,2309-00246,0.00,758.55,R,ADEL PRE SCHOOL,No
Http://opendatacommunities.org/id/metropolitan-district-council/leeds,Leeds City Council,30/09/2023,Children and Families,Learning,Appropriations,Direct Payments,626,11/09/2023,2309-00247,0.00,140.00,R,ADEL PRE SCHOOL,No
Http://opendatacommunities.org/id/metropolitan-district-council/leeds,Leeds City Council,30/09/2023,Children and Families,Social Care,Appropriations,Direct Payments,626,20/09/2023,2309-00248,0.00,5104.00,R,ADEL PRE SCHOOL,No
Http://opendatacommunities.org/id/metropolitan-district-council/leeds,Leeds City Council,30/09/2023,Communities Housing and Environment,Climate Energy & Greenspaces Total,Supplies and Services,Food & Drink,231,21/09/2023,2309-00249,0.00,9.00,R,Adel Sf Connect,Yes
Http://opendatacommunities.org/id/metropolitan-district-council/leeds,Leeds City Council,30/09/2023,City Development,Recreation,Supplies and Services,Bought In Professional Services,277,28/09/2023,2309-00250,0.00,140.00,R,Adele Battersby,No
Http://opendatacommunities.org/id/metropolitan-district-council/leeds,Leeds City Council,30/09/2023,City Development,Recreation,Supplies and Services,Bought In Professional Services,277,28/09/2023,2309-00251,0.00,100.00,R,Adele Battersby,No
Http://opendatacommunities.org/id/metropolitan-district-council/leeds,Leeds City Council,30/09/2023,City Development,Recreation,Supplies and Services,Bought In Professional Services,277,28/09/2023,2309-00252,0.00,60.00,R,Adele Battersby,No
Http://opendatacommunities.org/id/metropolitan-district-council/leeds,Leeds City Council,30/09/2023,City Development,Recreation,Supplies and Services,Bought In Professional Services,277,29/09/2023,2309-00253,0.00,200.00,R,Adele Battersby,No
Http://opendatacommunities.org/id/metropolitan-district-council/leeds,Leeds City Council,30/09/2023,Children and Families,Social Care,Agency Payments,Services Rendered By Other Organisations,511,01/09/2023,2309-00254,0.00,529.20,R,REDACTED PERSONAL DATA,No
Http://opendatacommunities.org/id/metropolitan-district-council/leeds,Leeds City Council,30/09/2023,Children and Families,Social Care,Agency Payments,Services Rendered By Other Organisations,511,06/09/2023,2309-00255,0.00,408.45,R,REDACTED PERSONAL DATA,No
Http://opendatacommunities.org/id/metropolitan-district-council/leeds,Leeds City Council,30/09/2023,Strategy and Resources,Commercial Services,Supplies and Services,Other Hired And Contracted Services,265,22/09/2023,2309-00256,0.00,21.96,R,REDACTED PERSONAL DATA,No
Http://opendatacommunities.org/id/metropolitan-district-council/leeds,Leeds City Council,30/09/2023,Strategy and Resources,Technology Total,Supplies and Services,Other Hired And Contracted Services,265,05/09/2023,2309-00257,0.00,230.88,R,Adi-Gardiner Ltd,Yes
Http://opendatacommunities.org/id/metropolitan-district-council/leeds,Leeds City Council,30/09/2023,Strategy and Resources,Leeds Building Services,Supplies and Services,Operational Materials,205,06/09/2023,2309-00258,0.00,145.98,R,ADI-Gardiner Ltd,No
Http://opendatacommunities.org/id/metropolitan-district-council/leeds,Leeds City Council,30/09/2023,Strategy and Resources,Leeds Building Services,Supplies and Services,Operational Materials,205,08/09/2023,2309-00259,0.00,553.50,R,ADI-Gardiner Ltd,No
Http://opendatacommunities.org/id/metropolitan-district-council/leeds,Leeds City Council,30/09/2023,Strategy and Resources,Leeds Building Services,Supplies and Services,Operational Materials,205,08/09/2023,2309-00260,0.00,118.03,R,ADI-Gardiner Ltd,No
Http://opendatacommunities.org/id/metropolitan-district-council/leeds,Leeds City Council,30/09/2023,Communities Housing and Environment,Community Safety,Supplies and Services,Other Hired And Contracted Services,265,15/09/2023,2309-00261,0.00,1273.10,R,ADI-Gardiner Ltd,No
Http://opendatacommunities.org/id/metropolitan-district-council/leeds,Leeds City Council,30/09/2023,Strategy and Resources,Leeds Building Services,Supplies and Services,Operational Materials,205,15/09/2023,2309-00262,0.00,127.14,R,ADI-Gardiner Ltd,No
Http://opendatacommunities.org/id/metropolitan-district-council/leeds,Leeds City Council,30/09/2023,Strategy and Resources,Leeds Building Services,Supplies and Services,Operational Materials,205,15/09/2023,2309-00263,0.00,107.52,R,ADI-Gardiner Ltd,No
Http://opendatacommunities.org/id/metropolitan-district-council/leeds,Leeds City Council,30/09/2023,Strategy and Resources,Leeds Building Services,Supplies and Services,Operational Materials,205,20/09/2023,2309-00264,0.00,72.99,R,ADI-Gardiner Ltd,No
Http://opendatacommunities.org/id/metropolitan-district-council/leeds,Leeds City Council,30/09/2023,Strategy and Resources,Leeds Building Services,Supplies and Services,Operational Materials,205,20/09/2023,2309-00265,0.00,47.30,R,ADI-Gardiner Ltd,No
Http://opendatacommunities.org/id/metropolitan-district-council/leeds,Leeds City Council,30/09/2023,Strategy and Resources,Leeds Building Services,Supplies and Services,Operational Materials,205,27/09/2023,2309-00266,0.00,1718.64,R,ADI-Gardiner Ltd,No
Http://opendatacommunities.org/id/metropolitan-district-council/leeds,Leeds City Council,30/09/2023,Strategy and Resources,Leeds Building Services,Supplies and Services,Operational Materials,205,27/09/2023,2309-00267,0.00,2291.52,R,ADI-Gardiner Ltd,No
Http://opendatacommunities.org/id/metropolitan-district-council/leeds,Leeds City Council,30/09/2023,Strategy and Resources,Leeds Building Services,Supplies and Services,Operational Materials,205,27/09/2023,2309-00268,0.00,1250.00,R,ADI-Gardiner Ltd,No
Http://opendatacommunities.org/id/metropolitan-district-council/leeds,Leeds City Council,30/09/2023,Strategy and Resources,Leeds Building Services,Supplies and Services,Operational Materials,205,27/09/2023,2309-00269,0.00,128.82,R,ADI-Gardiner Ltd,No
Http://opendatacommunities.org/id/metropolitan-district-council/leeds,Leeds City Council,30/09/2023,Strategy and Resources,Leeds Building Services,Supplies and Services,Operational Materials,205,27/09/2023,2309-00270,0.00,320.00,R,ADI-Gardiner Ltd,No
Http://opendatacommunities.org/id/metropolitan-district-council/leeds,Leeds City Council,30/09/2023,Strategy and Resources,Leeds Building Services,Supplies and Services,Operational Materials,205,27/09/2023,2309-00271,0.00,255.49,R,ADI-Gardiner Ltd,No
Http://opendatacommunities.org/id/metropolitan-district-council/leeds,Leeds City Council,30/09/2023,Strategy and Resources,Leeds Building Services,Premises,Cleaning Maintenance & Toiletries,127,28/09/2023,2309-00272,0.00,84.12,R,ADI-Gardiner Ltd,No
Http://opendatacommunities.org/id/metropolitan-district-council/leeds,Leeds City Council,30/09/2023,Strategy and Resources,Leeds Building Services,Premises,Cleaning Maintenance & Toiletries,127,28/09/2023,2309-00273,0.00,1273.10,R,ADI-Gardiner Ltd,No
Http://opendatacommunities.org/id/metropolitan-district-council/leeds,Leeds City Council,30/09/2023,Strategy and Resources,Leeds Building Services,Premises,Cleaning Maintenance & Toiletries,127,28/09/2023,2309-00274,0.00,218.94,R,ADI-Gardiner Ltd,No
Http://opendatacommunities.org/id/metropolitan-district-council/leeds,Leeds City Council,30/09/2023,Strategy and Resources,Leeds Building Services,Supplies and Services,Operational Materials,205,28/09/2023,2309-00275,0.00,934.12,R,ADI-Gardiner Ltd,No
Http://opendatacommunities.org/id/metropolitan-district-council/leeds,Leeds City Council,30/09/2023,Strategy and Resources,Leeds Building Services,Supplies and Services,Operational Materials,205,28/09/2023,2309-00276,0.00,104.48,R,ADI-Gardiner Ltd,No
Http://opendatacommunities.org/id/metropolitan-district-council/leeds,Leeds City Council,30/09/2023,Strategy and Resources,Leeds Building Services,Supplies and Services,Operational Materials,205,28/09/2023,2309-00277,0.00,2256.20,R,ADI-Gardiner Ltd,No
Http://opendatacommunities.org/id/metropolitan-district-council/leeds,Leeds City Council,30/09/2023,Strategy and Resources,Leeds Building Services,Supplies and Services,Operational Materials,205,28/09/2023,2309-00278,0.00,1562.79,R,ADI-Gardiner Ltd,No
Http://opendatacommunities.org/id/metropolitan-district-council/leeds,Leeds City Council,30/09/2023,Strategy and Resources,Leeds Building Services,Supplies and Services,Operational Materials,205,28/09/2023,2309-00279,0.00,3090.94,R,ADI-Gardiner Ltd,No
Http://opendatacommunities.org/id/metropolitan-district-council/leeds,Leeds City Council,30/09/2023,Strategy and Resources,Leeds Building Services,Supplies and Services,Operational Materials,205,28/09/2023,2309-00280,0.00,1555.37,R,ADI-Gardiner Ltd,No
Http://opendatacommunities.org/id/metropolitan-district-council/leeds,Leeds City Council,30/09/2023,Strategy and Resources,Leeds Building Services,Supplies and Services,Operational Materials,205,28/09/2023,2309-00281,0.00,104.22,R,ADI-Gardiner Ltd,No
Http://opendatacommunities.org/id/metropolitan-district-council/leeds,Leeds City Council,30/09/2023,Strategy and Resources,Leeds Building Services,Supplies and Services,Operational Materials,205,28/09/2023,2309-00282,0.00,484.13,R,ADI-Gardiner Ltd,No
Http://opendatacommunities.org/id/metropolitan-district-council/leeds,Leeds City Council,30/09/2023,Strategy and Resources,Leeds Building Services,Supplies and Services,Operational Materials,205,28/09/2023,2309-00283,0.00,11708.00,R,ADI-Gardiner Ltd,No
Http://opendatacommunities.org/id/metropolitan-district-council/leeds,Leeds City Council,30/09/2023,Strategy and Resources,Leeds Building Services,Supplies and Services,Operational Materials,205,28/09/2023,2309-00284,0.00,252.68,R,ADI-Gardiner Ltd,No
Http://opendatacommunities.org/id/metropolitan-district-council/leeds,Leeds City Council,30/09/2023,Strategy and Resources,Leeds Building Services,Supplies and Services,Operational Materials,205,28/09/2023,2309-00285,0.00,195.00,R,ADI-Gardiner Ltd,No
Http://opendatacommunities.org/id/metropolitan-district-council/leeds,Leeds City Council,30/09/2023,Strategic Landlord,Property and Contracts,Premises,Maintenance Of Buildings,101,06/09/2023,2309-00286,0.00,3000.00,R,REDACTED PERSONAL DATA,No
Http://opendatacommunities.org/id/metropolitan-district-council/leeds,Leeds City Council,30/09/2023,City Development,Recreation,External Income,Sporting & Other Recreational Fees,928,21/09/2023,2309-00287,0.00,275.28,R,REDACTED PERSONAL DATA,No
Http://opendatacommunities.org/id/metropolitan-district-council/leeds,Leeds City Council,30/09/2023,City Development,Libraries Arts & Heritage Total,Supplies and Services,Publication And Promotion,267,07/09/2023,2309-00288,0.00,43.32,R,Adobe Creative Cloud,Yes
Http://opendatacommunities.org/id/metropolitan-district-council/leeds,Leeds City Council,30/09/2023,City Development,Recreation Total,Supplies and Services,Computer Software & Equipment,214,21/09/2023,2309-00289,0.00,298.02,R,Adobe Creative Cloud,Yes
Http://opendatacommunities.org/id/metropolitan-district-council/leeds,Leeds City Council,30/09/2023,Children and Families,Social Care,Agency Payments,Independent Fostering Agencies,509,01/09/2023,2309-00290,0.00,3565.00,R,Adolescent And Childrens Trust,No
Http://opendatacommunities.org/id/metropolitan-district-council/leeds,Leeds City Council,30/09/2023,Children and Families,Social Care,Agency Payments,Independent Fostering Agencies,509,01/09/2023,2309-00291,0.00,3751.00,R,Adolescent And Childrens Trust,No
Http://opendatacommunities.org/id/metropolitan-district-council/leeds,Leeds City Council,30/09/2023,Children and Families,Social Care,Agency Payments,Independent Fostering Agencies,509,01/09/2023,2309-00292,0.00,3751.00,R,Adolescent And Childrens Trust,No
Http://opendatacommunities.org/id/metropolitan-district-council/leeds,Leeds City Council,30/09/2023,Children and Families,Social Care,Agency Payments,Independent Fostering Agencies,509,01/09/2023,2309-00293,0.00,3912.53,R,Adolescent And Childrens Trust,No
Http://opendatacommunities.org/id/metropolitan-district-council/leeds,Leeds City Council,30/09/2023,Children and Families,Social Care,Agency Payments,Independent Fostering Agencies,509,01/09/2023,2309-00294,0.00,3751.00,R,Adolescent And Childrens Trust,No
Http://opendatacommunities.org/id/metropolitan-district-council/leeds,Leeds City Council,30/09/2023,Children and Families,Social Care,Agency Payments,Independent Fostering Agencies,509,01/09/2023,2309-00295,0.00,3543.96,R,Adolescent And Childrens Trust,No
Http://opendatacommunities.org/id/metropolitan-district-council/leeds,Leeds City Council,30/09/2023,Children and Families,Social Care,Agency Payments,Independent Fostering Agencies,509,01/09/2023,2309-00296,0.00,3543.96,R,Adolescent And Childrens Trust,No
Http://opendatacommunities.org/id/metropolitan-district-council/leeds,Leeds City Council,30/09/2023,Children and Families,Social Care,Agency Payments,Independent Fostering Agencies,509,01/09/2023,2309-00297,0.00,3388.00,R,Adolescent And Childrens Trust,No
Http://opendatacommunities.org/id/metropolitan-district-council/leeds,Leeds City Council,30/09/2023,Children and Families,Social Care,Agency Payments,Independent Fostering Agencies,509,01/09/2023,2309-00298,0.00,3627.00,R,Adolescent And Childrens Trust,No
Http://opendatacommunities.org/id/metropolitan-district-council/leeds,Leeds City Council,30/09/2023,Children and Families,Social Care,Agency Payments,Independent Fostering Agencies,509,29/09/2023,2309-00299,0.00,572.85,R,Adolescent And Childrens Trust,No
Http://opendatacommunities.org/id/metropolitan-district-council/leeds,Leeds City Council,30/09/2023,Adults and Health,Services For Adults Under 65 Mental/Dis,Agency Payments,HCAIT Community Support,575,27/09/2023,2309-00300,0.00,3531.32,R,Adopt Healthcare Ltd,No
Http://opendatacommunities.org/id/metropolitan-district-council/leeds,Leeds City Council,30/09/2023,Adults and Health,Services For Older People - 65 And Over,Agency Payments,Home Care,568,27/09/2023,2309-00301,0.00,-0.02,R,Adopt Healthcare Ltd,No
Http://opendatacommunities.org/id/metropolitan-district-council/leeds,Leeds City Council,30/09/2023,Adults and Health,Services For Older People Under 65 P/Dis,Agency Payments,Home Care,568,27/09/2023,2309-00302,0.00,1385.70,R,Adopt Healthcare Ltd,No
Http://opendatacommunities.org/id/metropolitan-district-council/leeds,Leeds City Council,30/09/2023,Adults and Health,Services For Adults Under 65 Mental/Dis,Agency Payments,HCAIT Community Support,575,27/09/2023,2309-00303,0.00,3531.32,R,Adopt Healthcare Ltd,No
Http://opendatacommunities.org/id/metropolitan-district-council/leeds,Leeds City Council,30/09/2023,Adults and Health,Services For Older People - 65 And Over,Agency Payments,Home Care,568,27/09/2023,2309-00304,0.00,-0.02,R,Adopt Healthcare Ltd,No
Http://opendatacommunities.org/id/metropolitan-district-council/leeds,Leeds City Council,30/09/2023,Adults and Health,Services For Older People Under 65 P/Dis,Agency Payments,Home Care,568,27/09/2023,2309-00305,0.00,1408.05,R,Adopt Healthcare Ltd,No
Http://opendatacommunities.org/id/metropolitan-district-council/leeds,Leeds City Council,30/09/2023,Children and Families,Social Care,Agency Payments,Placement Support,550,06/09/2023,2309-00306,0.00,111.94,R,REDACTED PERSONAL DATA,No
Http://opendatacommunities.org/id/metropolitan-district-council/leeds,Leeds City Council as Accountable Body ,30/09/2023,Social Services Pooled Budgets,Jcs For People With Learning Disabilitie,Agency Payments,Residential,580,13/09/2023,2309-00307,0.00,2609.36,R,ADRIAN HOUSE,No
Http://opendatacommunities.org/id/metropolitan-district-council/leeds,Leeds City Council,30/09/2023,Communities Housing and Environment,Strategic Housing Partnership & Support,Capital,CONSTRUCTION,3,18/09/2023,2309-00308,0.00,7000.00,C,REDACTED PERSONAL DATA,No
Http://opendatacommunities.org/id/metropolitan-district-council/leeds,Leeds City Council,30/09/2023,Children and Families,Social Care,Agency Payments,Placement Support,550,18/09/2023,2309-00309,0.00,75.00,R,REDACTED PERSONAL DATA,No
Http://opendatacommunities.org/id/metropolitan-district-council/leeds,Leeds City Council,30/09/2023,Children and Families,Social Care,Agency Payments,Placement Support,550,25/09/2023,2309-00310,0.00,60.00,R,REDACTED PERSONAL DATA,No
Http://opendatacommunities.org/id/metropolitan-district-council/leeds,Leeds City Council,30/09/2023,City Development,Recreation,Supplies and Services,External Audit Fees,261,13/09/2023,2309-00311,0.00,140.00,R,ADVANCE STOCKS LTD,No
Http://opendatacommunities.org/id/metropolitan-district-council/leeds,Leeds City Council,30/09/2023,Children and Families,Social Care,Internal Recharges,Legal Disbursements,411,08/09/2023,2309-00312,0.00,255.63,R,ADVANCED CHILD CARE ASSESSMENTS LTD,No
Http://opendatacommunities.org/id/metropolitan-district-council/leeds,Leeds City Council,30/09/2023,Children and Families,Social Care,Internal Recharges,Legal Disbursements,411,29/09/2023,2309-00313,0.00,619.70,R,ADVANCED CHILD CARE ASSESSMENTS LTD,No
Http://opendatacommunities.org/id/metropolitan-district-council/leeds,Leeds City Council,30/09/2023,Adults and Health,Assessment And Care Management,Agency Payments,Home Care,568,20/09/2023,2309-00314,0.00,715.20,R,Advanced Medcare Ltd,No
Http://opendatacommunities.org/id/metropolitan-district-council/leeds,Leeds City Council,30/09/2023,Adults and Health,Services For Adults Under 65 Learn/Dis,Agency Payments,Home Care,568,20/09/2023,2309-00315,0.00,625.80,R,Advanced Medcare Ltd,No
Http://opendatacommunities.org/id/metropolitan-district-council/leeds,Leeds City Council,30/09/2023,Adults and Health,Services For Adults Under 65 Mental/Dis,Agency Payments,Home Care,568,20/09/2023,2309-00316,0.00,603.45,R,Advanced Medcare Ltd,No
Http://opendatacommunities.org/id/metropolitan-district-council/leeds,Leeds City Council,30/09/2023,Adults and Health,Services For Adults Under 65 Mental/Dis,Agency Payments,HCAIT Community Support,575,20/09/2023,2309-00317,0.00,268.20,R,Advanced Medcare Ltd,No
Http://opendatacommunities.org/id/metropolitan-district-council/leeds,Leeds City Council,30/09/2023,Adults and Health,Services For Older People - 65 And Over,Agency Payments,Home Care,568,20/09/2023,2309-00318,0.00,48556.19,R,Advanced Medcare Ltd,No
Http://opendatacommunities.org/id/metropolitan-district-council/leeds,Leeds City Council,30/09/2023,Adults and Health,Services For Older People - 65 And Over,Agency Payments,HCAIT Community Support,575,20/09/2023,2309-00319,0.00,1072.80,R,Advanced Medcare Ltd,No
Http://opendatacommunities.org/id/metropolitan-district-council/leeds,Leeds City Council,30/09/2023,Adults and Health,Services For Older People Under 65 P/Dis,Agency Payments,Home Care,568,20/09/2023,2309-00320,0.00,23389.32,R,Advanced Medcare Ltd,No
Http://opendatacommunities.org/id/metropolitan-district-council/leeds,Leeds City Council,30/09/2023,Adults and Health,Services For Older People Under 65 P/Dis,Agency Payments,HCAIT Community Support,575,20/09/2023,2309-00321,0.00,692.85,R,Advanced Medcare Ltd,No
Http://opendatacommunities.org/id/metropolitan-district-council/leeds,Leeds City Council as Accountable Body ,30/09/2023,Social Services Pooled Budgets,Jcs For People With Learning Disabilitie,Agency Payments,Home Care,568,20/09/2023,2309-00322,0.00,1251.60,R,Advanced Medcare Ltd,No
Http://opendatacommunities.org/id/metropolitan-district-council/leeds,Leeds City Council as Accountable Body ,30/09/2023,Social Services Pooled Budgets,Jcs For People With Learning Disabilitie,Agency Payments,Home Care,568,01/09/2023,2309-00323,0.00,8162.91,R,Advantage Healthcare Ltd,No
Http://opendatacommunities.org/id/metropolitan-district-council/leeds,Leeds City Council as Accountable Body ,30/09/2023,Social Services Pooled Budgets,Jcs For People With Learning Disabilitie,Agency Payments,Home Care,568,29/09/2023,2309-00324,0.00,7218.90,R,Advantage Healthcare Ltd,No
Http://opendatacommunities.org/id/metropolitan-district-council/leeds,Leeds City Council,30/09/2023,Adults and Health,Services For Adults Under 65 Mental/Dis,Agency Payments,Home Care,568,01/09/2023,2309-00325,0.00,54.90,R,Advonet,No
Http://opendatacommunities.org/id/metropolitan-district-council/leeds,Leeds City Council,30/09/2023,Adults and Health,Services For Adults Under 65 Mental/Dis,Agency Payments,Home Care,568,04/09/2023,2309-00326,0.00,217.80,R,Advonet,No
Http://opendatacommunities.org/id/metropolitan-district-council/leeds,Leeds City Council,30/09/2023,Adults and Health,Services For Adults Under 65 Mental/Dis,Agency Payments,Home Care,568,14/09/2023,2309-00327,0.00,12.60,R,Advonet,No
Http://opendatacommunities.org/id/metropolitan-district-council/leeds,Leeds City Council,30/09/2023,Adults and Health,Services For Adults Under 65 Mental/Dis,Agency Payments,Home Care,568,14/09/2023,2309-00328,0.00,87.60,R,Advonet,No
Http://opendatacommunities.org/id/metropolitan-district-council/leeds,Leeds City Council,30/09/2023,City Development,Highways,Capital,OTHER COSTS,7,06/09/2023,2309-00329,0.00,94659.20,C,Aecom Limited,No
Http://opendatacommunities.org/id/metropolitan-district-council/leeds,Leeds City Council,30/09/2023,City Development,Highways,Capital,OTHER COSTS,7,07/09/2023,2309-00330,0.00,31743.80,C,Aecom Limited,No
Http://opendatacommunities.org/id/metropolitan-district-council/leeds,Leeds City Council,30/09/2023,Communities Housing and Environment,Climate Energy & Greenspaces,Supplies and Services,Consultancy Services,259,15/09/2023,2309-00331,0.00,53547.16,R,Aecom Limited,No
Http://opendatacommunities.org/id/metropolitan-district-council/leeds,Leeds City Council,30/09/2023,Adults and Health,Services For Adults Under 65 Mental/Dis,Agency Payments,Home Care,568,01/09/2023,2309-00332,0.00,938.70,R,Aegis Care Solutions Ltd,No
Http://opendatacommunities.org/id/metropolitan-district-council/leeds,Leeds City Council,30/09/2023,Adults and Health,Services For Adults Under 65 Mental/Dis,Agency Payments,Home Care,568,01/09/2023,2309-00333,0.00,670.50,R,Aegis Care Solutions Ltd,No
Http://opendatacommunities.org/id/metropolitan-district-council/leeds,Leeds City Council,30/09/2023,Adults and Health,Services For Adults Under 65 Mental/Dis,Agency Payments,Home Care,568,01/09/2023,2309-00334,0.00,1379.55,R,Aegis Care Solutions Ltd,No
Http://opendatacommunities.org/id/metropolitan-district-council/leeds,Leeds City Council,30/09/2023,Adults and Health,Services For Adults Under 65 Mental/Dis,Agency Payments,Home Care,568,01/09/2023,2309-00335,0.00,5196.22,R,Aegis Care Solutions Ltd,No
Http://opendatacommunities.org/id/metropolitan-district-council/leeds,Leeds City Council,30/09/2023,Adults and Health,Services For Adults Under 65 Mental/Dis,Agency Payments,Home Care,568,01/09/2023,2309-00336,0.00,1080.00,R,Aegis Care Solutions Ltd,No
Http://opendatacommunities.org/id/metropolitan-district-council/leeds,Leeds City Council,30/09/2023,Adults and Health,Services For Adults Under 65 Mental/Dis,Agency Payments,Home Care,568,01/09/2023,2309-00337,0.00,2593.34,R,Aegis Care Solutions Ltd,No
Http://opendatacommunities.org/id/metropolitan-district-council/leeds,Leeds City Council,30/09/2023,Adults and Health,Services For Adults Under 65 Mental/Dis,Agency Payments,Home Care,568,01/09/2023,2309-00338,0.00,2121.56,R,Aegis Care Solutions Ltd,No
Http://opendatacommunities.org/id/metropolitan-district-council/leeds,Leeds City Council,30/09/2023,Adults and Health,Services For Adults Under 65 Mental/Dis,Agency Payments,Home Care,568,01/09/2023,2309-00339,0.00,2418.15,R,Aegis Care Solutions Ltd,No
Http://opendatacommunities.org/id/metropolitan-district-council/leeds,Leeds City Council,30/09/2023,Adults and Health,Services For Adults Under 65 Mental/Dis,Agency Payments,Home Care,568,01/09/2023,2309-00340,0.00,1385.70,R,Aegis Care Solutions Ltd,No
Http://opendatacommunities.org/id/metropolitan-district-council/leeds,Leeds City Council,30/09/2023,Adults and Health,Services For Adults Under 65 Mental/Dis,Agency Payments,Home Care,568,01/09/2023,2309-00341,0.00,357.60,R,Aegis Care Solutions Ltd,No
Http://opendatacommunities.org/id/metropolitan-district-council/leeds,Leeds City Council,30/09/2023,Adults and Health,Services For Adults Under 65 Mental/Dis,Agency Payments,Home Care,568,01/09/2023,2309-00342,0.00,536.40,R,Aegis Care Solutions Ltd,No
Http://opendatacommunities.org/id/metropolitan-district-council/leeds,Leeds City Council as Accountable Body ,30/09/2023,Social Services Pooled Budgets,Jcs For People With Learning Disabilitie,Agency Payments,Home Care,568,01/09/2023,2309-00343,0.00,1452.75,R,Aegis Care Solutions Ltd,No
Http://opendatacommunities.org/id/metropolitan-district-council/leeds,Leeds City Council,30/09/2023,Adults and Health,Services For Adults Under 65 Mental/Dis,Agency Payments,Home Care,568,18/09/2023,2309-00344,0.00,783.20,R,Aegis Care Solutions Ltd,No
Http://opendatacommunities.org/id/metropolitan-district-council/leeds,Leeds City Council,30/09/2023,Adults and Health,Services For Older People - 65 And Over,Agency Payments,Home Care,568,27/09/2023,2309-00345,0.00,40252.31,R,Aegis Care Solutions Ltd,No
Http://opendatacommunities.org/id/metropolitan-district-council/leeds,Leeds City Council,30/09/2023,Adults and Health,Services For Older People - 65 And Over,Agency Payments,HCAIT Community Support,575,27/09/2023,2309-00346,0.00,357.60,R,Aegis Care Solutions Ltd,No
Http://opendatacommunities.org/id/metropolitan-district-council/leeds,Leeds City Council,30/09/2023,Adults and Health,Services For Older People - 65 And Over,Agency Payments,HCAIT Other,577,27/09/2023,2309-00347,0.00,1313.29,R,Aegis Care Solutions Ltd,No
Http://opendatacommunities.org/id/metropolitan-district-council/leeds,Leeds City Council,30/09/2023,Adults and Health,Services For Older People Under 65 P/Dis,Agency Payments,Home Care,568,27/09/2023,2309-00348,0.00,7455.16,R,Aegis Care Solutions Ltd,No
Http://opendatacommunities.org/id/metropolitan-district-council/leeds,Leeds City Council as Accountable Body ,30/09/2023,Social Services Pooled Budgets,Jcs For People With Learning Disabilitie,Agency Payments,Home Care,568,27/09/2023,2309-00349,0.00,4425.32,R,Aegis Care Solutions Ltd,No
Http://opendatacommunities.org/id/metropolitan-district-council/leeds,Leeds City Council,30/09/2023,Adults and Health,Services For Adults Under 65 Mental/Dis,Agency Payments,Home Care,568,29/09/2023,2309-00350,0.00,849.30,R,Aegis Care Solutions Ltd,No
Http://opendatacommunities.org/id/metropolitan-district-council/leeds,Leeds City Council,30/09/2023,Adults and Health,Services For Adults Under 65 Mental/Dis,Agency Payments,Home Care,568,29/09/2023,2309-00351,0.00,536.40,R,Aegis Care Solutions Ltd,No
Http://opendatacommunities.org/id/metropolitan-district-council/leeds,Leeds City Council,30/09/2023,Adults and Health,Services For Adults Under 65 Mental/Dis,Agency Payments,Home Care,568,29/09/2023,2309-00352,0.00,1379.55,R,Aegis Care Solutions Ltd,No
Http://opendatacommunities.org/id/metropolitan-district-council/leeds,Leeds City Council,30/09/2023,Adults and Health,Services For Adults Under 65 Mental/Dis,Agency Payments,Home Care,568,29/09/2023,2309-00353,0.00,5196.22,R,Aegis Care Solutions Ltd,No
Http://opendatacommunities.org/id/metropolitan-district-council/leeds,Leeds City Council,30/09/2023,Adults and Health,Services For Adults Under 65 Mental/Dis,Agency Payments,Home Care,568,29/09/2023,2309-00354,0.00,1093.50,R,Aegis Care Solutions Ltd,No
Http://opendatacommunities.org/id/metropolitan-district-council/leeds,Leeds City Council,30/09/2023,Adults and Health,Services For Adults Under 65 Mental/Dis,Agency Payments,Home Care,568,29/09/2023,2309-00355,0.00,2045.20,R,Aegis Care Solutions Ltd,No
Http://opendatacommunities.org/id/metropolitan-district-council/leeds,Leeds City Council,30/09/2023,Adults and Health,Services For Adults Under 65 Mental/Dis,Agency Payments,Home Care,568,29/09/2023,2309-00356,0.00,2566.20,R,Aegis Care Solutions Ltd,No
Http://opendatacommunities.org/id/metropolitan-district-council/leeds,Leeds City Council,30/09/2023,Adults and Health,Services For Adults Under 65 Mental/Dis,Agency Payments,Home Care,568,29/09/2023,2309-00357,0.00,804.60,R,Aegis Care Solutions Ltd,No
Http://opendatacommunities.org/id/metropolitan-district-council/leeds,Leeds City Council,30/09/2023,Adults and Health,Services For Adults Under 65 Mental/Dis,Agency Payments,Home Care,568,29/09/2023,2309-00358,0.00,1385.70,R,Aegis Care Solutions Ltd,No
Http://opendatacommunities.org/id/metropolitan-district-council/leeds,Leeds City Council,30/09/2023,Adults and Health,Services For Adults Under 65 Mental/Dis,Agency Payments,Home Care,568,29/09/2023,2309-00359,0.00,447.00,R,Aegis Care Solutions Ltd,No
Http://opendatacommunities.org/id/metropolitan-district-council/leeds,Leeds City Council,30/09/2023,Adults and Health,Services For Adults Under 65 Mental/Dis,Agency Payments,Home Care,568,29/09/2023,2309-00360,0.00,536.40,R,Aegis Care Solutions Ltd,No
Http://opendatacommunities.org/id/metropolitan-district-council/leeds,Leeds City Council as Accountable Body ,30/09/2023,Social Services Pooled Budgets,Jcs For People With Learning Disabilitie,Agency Payments,Home Care,568,29/09/2023,2309-00361,0.00,1564.50,R,Aegis Care Solutions Ltd,No
Http://opendatacommunities.org/id/metropolitan-district-council/leeds,Leeds City Council,30/09/2023,Insurance,Insurance,Supplies and Services,Insurance Claims,248,28/09/2023,2309-00362,0.00,1500.00,R,REDACTED PERSONAL DATA,No
Http://opendatacommunities.org/id/metropolitan-district-council/leeds,Leeds City Council as Accountable Body ,30/09/2023,Social Services Pooled Budgets,Jcs For People With Learning Disabilitie,Agency Payments,Day Centre,564,08/09/2023,2309-00363,0.00,-896.22,R,Affinity Trust,No
Http://opendatacommunities.org/id/metropolitan-district-council/leeds,Leeds City Council,30/09/2023,Adults and Health,Services For Adults Under 65 Mental/Dis,Agency Payments,Home Care,568,08/09/2023,2309-00364,0.00,3469.29,R,Affinity Trust,No
Http://opendatacommunities.org/id/metropolitan-district-council/leeds,Leeds City Council as Accountable Body ,30/09/2023,Social Services Pooled Budgets,Jcs For People With Learning Disabilitie,Agency Payments,Day Centre,564,20/09/2023,2309-00365,0.00,19262.66,R,Affinity Trust,No
Http://opendatacommunities.org/id/metropolitan-district-council/leeds,Leeds City Council as Accountable Body ,30/09/2023,Social Services Pooled Budgets,Jcs For People With Learning Disabilitie,Agency Payments,Day Centre,564,20/09/2023,2309-00366,0.00,20192.80,R,Affinity Trust,No
Http://opendatacommunities.org/id/metropolitan-district-council/leeds,Leeds City Council as Accountable Body ,30/09/2023,Social Services Pooled Budgets,Jcs For People With Learning Disabilitie,Agency Payments,Day Centre,564,20/09/2023,2309-00367,0.00,35430.08,R,Affinity Trust,No
Http://opendatacommunities.org/id/metropolitan-district-council/leeds,Leeds City Council as Accountable Body ,30/09/2023,Social Services Pooled Budgets,Jcs For People With Learning Disabilitie,Agency Payments,Day Centre,564,20/09/2023,2309-00368,0.00,35430.08,R,Affinity Trust,No
Http://opendatacommunities.org/id/metropolitan-district-council/leeds,Leeds City Council,30/09/2023,Adults and Health,Services For Adults Under 65 Mental/Dis,Agency Payments,HCAIT Community Support,575,20/09/2023,2309-00369,0.00,999.96,R,Affinity Trust,No
Http://opendatacommunities.org/id/metropolitan-district-council/leeds,Leeds City Council,30/09/2023,Adults and Health,Services For Older People - 65 And Over,Agency Payments,HCAIT Community Support,575,20/09/2023,2309-00370,0.00,692.28,R,Affinity Trust,No
Http://opendatacommunities.org/id/metropolitan-district-council/leeds,Leeds City Council,30/09/2023,Adults and Health,Services For Older People Under 65 P/Dis,Agency Payments,HCAIT Community Support,575,20/09/2023,2309-00371,0.00,1769.16,R,Affinity Trust,No
Http://opendatacommunities.org/id/metropolitan-district-council/leeds,Leeds City Council,30/09/2023,Adults and Health,Services For Adults Under 65 Mental/Dis,Agency Payments,Home Care,568,29/09/2023,2309-00372,0.00,230.76,R,Affinity Trust,No
Http://opendatacommunities.org/id/metropolitan-district-council/leeds,Leeds City Council as Accountable Body ,30/09/2023,Social Services Pooled Budgets,Jcs For People With Learning Disabilitie,Agency Payments,Sheltered Accommodation,569,13/09/2023,2309-00373,0.00,153083.04,R,Affinity Trust North Divisional Office,No
Http://opendatacommunities.org/id/metropolitan-district-council/leeds,Leeds City Council,30/09/2023,Insurance,Insurance,Supplies and Services,Insurance Claims,248,21/09/2023,2309-00374,0.00,5769.42,R,Affirm Legal,No
Http://opendatacommunities.org/id/metropolitan-district-council/leeds,Leeds City Council,30/09/2023,Children and Families,Social Care,Appropriations,Leaving Care Allowances,634,07/09/2023,2309-00375,0.00,195.00,R,REDACTED PERSONAL DATA,No
Http://opendatacommunities.org/id/metropolitan-district-council/leeds,Leeds City Council,30/09/2023,Children and Families,Social Care,Appropriations,Leaving Care Grants,635,12/09/2023,2309-00376,0.00,195.00,R,REDACTED PERSONAL DATA,No
Http://opendatacommunities.org/id/metropolitan-district-council/leeds,Leeds City Council,30/09/2023,Adults and Health,Services For Older People - 65 And Over,Agency Payments,Payments To Voluntary Organisations,561,29/09/2023,2309-00377,0.00,9539.75,R,Age Uk Leeds,No
Http://opendatacommunities.org/id/metropolitan-district-council/leeds,Leeds City Council,30/09/2023,Communities Housing and Environment,Communities,Supplies and Services,Other Hired And Contracted Services,265,29/09/2023,2309-00378,0.00,290.00,R,Age Uk Leeds,No
Http://opendatacommunities.org/id/metropolitan-district-council/leeds,Leeds City Council,30/09/2023,Communities Housing and Environment,Customer Access,Supplies and Services,Bought In Professional Services,277,13/09/2023,2309-00379,0.00,18.00,R,Agnieszka J Collier,No
Http://opendatacommunities.org/id/metropolitan-district-council/leeds,Leeds City Council,30/09/2023,Communities Housing and Environment,Customer Access,Supplies and Services,Bought In Professional Services,277,27/09/2023,2309-00380,0.00,18.00,R,Agnieszka J Collier,No
Http://opendatacommunities.org/id/metropolitan-district-council/leeds,Leeds City Council,30/09/2023,Communities Housing and Environment,Customer Access,Supplies and Services,Bought In Professional Services,277,27/09/2023,2309-00381,0.00,18.00,R,Agnieszka J Collier,No
Http://opendatacommunities.org/id/metropolitan-district-council/leeds,Leeds City Council,30/09/2023,Communities Housing and Environment,Customer Access,Supplies and Services,Bought In Professional Services,277,13/09/2023,2309-00382,0.00,13.50,R,Agnieszka Jablonska,No
Http://opendatacommunities.org/id/metropolitan-district-council/leeds,Leeds City Council,30/09/2023,Communities Housing and Environment,Customer Access,Supplies and Services,Bought In Professional Services,277,13/09/2023,2309-00383,0.00,27.00,R,Agnieszka Jablonska,No
Http://opendatacommunities.org/id/metropolitan-district-council/leeds,Leeds City Council,30/09/2023,Communities Housing and Environment,Customer Access,Supplies and Services,Bought In Professional Services,277,13/09/2023,2309-00384,0.00,18.00,R,Agnieszka Jablonska,No
Http://opendatacommunities.org/id/metropolitan-district-council/leeds,Leeds City Council,30/09/2023,Communities Housing and Environment,Customer Access,Supplies and Services,Bought In Professional Services,277,13/09/2023,2309-00385,0.00,18.00,R,Agnieszka Jablonska,No
Http://opendatacommunities.org/id/metropolitan-district-council/leeds,Leeds City Council,30/09/2023,Communities Housing and Environment,Customer Access,Supplies and Services,Bought In Professional Services,277,20/09/2023,2309-00386,0.00,18.00,R,Agnieszka Jablonska,No
Http://opendatacommunities.org/id/metropolitan-district-council/leeds,Leeds City Council,30/09/2023,Communities Housing and Environment,Customer Access,Supplies and Services,Bought In Professional Services,277,27/09/2023,2309-00387,0.00,22.50,R,Agnieszka Jablonska,No
Http://opendatacommunities.org/id/metropolitan-district-council/leeds,Leeds City Council,30/09/2023,Communities Housing and Environment,Customer Access,Supplies and Services,Bought In Professional Services,277,27/09/2023,2309-00388,0.00,18.00,R,Agnieszka Jablonska,No
Http://opendatacommunities.org/id/metropolitan-district-council/leeds,Leeds City Council,30/09/2023,Children and Families,Social Care Total,Agency Payments,Section 17,551,01/09/2023,2309-00389,0.00,240.00,R,Agoda.Com Art Hostel,Yes
Http://opendatacommunities.org/id/metropolitan-district-council/leeds,Leeds City Council,30/09/2023,Communities Housing and Environment,Strategic Housing Partnership & Support Total,Supplies and Services,Other Hired And Contracted Services,265,18/09/2023,2309-00390,0.00,100.00,R,Agoda.Com Bethel Apa,Yes
Http://opendatacommunities.org/id/metropolitan-district-council/leeds,Leeds City Council,30/09/2023,Communities Housing and Environment,Customer Access,Supplies and Services,Bought In Professional Services,277,13/09/2023,2309-00391,0.00,27.00,R,Ahamat Hassan,No
Http://opendatacommunities.org/id/metropolitan-district-council/leeds,Leeds City Council,30/09/2023,Children and Families,Social Care,Agency Payments,Placement Support,550,19/09/2023,2309-00392,0.00,141.10,R,REDACTED PERSONAL DATA,No
Http://opendatacommunities.org/id/metropolitan-district-council/leeds,Leeds City Council,30/09/2023,Communities Housing and Environment,Customer Access,Supplies and Services,Bought In Professional Services,277,13/09/2023,2309-00393,0.00,18.00,R,Ahmed Moustafa Moustafa Mousa,No
Http://opendatacommunities.org/id/metropolitan-district-council/leeds,Leeds City Council,30/09/2023,Communities Housing and Environment,Customer Access,Supplies and Services,Bought In Professional Services,277,27/09/2023,2309-00394,0.00,18.00,R,Ahmed Moustafa Moustafa Mousa,No
Http://opendatacommunities.org/id/metropolitan-district-council/leeds,Leeds City Council,30/09/2023,Strategic Landlord,Housing Management,Supplies and Services,Compensation Claims,200,12/09/2023,2309-00395,0.00,100.00,R,REDACTED PERSONAL DATA,No
Http://opendatacommunities.org/id/metropolitan-district-council/leeds,Leeds City Council,30/09/2023,Children and Families,Social Care,Agency Payments,General External Residential Placements,507,08/09/2023,2309-00396,0.00,33800.00,R,AHT Care Ltd,No
Http://opendatacommunities.org/id/metropolitan-district-council/leeds,Leeds City Council,30/09/2023,Children and Families,Social Care,Agency Payments,General External Residential Placements,507,22/09/2023,2309-00397,0.00,33800.00,R,AHT Care Ltd,No
Http://opendatacommunities.org/id/metropolitan-district-council/leeds,Leeds City Council,30/09/2023,Communities Housing and Environment,Customer Access,Supplies and Services,Bought In Professional Services,277,06/09/2023,2309-00398,0.00,18.00,R,Aida Moustafa,No
Http://opendatacommunities.org/id/metropolitan-district-council/leeds,Leeds City Council,30/09/2023,Communities Housing and Environment,Customer Access,Supplies and Services,Bought In Professional Services,277,13/09/2023,2309-00399,0.00,18.00,R,Aida Moustafa,No
Http://opendatacommunities.org/id/metropolitan-district-council/leeds,Leeds City Council as Accountable Body ,30/09/2023,Social Services Pooled Budgets,Leeds Community Equip Store Pooled Budgt,Supplies and Services,Other Equipment,203,01/09/2023,2309-00400,0.00,1953.40,R,AIDAPT BATHROOMS LTD,No
Http://opendatacommunities.org/id/metropolitan-district-council/leeds,Leeds City Council as Accountable Body ,30/09/2023,Social Services Pooled Budgets,Leeds Community Equip Store Pooled Budgt,Supplies and Services,Other Equipment,203,01/09/2023,2309-00401,0.00,2925.00,R,AIDAPT BATHROOMS LTD,No
Http://opendatacommunities.org/id/metropolitan-district-council/leeds,Leeds City Council as Accountable Body ,30/09/2023,Social Services Pooled Budgets,Leeds Community Equip Store Pooled Budgt,Supplies and Services,Other Equipment,203,01/09/2023,2309-00402,0.00,1600.00,R,AIDAPT BATHROOMS LTD,No
Http://opendatacommunities.org/id/metropolitan-district-council/leeds,Leeds City Council as Accountable Body ,30/09/2023,Social Services Pooled Budgets,Leeds Community Equip Store Pooled Budgt,Supplies and Services,Other Equipment,203,01/09/2023,2309-00403,0.00,1462.50,R,AIDAPT BATHROOMS LTD,No
Http://opendatacommunities.org/id/metropolitan-district-council/leeds,Leeds City Council as Accountable Body ,30/09/2023,Social Services Pooled Budgets,Leeds Community Equip Store Pooled Budgt,Supplies and Services,Other Equipment,203,08/09/2023,2309-00404,0.00,200.00,R,AIDAPT BATHROOMS LTD,No
Http://opendatacommunities.org/id/metropolitan-district-council/leeds,Leeds City Council as Accountable Body ,30/09/2023,Social Services Pooled Budgets,Leeds Community Equip Store Pooled Budgt,Supplies and Services,Other Equipment,203,08/09/2023,2309-00405,0.00,1787.50,R,AIDAPT BATHROOMS LTD,No
Http://opendatacommunities.org/id/metropolitan-district-council/leeds,Leeds City Council as Accountable Body ,30/09/2023,Social Services Pooled Budgets,Leeds Community Equip Store Pooled Budgt,Supplies and Services,Other Equipment,203,08/09/2023,2309-00406,0.00,1235.00,R,AIDAPT BATHROOMS LTD,No
Http://opendatacommunities.org/id/metropolitan-district-council/leeds,Leeds City Council as Accountable Body ,30/09/2023,Social Services Pooled Budgets,Leeds Community Equip Store Pooled Budgt,Supplies and Services,Other Equipment,203,21/09/2023,2309-00407,0.00,5225.00,R,AIDAPT BATHROOMS LTD,No
Http://opendatacommunities.org/id/metropolitan-district-council/leeds,Leeds City Council,30/09/2023,City Development,Libraries Arts & Heritage,Supplies and Services,Memberships,226,13/09/2023,2309-00408,0.00,2173.50,R,AIMediaData Limited,No
Http://opendatacommunities.org/id/metropolitan-district-council/leeds,Leeds City Council,30/09/2023,Children and Families,Learning,Appropriations,Direct Payments,626,08/09/2023,2309-00409,0.00,2500.00,R,REDACTED PERSONAL DATA,No
Http://opendatacommunities.org/id/metropolitan-district-council/leeds,Leeds City Council,30/09/2023,Strategy and Resources,Leeds Building Services,Supplies and Services,Operational Materials,205,08/09/2023,2309-00410,0.00,157.61,R,Air Conditioning Accessories,No
Http://opendatacommunities.org/id/metropolitan-district-council/leeds,Leeds City Council,30/09/2023,Strategy and Resources,Leeds Building Services,Supplies and Services,Operational Materials,205,08/09/2023,2309-00411,0.00,25.20,R,Air Conditioning Accessories,No
Http://opendatacommunities.org/id/metropolitan-district-council/leeds,Leeds City Council,30/09/2023,Strategy and Resources,Leeds Building Services,Supplies and Services,Operational Materials,205,13/09/2023,2309-00412,0.00,58.51,R,Air Conditioning Accessories,No
Http://opendatacommunities.org/id/metropolitan-district-council/leeds,Leeds City Council,30/09/2023,Strategy and Resources,Leeds Building Services,Supplies and Services,Operational Materials,205,15/09/2023,2309-00413,0.00,14.78,R,Air Conditioning Accessories,No
Http://opendatacommunities.org/id/metropolitan-district-council/leeds,Leeds City Council,30/09/2023,Strategy and Resources,Leeds Building Services,Supplies and Services,Operational Materials,205,28/09/2023,2309-00414,0.00,374.17,R,Air Conditioning Accessories,No
Http://opendatacommunities.org/id/metropolitan-district-council/leeds,Leeds City Council,30/09/2023,Strategy and Resources,Leeds Building Services,Supplies and Services,Operational Materials,205,28/09/2023,2309-00415,0.00,89.51,R,Air Conditioning Accessories,No
Http://opendatacommunities.org/id/metropolitan-district-council/leeds,Leeds City Council,30/09/2023,Strategy and Resources,Commercial Services Total,Supplies and Services,Operational Materials,205,21/09/2023,2309-00416,0.00,96.67,R,Air Force Pneumatics And,Yes
Http://opendatacommunities.org/id/metropolitan-district-council/leeds,Leeds City Council,30/09/2023,Strategy and Resources,Commercial Services Total,Supplies and Services,Operational Materials,205,22/09/2023,2309-00417,0.00,126.67,R,Air Force Pneumatics And,Yes
Http://opendatacommunities.org/id/metropolitan-district-council/leeds,Leeds City Council,30/09/2023,Communities Housing and Environment,Environmental Health,Supplies and Services,Other Hired And Contracted Services,265,01/09/2023,2309-00418,0.00,11.75,R,AIR LIQUIDE UK,No
Http://opendatacommunities.org/id/metropolitan-district-council/leeds,Leeds City Council,30/09/2023,Communities Housing and Environment,Environmental Health,Supplies and Services,Other Hired And Contracted Services,265,01/09/2023,2309-00419,0.00,11.75,R,AIR LIQUIDE UK,No
Http://opendatacommunities.org/id/metropolitan-district-council/leeds,Leeds City Council,30/09/2023,Communities Housing and Environment,Environmental Health,Supplies and Services,Other Hired And Contracted Services,265,01/09/2023,2309-00420,0.00,11.75,R,AIR LIQUIDE UK,No
Http://opendatacommunities.org/id/metropolitan-district-council/leeds,Leeds City Council,30/09/2023,Communities Housing and Environment,Environmental Health,Supplies and Services,Other Hired And Contracted Services,265,01/09/2023,2309-00421,0.00,94.00,R,AIR LIQUIDE UK,No
Http://opendatacommunities.org/id/metropolitan-district-council/leeds,Leeds City Council,30/09/2023,Strategic Landlord,Property and Contracts Total,Transport,Public Transport Expenses,310,15/09/2023,2309-00422,0.00,712.87,R,Airbnb * Hm32fpsxnb,Yes
Http://opendatacommunities.org/id/metropolitan-district-council/leeds,Leeds City Council,30/09/2023,Children and Families,Social Care Total,Transport,Public Transport Expenses,310,12/09/2023,2309-00423,0.00,735.09,R,Airbnb * Hm3swtcpsh,Yes
Http://opendatacommunities.org/id/metropolitan-district-council/leeds,Leeds City Council,30/09/2023,Children and Families,Social Care Total,Transport,Public Transport Expenses,310,21/09/2023,2309-00424,0.00,735.40,R,Airbnb * Hmfmwmj5a8,Yes
Http://opendatacommunities.org/id/metropolitan-district-council/leeds,Leeds City Council,30/09/2023,City Development,Libraries Arts & Heritage Total,Supplies and Services,Other Hired And Contracted Services,265,06/09/2023,2309-00425,0.00,199.66,R,Airbnb * Hmkt5jw239,Yes
Http://opendatacommunities.org/id/metropolitan-district-council/leeds,Leeds City Council,30/09/2023,City Development,Libraries Arts & Heritage Total,Supplies and Services,Hospitality,255,03/09/2023,2309-00426,0.00,488.98,R,Airbnb * Hmtkfct5t3,Yes
Http://opendatacommunities.org/id/metropolitan-district-council/leeds,Leeds City Council,30/09/2023,City Development,Libraries Arts & Heritage Total,Supplies and Services,Other Hired And Contracted Services,265,06/09/2023,2309-00427,0.00,391.39,R,Airbnb * Hmzpjkzkbh,Yes
Http://opendatacommunities.org/id/metropolitan-district-council/leeds,Leeds City Council,30/09/2023,Children and Families,Social Care Total,Transport,Public Transport Expenses,310,25/09/2023,2309-00428,0.00,15.00,R,Airbnb * Inc,Yes
Http://opendatacommunities.org/id/metropolitan-district-council/leeds,Leeds City Council,30/09/2023,Strategy and Resources,Human Resources,Employees,Occupational Health,85,14/09/2023,2309-00429,0.00,80.00,R,Aire Valley Surgery,No
Http://opendatacommunities.org/id/metropolitan-district-council/leeds,Leeds City Council,30/09/2023,Communities Housing and Environment,Climate Energy & Greenspaces,Supplies and Services,Other Hired And Contracted Services,265,14/09/2023,2309-00430,0.00,4330.00,R,Aire Valley Tree Services Ltd,No
Http://opendatacommunities.org/id/metropolitan-district-council/leeds,Leeds City Council,30/09/2023,Communities Housing and Environment,Climate Energy & Greenspaces,Supplies and Services,Other Hired And Contracted Services,265,14/09/2023,2309-00431,0.00,842.00,R,Aire Valley Tree Services Ltd,No
Http://opendatacommunities.org/id/metropolitan-district-council/leeds,Leeds City Council,30/09/2023,Communities Housing and Environment,Climate Energy & Greenspaces,Supplies and Services,Other Hired And Contracted Services,265,22/09/2023,2309-00432,0.00,145.00,R,Aire Valley Tree Services Ltd,No
Http://opendatacommunities.org/id/metropolitan-district-council/leeds,Leeds City Council,30/09/2023,Adults and Health,Services For Older People - 65 And Over,Agency Payments,Residential Care Dementia,571,13/09/2023,2309-00433,0.00,42423.65,R,Aire View Residential Home,No
Http://opendatacommunities.org/id/metropolitan-district-council/leeds,Leeds City Council,30/09/2023,Adults and Health,Services For Older People - 65 And Over,Agency Payments,Residential,580,13/09/2023,2309-00434,0.00,12782.80,R,Aire View Residential Home,No
Http://opendatacommunities.org/id/metropolitan-district-council/leeds,Leeds City Council,30/09/2023,Adults and Health,Assessment And Care Management,Agency Payments,Residential,580,22/09/2023,2309-00435,0.00,14256.00,R,Airedale No1 LTD,No
Http://opendatacommunities.org/id/metropolitan-district-council/leeds,Leeds City Council,30/09/2023,Adults and Health,Services For Older People - 65 And Over,Agency Payments,Residential Care Dementia,571,13/09/2023,2309-00436,0.00,21800.13,R,Airedale Residential Home,No
Http://opendatacommunities.org/id/metropolitan-district-council/leeds,Leeds City Council,30/09/2023,Adults and Health,Services For Older People - 65 And Over,Agency Payments,Residential,580,13/09/2023,2309-00437,0.00,26115.57,R,Airedale Residential Home,No
Http://opendatacommunities.org/id/metropolitan-district-council/leeds,Leeds City Council,30/09/2023,Adults and Health,Services For Older People Under 65 P/Dis,Agency Payments,Residential Care Dementia,571,13/09/2023,2309-00438,0.00,-13102.67,R,Airedale Residential Home,No
Http://opendatacommunities.org/id/metropolitan-district-council/leeds,Leeds City Council,30/09/2023,Communities Housing and Environment,Environmental Health,Supplies and Services,Other Hired And Contracted Services,265,15/09/2023,2309-00439,0.00,393.40,R,Aireworth Vets,No
Http://opendatacommunities.org/id/metropolitan-district-council/leeds,Leeds City Council,30/09/2023,Children and Families,Social Care Total,Transport,Public Transport Expenses,310,29/08/2023,2309-00440,0.00,14.92,R,Airpay 48051705-Amber Car,Yes
Http://opendatacommunities.org/id/metropolitan-district-council/leeds,Leeds City Council,30/09/2023,Children and Families,Social Care Total,Agency Payments,Contact,548,04/09/2023,2309-00441,0.00,19.50,R,Airpay 48121790-Amber Car,Yes
Http://opendatacommunities.org/id/metropolitan-district-council/leeds,Leeds City Council,30/09/2023,Children and Families,Social Care Total,Agency Payments,Contact,548,04/09/2023,2309-00442,0.00,18.70,R,Airpay 48121798-Amber Car,Yes
Http://opendatacommunities.org/id/metropolitan-district-council/leeds,Leeds City Council,30/09/2023,Children and Families,Social Care Total,Agency Payments,Section 17,551,07/09/2023,2309-00443,0.00,12.60,R,Airpay 48160215-Amber Car,Yes
Http://opendatacommunities.org/id/metropolitan-district-council/leeds,Leeds City Council,30/09/2023,Children and Families,Social Care Total,Agency Payments,Placement Support,550,08/09/2023,2309-00444,0.00,24.70,R,Airpay 48167835-Amber Car,Yes
Http://opendatacommunities.org/id/metropolitan-district-council/leeds,Leeds City Council,30/09/2023,Children and Families,Social Care Total,Agency Payments,Placement Support,550,08/09/2023,2309-00445,0.00,22.70,R,Airpay 48172791-Amber Car,Yes
Http://opendatacommunities.org/id/metropolitan-district-council/leeds,Leeds City Council,30/09/2023,Children and Families,Social Care Total,Agency Payments,Section 17,551,09/09/2023,2309-00446,0.00,28.40,R,Airpay 48190445-Amber Car,Yes
Http://opendatacommunities.org/id/metropolitan-district-council/leeds,Leeds City Council,30/09/2023,Children and Families,Social Care Total,Agency Payments,Placement Support,550,11/09/2023,2309-00447,0.00,24.60,R,Airpay 48212906-Amber Car,Yes
Http://opendatacommunities.org/id/metropolitan-district-council/leeds,Leeds City Council,30/09/2023,Children and Families,Social Care Total,Agency Payments,Placement Support,550,12/09/2023,2309-00448,0.00,20.20,R,Airpay 48220578-Amber Car,Yes
Http://opendatacommunities.org/id/metropolitan-district-council/leeds,Leeds City Council,30/09/2023,Children and Families,Social Care Total,Agency Payments,Placement Support,550,12/09/2023,2309-00449,0.00,22.60,R,Airpay 48220696-Amber Car,Yes
Http://opendatacommunities.org/id/metropolitan-district-council/leeds,Leeds City Council,30/09/2023,Children and Families,Social Care Total,Agency Payments,Placement Support,550,12/09/2023,2309-00450,0.00,30.10,R,Airpay 48223767-Amber Car,Yes
Http://opendatacommunities.org/id/metropolitan-district-council/leeds,Leeds City Council,30/09/2023,Children and Families,Social Care Total,Agency Payments,Placement Support,550,12/09/2023,2309-00451,0.00,28.70,R,Airpay 48223890-Amber Car,Yes
Http://opendatacommunities.org/id/metropolitan-district-council/leeds,Leeds City Council,30/09/2023,Children and Families,Social Care Total,Agency Payments,Placement Support,550,13/09/2023,2309-00452,0.00,22.20,R,Airpay 48232301-Amber Car,Yes
Http://opendatacommunities.org/id/metropolitan-district-council/leeds,Leeds City Council,30/09/2023,Children and Families,Social Care Total,Agency Payments,Placement Support,550,13/09/2023,2309-00453,0.00,19.00,R,Airpay 48232326-Amber Car,Yes
Http://opendatacommunities.org/id/metropolitan-district-council/leeds,Leeds City Council,30/09/2023,Children and Families,Social Care Total,Agency Payments,Placement Support,550,13/09/2023,2309-00454,0.00,22.10,R,Airpay 48237574-Amber Car,Yes
Http://opendatacommunities.org/id/metropolitan-district-council/leeds,Leeds City Council,30/09/2023,Children and Families,Social Care Total,Transport,Public Transport Expenses,310,14/09/2023,2309-00455,0.00,6.92,R,Airpay 48242395-Amber Car,Yes
Http://opendatacommunities.org/id/metropolitan-district-council/leeds,Leeds City Council,30/09/2023,Children and Families,Social Care Total,Agency Payments,Placement Support,550,14/09/2023,2309-00456,0.00,18.00,R,Airpay 48245687-Amber Car,Yes
Http://opendatacommunities.org/id/metropolitan-district-council/leeds,Leeds City Council,30/09/2023,Children and Families,Social Care Total,Agency Payments,Placement Support,550,14/09/2023,2309-00457,0.00,8.80,R,Airpay 48245848-Amber Car,Yes
Http://opendatacommunities.org/id/metropolitan-district-council/leeds,Leeds City Council,30/09/2023,Children and Families,Social Care Total,Agency Payments,Placement Support,550,14/09/2023,2309-00458,0.00,7.90,R,Airpay 48245853-Amber Car,Yes
Http://opendatacommunities.org/id/metropolitan-district-council/leeds,Leeds City Council,30/09/2023,Children and Families,Social Care Total,Transport,Public Transport Expenses,310,14/09/2023,2309-00459,0.00,52.70,R,Airpay 48248180-Amber Car,Yes
Http://opendatacommunities.org/id/metropolitan-district-council/leeds,Leeds City Council,30/09/2023,Children and Families,Social Care Total,Agency Payments,Placement Support,550,14/09/2023,2309-00460,0.00,23.90,R,Airpay 48249792-Amber Car,Yes
Http://opendatacommunities.org/id/metropolitan-district-council/leeds,Leeds City Council,30/09/2023,Children and Families,Social Care Total,Agency Payments,Placement Support,550,21/09/2023,2309-00461,0.00,22.40,R,Airpay 48330034-Amber Car,Yes
Http://opendatacommunities.org/id/metropolitan-district-council/leeds,Leeds City Council,30/09/2023,Children and Families,Social Care Total,Agency Payments,Placement Support,550,21/09/2023,2309-00462,0.00,23.10,R,Airpay 48330039-Amber Car,Yes
Http://opendatacommunities.org/id/metropolitan-district-council/leeds,Leeds City Council,30/09/2023,Communities Housing and Environment,Community Safety,Supplies and Services,Bought In Professional Services,277,21/09/2023,2309-00463,0.00,1651.29,R,AIRWAVE SOLUTIONS LTD,No
Http://opendatacommunities.org/id/metropolitan-district-council/leeds,Leeds City Council,30/09/2023,Communities Housing and Environment,Community Safety,Supplies and Services,Bought In Professional Services,277,21/09/2023,2309-00464,0.00,6696.92,R,AIRWAVE SOLUTIONS LTD,No
Http://opendatacommunities.org/id/metropolitan-district-council/leeds,Leeds City Council as Accountable Body ,30/09/2023,Social Services Pooled Budgets,Jcs For People With Learning Disabilitie,Agency Payments,Residential,580,13/09/2023,2309-00465,0.00,7677.84,R,AITCH care homes,No
Http://opendatacommunities.org/id/metropolitan-district-council/leeds,Leeds City Council,30/09/2023,Communities Housing and Environment,Climate Energy & Greenspaces Total,Supplies and Services,Other Hired And Contracted Services,265,12/09/2023,2309-00466,0.00,1282.00,R,Aitkens Sportsturf Limite,Yes
Http://opendatacommunities.org/id/metropolitan-district-council/leeds,Leeds City Council,30/09/2023,Communities Housing and Environment,Benefits Wlefare and Poverty,Supplies and Services,Advertising,211,07/09/2023,2309-00467,0.00,35.00,R,AJ Media Services Ltd,No
Http://opendatacommunities.org/id/metropolitan-district-council/leeds,Leeds City Council,30/09/2023,Communities Housing and Environment,Benefits Wlefare and Poverty,Supplies and Services,Advertising,211,11/09/2023,2309-00468,0.00,35.00,R,AJ Media Services Ltd,No
Http://opendatacommunities.org/id/metropolitan-district-council/leeds,Leeds City Council,30/09/2023,Communities Housing and Environment,Benefits Wlefare and Poverty,Supplies and Services,Advertising,211,15/09/2023,2309-00469,0.00,35.00,R,AJ Media Services Ltd,No
Http://opendatacommunities.org/id/metropolitan-district-council/leeds,Leeds City Council,30/09/2023,Strategy and Resources,Leeds Building Services,Supplies and Services,Operational Furniture And Equipment,203,01/09/2023,2309-00470,0.00,29.99,R,AJM FIXINGS & POWER TOOLS LTD,No
Http://opendatacommunities.org/id/metropolitan-district-council/leeds,Leeds City Council,30/09/2023,Strategy and Resources,Leeds Building Services,Supplies and Services,Operational Furniture And Equipment,203,01/09/2023,2309-00471,0.00,172.00,R,AJM FIXINGS & POWER TOOLS LTD,No
Http://opendatacommunities.org/id/metropolitan-district-council/leeds,Leeds City Council,30/09/2023,Strategy and Resources,Leeds Building Services,Premises,Cleaning Maintenance & Toiletries,127,01/09/2023,2309-00472,0.00,376.40,R,AJM FIXINGS & POWER TOOLS LTD,No
Http://opendatacommunities.org/id/metropolitan-district-council/leeds,Leeds City Council,30/09/2023,Strategy and Resources,Leeds Building Services,Premises,Cleaning Maintenance & Toiletries,127,06/09/2023,2309-00473,0.00,156.00,R,AJM FIXINGS & POWER TOOLS LTD,No
Http://opendatacommunities.org/id/metropolitan-district-council/leeds,Leeds City Council,30/09/2023,Strategy and Resources,Leeds Building Services,Supplies and Services,Operational Furniture And Equipment,203,06/09/2023,2309-00474,0.00,295.00,R,AJM FIXINGS & POWER TOOLS LTD,No
Http://opendatacommunities.org/id/metropolitan-district-council/leeds,Leeds City Council,30/09/2023,Strategy and Resources,Leeds Building Services,Premises,Cleaning Maintenance & Toiletries,127,06/09/2023,2309-00475,0.00,123.96,R,AJM FIXINGS & POWER TOOLS LTD,No
Http://opendatacommunities.org/id/metropolitan-district-council/leeds,Leeds City Council,30/09/2023,Strategy and Resources,Leeds Building Services,Supplies and Services,Operational Furniture And Equipment,203,06/09/2023,2309-00476,0.00,496.98,R,AJM FIXINGS & POWER TOOLS LTD,No
Http://opendatacommunities.org/id/metropolitan-district-council/leeds,Leeds City Council,30/09/2023,Strategy and Resources,Leeds Building Services,Premises,Cleaning Maintenance & Toiletries,127,06/09/2023,2309-00477,0.00,470.00,R,AJM FIXINGS & POWER TOOLS LTD,No
Http://opendatacommunities.org/id/metropolitan-district-council/leeds,Leeds City Council,30/09/2023,Strategy and Resources,Leeds Building Services,Supplies and Services,Operational Furniture And Equipment,203,06/09/2023,2309-00478,0.00,190.44,R,AJM FIXINGS & POWER TOOLS LTD,No
Http://opendatacommunities.org/id/metropolitan-district-council/leeds,Leeds City Council,30/09/2023,Strategy and Resources,Leeds Building Services,Supplies and Services,Operational Furniture And Equipment,203,06/09/2023,2309-00479,0.00,125.82,R,AJM FIXINGS & POWER TOOLS LTD,No
Http://opendatacommunities.org/id/metropolitan-district-council/leeds,Leeds City Council,30/09/2023,Strategy and Resources,Leeds Building Services,Supplies and Services,Operational Furniture And Equipment,203,06/09/2023,2309-00480,0.00,157.99,R,AJM FIXINGS & POWER TOOLS LTD,No
Http://opendatacommunities.org/id/metropolitan-district-council/leeds,Leeds City Council,30/09/2023,Strategy and Resources,Leeds Building Services,Premises,Cleaning Maintenance & Toiletries,127,06/09/2023,2309-00481,0.00,10.29,R,AJM FIXINGS & POWER TOOLS LTD,No
Http://opendatacommunities.org/id/metropolitan-district-council/leeds,Leeds City Council,30/09/2023,Strategy and Resources,Leeds Building Services,Supplies and Services,Operational Furniture And Equipment,203,06/09/2023,2309-00482,0.00,103.17,R,AJM FIXINGS & POWER TOOLS LTD,No
Http://opendatacommunities.org/id/metropolitan-district-council/leeds,Leeds City Council,30/09/2023,Strategy and Resources,Leeds Building Services,Premises,Cleaning Maintenance & Toiletries,127,06/09/2023,2309-00483,0.00,173.95,R,AJM FIXINGS & POWER TOOLS LTD,No
Http://opendatacommunities.org/id/metropolitan-district-council/leeds,Leeds City Council,30/09/2023,Strategy and Resources,Leeds Building Services,Premises,Cleaning Maintenance & Toiletries,127,06/09/2023,2309-00484,0.00,303.25,R,AJM FIXINGS & POWER TOOLS LTD,No
Http://opendatacommunities.org/id/metropolitan-district-council/leeds,Leeds City Council,30/09/2023,Strategy and Resources,Leeds Building Services,Premises,Cleaning Maintenance & Toiletries,127,06/09/2023,2309-00485,0.00,514.50,R,AJM FIXINGS & POWER TOOLS LTD,No
Http://opendatacommunities.org/id/metropolitan-district-council/leeds,Leeds City Council,30/09/2023,Strategy and Resources,Leeds Building Services,Supplies and Services,Operational Furniture And Equipment,203,06/09/2023,2309-00486,0.00,168.65,R,AJM FIXINGS & POWER TOOLS LTD,No
Http://opendatacommunities.org/id/metropolitan-district-council/leeds,Leeds City Council,30/09/2023,Strategy and Resources,Leeds Building Services,Supplies and Services,Operational Furniture And Equipment,203,06/09/2023,2309-00487,0.00,92.64,R,AJM FIXINGS & POWER TOOLS LTD,No
Http://opendatacommunities.org/id/metropolitan-district-council/leeds,Leeds City Council,30/09/2023,Strategy and Resources,Leeds Building Services,Supplies and Services,Operational Furniture And Equipment,203,08/09/2023,2309-00488,0.00,65.16,R,AJM FIXINGS & POWER TOOLS LTD,No
Http://opendatacommunities.org/id/metropolitan-district-council/leeds,Leeds City Council,30/09/2023,Strategy and Resources,Leeds Building Services,Premises,Cleaning Maintenance & Toiletries,127,13/09/2023,2309-00489,0.00,1688.40,R,AJM FIXINGS & POWER TOOLS LTD,No
Http://opendatacommunities.org/id/metropolitan-district-council/leeds,Leeds City Council,30/09/2023,Strategy and Resources,Leeds Building Services,Supplies and Services,Operational Furniture And Equipment,203,13/09/2023,2309-00490,0.00,309.51,R,AJM FIXINGS & POWER TOOLS LTD,No
Http://opendatacommunities.org/id/metropolitan-district-council/leeds,Leeds City Council,30/09/2023,Strategy and Resources,Leeds Building Services,Premises,Cleaning Maintenance & Toiletries,127,13/09/2023,2309-00491,0.00,179.00,R,AJM FIXINGS & POWER TOOLS LTD,No
Http://opendatacommunities.org/id/metropolitan-district-council/leeds,Leeds City Council,30/09/2023,Strategy and Resources,Leeds Building Services,Supplies and Services,Operational Furniture And Equipment,203,13/09/2023,2309-00492,0.00,359.19,R,AJM FIXINGS & POWER TOOLS LTD,No
Http://opendatacommunities.org/id/metropolitan-district-council/leeds,Leeds City Council,30/09/2023,Strategy and Resources,Leeds Building Services,Premises,Cleaning Maintenance & Toiletries,127,13/09/2023,2309-00493,0.00,201.85,R,AJM FIXINGS & POWER TOOLS LTD,No
Http://opendatacommunities.org/id/metropolitan-district-council/leeds,Leeds City Council,30/09/2023,Strategy and Resources,Leeds Building Services,Supplies and Services,Operational Furniture And Equipment,203,15/09/2023,2309-00494,0.00,101.00,R,AJM FIXINGS & POWER TOOLS LTD,No
Http://opendatacommunities.org/id/metropolitan-district-council/leeds,Leeds City Council,30/09/2023,Strategy and Resources,Leeds Building Services,Supplies and Services,Operational Furniture And Equipment,203,15/09/2023,2309-00495,0.00,125.82,R,AJM FIXINGS & POWER TOOLS LTD,No
Http://opendatacommunities.org/id/metropolitan-district-council/leeds,Leeds City Council,30/09/2023,Strategy and Resources,Leeds Building Services,Supplies and Services,Operational Furniture And Equipment,203,15/09/2023,2309-00496,0.00,84.00,R,AJM FIXINGS & POWER TOOLS LTD,No
Http://opendatacommunities.org/id/metropolitan-district-council/leeds,Leeds City Council,30/09/2023,Strategy and Resources,Leeds Building Services,Supplies and Services,Operational Furniture And Equipment,203,27/09/2023,2309-00497,0.00,142.00,R,AJM FIXINGS & POWER TOOLS LTD,No
Http://opendatacommunities.org/id/metropolitan-district-council/leeds,Leeds City Council,30/09/2023,Strategy and Resources,Leeds Building Services,Supplies and Services,Operational Furniture And Equipment,203,27/09/2023,2309-00498,0.00,105.29,R,AJM FIXINGS & POWER TOOLS LTD,No
Http://opendatacommunities.org/id/metropolitan-district-council/leeds,Leeds City Council,30/09/2023,Strategy and Resources,Leeds Building Services,Supplies and Services,Operational Furniture And Equipment,203,27/09/2023,2309-00499,0.00,88.44,R,AJM FIXINGS & POWER TOOLS LTD,No
Http://opendatacommunities.org/id/metropolitan-district-council/leeds,Leeds City Council,30/09/2023,Strategy and Resources,Leeds Building Services,Premises,Cleaning Maintenance & Toiletries,127,27/09/2023,2309-00500,0.00,84.90,R,AJM FIXINGS & POWER TOOLS LTD,No
Http://opendatacommunities.org/id/metropolitan-district-council/leeds,Leeds City Council,30/09/2023,Strategy and Resources,Leeds Building Services,Supplies and Services,Operational Furniture And Equipment,203,27/09/2023,2309-00501,0.00,308.00,R,AJM FIXINGS & POWER TOOLS LTD,No
Http://opendatacommunities.org/id/metropolitan-district-council/leeds,Leeds City Council,30/09/2023,Strategy and Resources,Leeds Building Services,Supplies and Services,Operational Furniture And Equipment,203,27/09/2023,2309-00502,0.00,116.10,R,AJM FIXINGS & POWER TOOLS LTD,No
Http://opendatacommunities.org/id/metropolitan-district-council/leeds,Leeds City Council,30/09/2023,Strategy and Resources,Leeds Building Services,Supplies and Services,Operational Furniture And Equipment,203,27/09/2023,2309-00503,0.00,127.39,R,AJM FIXINGS & POWER TOOLS LTD,No
Http://opendatacommunities.org/id/metropolitan-district-council/leeds,Leeds City Council,30/09/2023,Strategy and Resources,Leeds Building Services,Supplies and Services,Operational Furniture And Equipment,203,27/09/2023,2309-00504,0.00,362.04,R,AJM FIXINGS & POWER TOOLS LTD,No
Http://opendatacommunities.org/id/metropolitan-district-council/leeds,Leeds City Council,30/09/2023,Strategy and Resources,Leeds Building Services,Supplies and Services,Operational Furniture And Equipment,203,27/09/2023,2309-00505,0.00,359.19,R,AJM FIXINGS & POWER TOOLS LTD,No
Http://opendatacommunities.org/id/metropolitan-district-council/leeds,Leeds City Council,30/09/2023,Strategy and Resources,Leeds Building Services,Supplies and Services,Operational Furniture And Equipment,203,27/09/2023,2309-00506,0.00,131.00,R,AJM FIXINGS & POWER TOOLS LTD,No
Http://opendatacommunities.org/id/metropolitan-district-council/leeds,Leeds City Council,30/09/2023,Strategy and Resources,Leeds Building Services,Supplies and Services,Operational Furniture And Equipment,203,27/09/2023,2309-00507,0.00,159.51,R,AJM FIXINGS & POWER TOOLS LTD,No
Http://opendatacommunities.org/id/metropolitan-district-council/leeds,Leeds City Council,30/09/2023,Strategy and Resources,Leeds Building Services,Supplies and Services,Operational Furniture And Equipment,203,27/09/2023,2309-00508,0.00,14.80,R,AJM FIXINGS & POWER TOOLS LTD,No
Http://opendatacommunities.org/id/metropolitan-district-council/leeds,Leeds City Council,30/09/2023,Strategy and Resources,Leeds Building Services,Supplies and Services,Operational Furniture And Equipment,203,27/09/2023,2309-00509,0.00,246.99,R,AJM FIXINGS & POWER TOOLS LTD,No
Http://opendatacommunities.org/id/metropolitan-district-council/leeds,Leeds City Council,30/09/2023,Strategy and Resources,Leeds Building Services,Premises,Cleaning Maintenance & Toiletries,127,27/09/2023,2309-00510,0.00,107.50,R,AJM FIXINGS & POWER TOOLS LTD,No
Http://opendatacommunities.org/id/metropolitan-district-council/leeds,Leeds City Council,30/09/2023,Strategy and Resources,Leeds Building Services,Supplies and Services,Operational Furniture And Equipment,203,27/09/2023,2309-00511,0.00,43.00,R,AJM FIXINGS & POWER TOOLS LTD,No
Http://opendatacommunities.org/id/metropolitan-district-council/leeds,Leeds City Council,30/09/2023,Strategy and Resources,Leeds Building Services,Premises,Cleaning Maintenance & Toiletries,127,27/09/2023,2309-00512,0.00,125.80,R,AJM FIXINGS & POWER TOOLS LTD,No
Http://opendatacommunities.org/id/metropolitan-district-council/leeds,Leeds City Council,30/09/2023,Strategy and Resources,Leeds Building Services,Supplies and Services,Operational Furniture And Equipment,203,27/09/2023,2309-00513,0.00,43.00,R,AJM FIXINGS & POWER TOOLS LTD,No
Http://opendatacommunities.org/id/metropolitan-district-council/leeds,Leeds City Council,30/09/2023,Strategy and Resources,Leeds Building Services,Supplies and Services,Operational Furniture And Equipment,203,27/09/2023,2309-00514,0.00,99.00,R,AJM FIXINGS & POWER TOOLS LTD,No
Http://opendatacommunities.org/id/metropolitan-district-council/leeds,Leeds City Council,30/09/2023,Strategy and Resources,Leeds Building Services,Supplies and Services,Operational Furniture And Equipment,203,27/09/2023,2309-00515,0.00,314.00,R,AJM FIXINGS & POWER TOOLS LTD,No
Http://opendatacommunities.org/id/metropolitan-district-council/leeds,Leeds City Council,30/09/2023,Strategy and Resources,Leeds Building Services,Supplies and Services,Operational Furniture And Equipment,203,27/09/2023,2309-00516,0.00,164.80,R,AJM FIXINGS & POWER TOOLS LTD,No
Http://opendatacommunities.org/id/metropolitan-district-council/leeds,Leeds City Council,30/09/2023,Strategy and Resources,Leeds Building Services,Supplies and Services,Operational Furniture And Equipment,203,27/09/2023,2309-00517,0.00,106.45,R,AJM FIXINGS & POWER TOOLS LTD,No
Http://opendatacommunities.org/id/metropolitan-district-council/leeds,Leeds City Council,30/09/2023,Strategy and Resources,Leeds Building Services,Supplies and Services,Operational Furniture And Equipment,203,27/09/2023,2309-00518,0.00,716.13,R,AJM FIXINGS & POWER TOOLS LTD,No
Http://opendatacommunities.org/id/metropolitan-district-council/leeds,Leeds City Council,30/09/2023,Strategy and Resources,Leeds Building Services,Supplies and Services,Operational Furniture And Equipment,203,27/09/2023,2309-00519,0.00,267.50,R,AJM FIXINGS & POWER TOOLS LTD,No
Http://opendatacommunities.org/id/metropolitan-district-council/leeds,Leeds City Council,30/09/2023,Strategy and Resources,Leeds Building Services,Supplies and Services,Operational Furniture And Equipment,203,27/09/2023,2309-00520,0.00,89.68,R,AJM FIXINGS & POWER TOOLS LTD,No
Http://opendatacommunities.org/id/metropolitan-district-council/leeds,Leeds City Council,30/09/2023,Strategy and Resources,Leeds Building Services,Supplies and Services,Operational Furniture And Equipment,203,27/09/2023,2309-00521,0.00,56.55,R,AJM FIXINGS & POWER TOOLS LTD,No
Http://opendatacommunities.org/id/metropolitan-district-council/leeds,Leeds City Council,30/09/2023,Strategy and Resources,Leeds Building Services,Premises,Cleaning Maintenance & Toiletries,127,27/09/2023,2309-00522,0.00,1101.85,R,AJM FIXINGS & POWER TOOLS LTD,No
Http://opendatacommunities.org/id/metropolitan-district-council/leeds,Leeds City Council,30/09/2023,Strategy and Resources,Leeds Building Services,Premises,Cleaning Maintenance & Toiletries,127,27/09/2023,2309-00523,0.00,325.00,R,AJM FIXINGS & POWER TOOLS LTD,No
Http://opendatacommunities.org/id/metropolitan-district-council/leeds,Leeds City Council,30/09/2023,Strategy and Resources,Leeds Building Services,Premises,Cleaning Maintenance & Toiletries,127,27/09/2023,2309-00524,0.00,238.50,R,AJM FIXINGS & POWER TOOLS LTD,No
Http://opendatacommunities.org/id/metropolitan-district-council/leeds,Leeds City Council,30/09/2023,Strategy and Resources,Leeds Building Services,Supplies and Services,Operational Furniture And Equipment,203,27/09/2023,2309-00525,0.00,230.00,R,AJM FIXINGS & POWER TOOLS LTD,No
Http://opendatacommunities.org/id/metropolitan-district-council/leeds,Leeds City Council,30/09/2023,Strategy and Resources,Leeds Building Services,Supplies and Services,Operational Furniture And Equipment,203,27/09/2023,2309-00526,0.00,142.00,R,AJM FIXINGS & POWER TOOLS LTD,No
Http://opendatacommunities.org/id/metropolitan-district-council/leeds,Leeds City Council,30/09/2023,Strategy and Resources,Leeds Building Services,Supplies and Services,Operational Furniture And Equipment,203,27/09/2023,2309-00527,0.00,88.44,R,AJM FIXINGS & POWER TOOLS LTD,No
Http://opendatacommunities.org/id/metropolitan-district-council/leeds,Leeds City Council,30/09/2023,Strategy and Resources,Leeds Building Services,Supplies and Services,Operational Furniture And Equipment,203,27/09/2023,2309-00528,0.00,43.00,R,AJM FIXINGS & POWER TOOLS LTD,No
Http://opendatacommunities.org/id/metropolitan-district-council/leeds,Leeds City Council,30/09/2023,Strategy and Resources,Leeds Building Services,Premises,Cleaning Maintenance & Toiletries,127,27/09/2023,2309-00529,0.00,187.05,R,AJM FIXINGS & POWER TOOLS LTD,No
Http://opendatacommunities.org/id/metropolitan-district-council/leeds,Leeds City Council,30/09/2023,Strategy and Resources,Leeds Building Services,Supplies and Services,Operational Furniture And Equipment,203,27/09/2023,2309-00530,0.00,97.00,R,AJM FIXINGS & POWER TOOLS LTD,No
Http://opendatacommunities.org/id/metropolitan-district-council/leeds,Leeds City Council,30/09/2023,Strategy and Resources,Leeds Building Services,Premises,Cleaning Maintenance & Toiletries,127,27/09/2023,2309-00531,0.00,121.25,R,AJM FIXINGS & POWER TOOLS LTD,No
Http://opendatacommunities.org/id/metropolitan-district-council/leeds,Leeds City Council,30/09/2023,Strategy and Resources,Leeds Building Services,Supplies and Services,Operational Furniture And Equipment,203,27/09/2023,2309-00532,0.00,65.99,R,AJM FIXINGS & POWER TOOLS LTD,No
Http://opendatacommunities.org/id/metropolitan-district-council/leeds,Leeds City Council,30/09/2023,Strategy and Resources,Leeds Building Services,Supplies and Services,Operational Furniture And Equipment,203,27/09/2023,2309-00533,0.00,66.35,R,AJM FIXINGS & POWER TOOLS LTD,No
Http://opendatacommunities.org/id/metropolitan-district-council/leeds,Leeds City Council,30/09/2023,Strategy and Resources,Leeds Building Services,Premises,Cleaning Maintenance & Toiletries,127,27/09/2023,2309-00534,0.00,164.20,R,AJM FIXINGS & POWER TOOLS LTD,No
Http://opendatacommunities.org/id/metropolitan-district-council/leeds,Leeds City Council,30/09/2023,Strategy and Resources,Leeds Building Services,Supplies and Services,Operational Furniture And Equipment,203,27/09/2023,2309-00535,0.00,30.99,R,AJM FIXINGS & POWER TOOLS LTD,No
Http://opendatacommunities.org/id/metropolitan-district-council/leeds,Leeds City Council,30/09/2023,Strategy and Resources,Leeds Building Services,Supplies and Services,Operational Materials,205,29/09/2023,2309-00536,0.00,158.76,R,AJM FIXINGS & POWER TOOLS LTD,No
Http://opendatacommunities.org/id/metropolitan-district-council/leeds,Leeds City Council,30/09/2023,Strategy and Resources,Leeds Building Services,Premises,Cleaning Maintenance & Toiletries,127,29/09/2023,2309-00537,0.00,255.20,R,AJM FIXINGS & POWER TOOLS LTD,No
Http://opendatacommunities.org/id/metropolitan-district-council/leeds,Leeds City Council,30/09/2023,Strategy and Resources,Leeds Building Services,Supplies and Services,Operational Furniture And Equipment,203,29/09/2023,2309-00538,0.00,103.17,R,AJM FIXINGS & POWER TOOLS LTD,No
Http://opendatacommunities.org/id/metropolitan-district-council/leeds,Leeds City Council,30/09/2023,Strategy and Resources,Leeds Building Services,Premises,Cleaning Maintenance & Toiletries,127,29/09/2023,2309-00539,0.00,79.45,R,AJM FIXINGS & POWER TOOLS LTD,No
Http://opendatacommunities.org/id/metropolitan-district-council/leeds,Leeds City Council,30/09/2023,Strategy and Resources,Leeds Building Services,Supplies and Services,Operational Furniture And Equipment,203,29/09/2023,2309-00540,0.00,103.17,R,AJM FIXINGS & POWER TOOLS LTD,No
Http://opendatacommunities.org/id/metropolitan-district-council/leeds,Leeds City Council,30/09/2023,Strategy and Resources,Leeds Building Services,Premises,Cleaning Maintenance & Toiletries,127,29/09/2023,2309-00541,0.00,89.95,R,AJM FIXINGS & POWER TOOLS LTD,No
Http://opendatacommunities.org/id/metropolitan-district-council/leeds,Leeds City Council,30/09/2023,Strategy and Resources,Leeds Building Services,Supplies and Services,Operational Furniture And Equipment,203,29/09/2023,2309-00542,0.00,888.58,R,AJM FIXINGS & POWER TOOLS LTD,No
Http://opendatacommunities.org/id/metropolitan-district-council/leeds,Leeds City Council,30/09/2023,Strategy and Resources,Leeds Building Services,Premises,Cleaning Maintenance & Toiletries,127,29/09/2023,2309-00543,0.00,188.16,R,AJM FIXINGS & POWER TOOLS LTD,No
Http://opendatacommunities.org/id/metropolitan-district-council/leeds,Leeds City Council,30/09/2023,Children and Families,Social Care,Supplies and Services,General Amenity For Clients/Residents,285,26/09/2023,2309-00544,0.00,5.00,R,REDACTED PERSONAL DATA,No
Http://opendatacommunities.org/id/metropolitan-district-council/leeds,Leeds City Council,30/09/2023,Children and Families,Social Care,Transport,Public Transport Expenses,310,26/09/2023,2309-00545,0.00,12.80,R,REDACTED PERSONAL DATA,No
Http://opendatacommunities.org/id/metropolitan-district-council/leeds,Leeds City Council,30/09/2023,City Development,Libraries Arts & Heritage,Supplies and Services,Other Hired And Contracted Services,265,01/09/2023,2309-00546,0.00,250.00,R,Akeim Toussaint Buck,No
Http://opendatacommunities.org/id/metropolitan-district-council/leeds,Leeds City Council,30/09/2023,Communities Housing and Environment,Strategic Housing Partnership & Support,Capital,CONSTRUCTION,3,14/09/2023,2309-00547,0.00,10000.00,C,AKR Construction Ltd,No
Http://opendatacommunities.org/id/metropolitan-district-council/leeds,Leeds City Council,30/09/2023,Communities Housing and Environment,Strategic Housing Partnership & Support,Capital,CONSTRUCTION,3,14/09/2023,2309-00548,0.00,7000.00,C,AKR Construction Ltd,No
Http://opendatacommunities.org/id/metropolitan-district-council/leeds,Leeds City Council,30/09/2023,Children and Families,Social Care,Agency Payments,Placement Support,550,22/09/2023,2309-00549,0.00,8333.33,R,AKR Construction Ltd,No
Http://opendatacommunities.org/id/metropolitan-district-council/leeds,Leeds City Council,30/09/2023,Communities Housing and Environment,Strategic Housing Partnership & Support,Capital,CONSTRUCTION,3,29/09/2023,2309-00550,0.00,4545.86,C,AKR Construction Ltd,No
Http://opendatacommunities.org/id/metropolitan-district-council/leeds,Leeds City Council,30/09/2023,Strategy and Resources,Commercial Services,Supplies and Services,Compensation Claims,200,07/09/2023,2309-00551,0.00,2250.00,R,REDACTED PERSONAL DATA,No
Http://opendatacommunities.org/id/metropolitan-district-council/leeds,Leeds City Council,30/09/2023,Adults and Health,Services For Older People - 65 And Over,Agency Payments,Payments To Voluntary Organisations,561,29/09/2023,2309-00552,0.00,2700.00,R,Al Khidmat Centre,No
Http://opendatacommunities.org/id/metropolitan-district-council/leeds,Leeds City Council,30/09/2023,Children and Families,Social Care Total,Appropriations,Leaving Care Grants,635,30/08/2023,2309-00553,0.00,39.00,R,Al Murad Diy Ltd,Yes
Http://opendatacommunities.org/id/metropolitan-district-council/leeds,Leeds City Council,30/09/2023,Strategic Landlord,Housing Management,Supplies and Services,Compensation Claims,200,21/09/2023,2309-00554,0.00,200.00,R,REDACTED PERSONAL DATA,No
Http://opendatacommunities.org/id/metropolitan-district-council/leeds,Leeds City Council,30/09/2023,Insurance,Insurance,Supplies and Services,Insurance Claims,248,14/09/2023,2309-00555,0.00,2693.62,R,REDACTED PERSONAL DATA,No
Http://opendatacommunities.org/id/metropolitan-district-council/leeds,Leeds City Council,30/09/2023,Children and Families,Social Care,Agency Payments,Services Rendered By Other Organisations,511,01/09/2023,2309-00556,0.00,1058.40,R,REDACTED PERSONAL DATA,No
Http://opendatacommunities.org/id/metropolitan-district-council/leeds,Leeds City Council,30/09/2023,Children and Families,Social Care,Supplies and Services,Operational Furniture And Equipment,203,13/09/2023,2309-00557,0.00,552.56,R,Alarm Radio Monitoring Ltd,No
Http://opendatacommunities.org/id/metropolitan-district-council/leeds,Leeds City Council,30/09/2023,Children and Families,Social Care,Supplies and Services,Operational Furniture And Equipment,203,15/09/2023,2309-00558,0.00,886.06,R,Alarm Radio Monitoring Ltd,No
Http://opendatacommunities.org/id/metropolitan-district-council/leeds,Leeds City Council,30/09/2023,Children and Families,Social Care,Supplies and Services,Operational Furniture And Equipment,203,22/09/2023,2309-00559,0.00,486.39,R,Alarm Radio Monitoring Ltd,No
Http://opendatacommunities.org/id/metropolitan-district-council/leeds,Leeds City Council,30/09/2023,Children and Families,Social Care,Supplies and Services,Operational Furniture And Equipment,203,29/09/2023,2309-00560,0.00,93.85,R,Alarm Radio Monitoring Ltd,No
Http://opendatacommunities.org/id/metropolitan-district-council/leeds,Leeds City Council,30/09/2023,Strategy and Resources,Commercial Services Total,Supplies and Services,Operational Materials,205,20/09/2023,2309-00561,0.00,7.07,R,Aldi,Yes
Http://opendatacommunities.org/id/metropolitan-district-council/leeds,Leeds City Council,30/09/2023,Communities Housing and Environment,Communities Total,Supplies and Services,Food & Drink,231,19/09/2023,2309-00562,0.00,6.42,R,Aldi 103 779,Yes
Http://opendatacommunities.org/id/metropolitan-district-council/leeds,Leeds City Council,30/09/2023,Children and Families,Social Care Total,Supplies and Services,Food & Drink,231,25/09/2023,2309-00563,0.00,26.04,R,Aldi 103 779,Yes
Http://opendatacommunities.org/id/metropolitan-district-council/leeds,Leeds City Council,30/09/2023,Communities Housing and Environment,Communities Total,Supplies and Services,Food & Drink,231,31/08/2023,2309-00564,0.00,13.32,R,Aldi 40 779,Yes
Http://opendatacommunities.org/id/metropolitan-district-council/leeds,Leeds City Council,30/09/2023,Children and Families,Social Care Total,Supplies and Services,Food & Drink,231,08/09/2023,2309-00565,0.00,20.06,R,Aldi 40 779,Yes
Http://opendatacommunities.org/id/metropolitan-district-council/leeds,Leeds City Council,30/09/2023,Communities Housing and Environment,Communities Total,Supplies and Services,Operational Materials,205,11/09/2023,2309-00566,0.00,4.25,R,Aldi 40 779,Yes
Http://opendatacommunities.org/id/metropolitan-district-council/leeds,Leeds City Council,30/09/2023,Communities Housing and Environment,Communities Total,Supplies and Services,Food & Drink,231,18/09/2023,2309-00567,0.00,1.70,R,Aldi 40 779,Yes
Http://opendatacommunities.org/id/metropolitan-district-council/leeds,Leeds City Council,30/09/2023,Communities Housing and Environment,Communities Total,Supplies and Services,Food & Drink,231,25/09/2023,2309-00568,0.00,4.25,R,Aldi 40 779,Yes
Http://opendatacommunities.org/id/metropolitan-district-council/leeds,Leeds City Council,30/09/2023,Children and Families,Social Care Total,Agency Payments,Section 17,551,13/09/2023,2309-00569,0.00,17.61,R,Aldi 49 779,Yes
Http://opendatacommunities.org/id/metropolitan-district-council/leeds,Leeds City Council,30/09/2023,Communities Housing and Environment,Customer Access Total,Supplies and Services,Grant Related Expenditure,290,15/09/2023,2309-00570,0.00,200.00,R,Aldi 71 779,Yes
Http://opendatacommunities.org/id/metropolitan-district-council/leeds,Leeds City Council,30/09/2023,Communities Housing and Environment,Communities Total,Supplies and Services,'Well Being' Large Grants Projects,230,19/09/2023,2309-00571,0.00,4.80,R,Aldi 779117,Yes
Http://opendatacommunities.org/id/metropolitan-district-council/leeds,Leeds City Council,30/09/2023,Children and Families,Social Care Total,Agency Payments,Section 17,551,20/09/2023,2309-00572,0.00,46.30,R,Aldi 779-126,Yes
Http://opendatacommunities.org/id/metropolitan-district-council/leeds,Leeds City Council,30/09/2023,Children and Families,Social Care Total,Appropriations,Leaving Care Allowances,634,22/09/2023,2309-00573,0.00,2.98,R,Aldi 81 776,Yes
Http://opendatacommunities.org/id/metropolitan-district-council/leeds,Leeds City Council,30/09/2023,Children and Families,Social Care Total,Agency Payments,Section 17,551,06/09/2023,2309-00574,0.00,9.52,R,Aldi 85 779,Yes
Http://opendatacommunities.org/id/metropolitan-district-council/leeds,Leeds City Council,30/09/2023,Communities Housing and Environment,Communities Total,Supplies and Services,Food & Drink,231,12/09/2023,2309-00575,0.00,46.65,R,Aldi 85 779,Yes
Http://opendatacommunities.org/id/metropolitan-district-council/leeds,Leeds City Council,30/09/2023,Children and Families,Social Care Total,Supplies and Services,Teaching Furniture & Equipment,207,20/09/2023,2309-00576,0.00,3.99,R,Aldi 85 779,Yes
Http://opendatacommunities.org/id/metropolitan-district-council/leeds,Leeds City Council,30/09/2023,Strategy and Resources,Commercial Services Total,Supplies and Services,Food & Drink,231,21/09/2023,2309-00577,0.00,16.79,R,Aldi 85 779,Yes
Http://opendatacommunities.org/id/metropolitan-district-council/leeds,Leeds City Council,30/09/2023,Children and Families,Social Care Total,Supplies and Services,Food & Drink,231,06/09/2023,2309-00578,0.00,40.15,R,Aldi 88 779,Yes
Http://opendatacommunities.org/id/metropolitan-district-council/leeds,Leeds City Council,30/09/2023,Children and Families,Social Care Total,Supplies and Services,Food & Drink,231,07/09/2023,2309-00579,0.00,12.48,R,Aldi 88 779,Yes
Http://opendatacommunities.org/id/metropolitan-district-council/leeds,Leeds City Council,30/09/2023,Children and Families,Social Care Total,Supplies and Services,Food & Drink,231,14/09/2023,2309-00580,0.00,31.03,R,Aldi 88 779,Yes
Http://opendatacommunities.org/id/metropolitan-district-council/leeds,Leeds City Council,30/09/2023,Children and Families,Social Care Total,Supplies and Services,Food & Drink,231,31/08/2023,2309-00581,0.00,94.33,R,Aldi 89 779,Yes
Http://opendatacommunities.org/id/metropolitan-district-council/leeds,Leeds City Council,30/09/2023,Children and Families,Social Care Total,Appropriations,Young People Expenses,654,07/09/2023,2309-00582,0.00,15.00,R,Aldi 89 779,Yes
Http://opendatacommunities.org/id/metropolitan-district-council/leeds,Leeds City Council,30/09/2023,Children and Families,Social Care Total,Appropriations,Young People Expenses,654,19/09/2023,2309-00583,0.00,60.00,R,Aldi 89 779,Yes
Http://opendatacommunities.org/id/metropolitan-district-council/leeds,Leeds City Council,30/09/2023,Children and Families,Social Care Total,Supplies and Services,Food & Drink,231,05/09/2023,2309-00584,0.00,11.85,R,Aldi Stores,Yes
Http://opendatacommunities.org/id/metropolitan-district-council/leeds,Leeds City Council,30/09/2023,Strategic Landlord,Property and Contracts Total,Appropriations,Disrepair Provision,644,13/09/2023,2309-00585,0.00,52.25,R,Aldi Stores,Yes
Http://opendatacommunities.org/id/metropolitan-district-council/leeds,Leeds City Council,30/09/2023,Communities Housing and Environment,Communities Total,Supplies and Services,Food & Drink,231,13/09/2023,2309-00586,0.00,1000.00,R,Aldi Stores,Yes
Http://opendatacommunities.org/id/metropolitan-district-council/leeds,Leeds City Council,30/09/2023,Children and Families,Social Care Total,Appropriations,Leaving Care Allowances,634,22/09/2023,2309-00587,0.00,6.23,R,Aldi Stores,Yes
Http://opendatacommunities.org/id/metropolitan-district-council/leeds,Leeds City Council,30/09/2023,Children and Families,Social Care Total,Supplies and Services,Teaching Furniture & Equipment,207,25/09/2023,2309-00588,0.00,5.98,R,Aldi Stores,Yes
Http://opendatacommunities.org/id/metropolitan-district-council/leeds,Leeds City Council,30/09/2023,Communities Housing and Environment,Customer Access,Supplies and Services,Compensation Claims,200,04/09/2023,2309-00589,0.00,2000.00,R,REDACTED PERSONAL DATA,No
Http://opendatacommunities.org/id/metropolitan-district-council/leeds,Leeds City Council,30/09/2023,Children and Families,Social Care,Agency Payments,Placement Support,550,08/09/2023,2309-00590,0.00,10.96,R,REDACTED PERSONAL DATA,No
Http://opendatacommunities.org/id/metropolitan-district-council/leeds,Leeds City Council,30/09/2023,Strategy and Resources,Commercial Services,Supplies and Services,Other Hired And Contracted Services,265,13/09/2023,2309-00591,0.00,360.00,R,ALEX WAGG,No
Http://opendatacommunities.org/id/metropolitan-district-council/leeds,Leeds City Council,30/09/2023,Strategy and Resources,Commercial Services,Supplies and Services,Other Hired And Contracted Services,265,22/09/2023,2309-00592,0.00,539.99,R,ALEX WAGG,No
Http://opendatacommunities.org/id/metropolitan-district-council/leeds,Leeds City Council,30/09/2023,Strategy and Resources,Commercial Services,Supplies and Services,Other Hired And Contracted Services,265,22/09/2023,2309-00593,0.00,260.00,R,ALEX WAGG,No
Http://opendatacommunities.org/id/metropolitan-district-council/leeds,Leeds City Council,30/09/2023,Strategy and Resources,Commercial Services,Supplies and Services,Other Hired And Contracted Services,265,22/09/2023,2309-00594,0.00,370.00,R,ALEX WAGG,No
Http://opendatacommunities.org/id/metropolitan-district-council/leeds,Leeds City Council,30/09/2023,Strategy and Resources,Commercial Services,Supplies and Services,Other Hired And Contracted Services,265,22/09/2023,2309-00595,0.00,200.00,R,ALEX WAGG,No
Http://opendatacommunities.org/id/metropolitan-district-council/leeds,Leeds City Council,30/09/2023,Adults and Health,Services For Older People - 65 And Over,Agency Payments,Residential Care Dementia,571,13/09/2023,2309-00596,0.00,22433.48,R,ALEXANDER RESIDENTIAL HOME,No
Http://opendatacommunities.org/id/metropolitan-district-council/leeds,Leeds City Council,30/09/2023,Adults and Health,Services For Older People - 65 And Over,Agency Payments,Residential,580,13/09/2023,2309-00597,0.00,17127.50,R,ALEXANDER RESIDENTIAL HOME,No
Http://opendatacommunities.org/id/metropolitan-district-council/leeds,Leeds City Council as Accountable Body ,30/09/2023,Social Services Pooled Budgets,Jcs For People With Learning Disabilitie,Agency Payments,Residential,580,13/09/2023,2309-00598,0.00,3096.00,R,ALEXANDER RESIDENTIAL HOME,No
Http://opendatacommunities.org/id/metropolitan-district-council/leeds,Leeds City Council,30/09/2023,Children and Families,Social Care,Supplies and Services,Conference Meetings,253,26/09/2023,2309-00599,0.00,45.00,R,REDACTED PERSONAL DATA,No
Http://opendatacommunities.org/id/metropolitan-district-council/leeds,Leeds City Council,30/09/2023,Adults and Health,Services For Older People - 65 And Over,Agency Payments,Residential Care Dementia,571,13/09/2023,2309-00600,0.00,6612.36,R,ALEXANDRA COURT,No
Http://opendatacommunities.org/id/metropolitan-district-council/leeds,Leeds City Council,30/09/2023,Adults and Health,Services For Older People - 65 And Over,Agency Payments,Residential,580,13/09/2023,2309-00601,0.00,6301.56,R,ALEXANDRA COURT,No
Http://opendatacommunities.org/id/metropolitan-district-council/leeds,Leeds City Council,30/09/2023,Adults and Health,Services For Adults Under 65 Mental/Dis,Agency Payments,Residential,580,29/09/2023,2309-00602,0.00,1864.50,R,Alexandra Court Residential,No
Http://opendatacommunities.org/id/metropolitan-district-council/leeds,Leeds City Council,30/09/2023,Adults and Health,Services For Adults Under 65 Mental/Dis,Agency Payments,Residential,580,29/09/2023,2309-00603,0.00,272.25,R,Alexandra Court Residential,No
Http://opendatacommunities.org/id/metropolitan-district-council/leeds,Leeds City Council,30/09/2023,Adults and Health,Services For Adults Under 65 Mental/Dis,Agency Payments,Residential,580,29/09/2023,2309-00604,0.00,965.25,R,Alexandra Court Residential,No
Http://opendatacommunities.org/id/metropolitan-district-council/leeds,Leeds City Council,30/09/2023,Adults and Health,Services For Adults Under 65 Mental/Dis,Agency Payments,Residential,580,29/09/2023,2309-00605,0.00,969.38,R,Alexandra Court Residential,No
Http://opendatacommunities.org/id/metropolitan-district-council/leeds,Leeds City Council,30/09/2023,Adults and Health,Services For Adults Under 65 Mental/Dis,Agency Payments,Residential,580,29/09/2023,2309-00606,0.00,1934.63,R,Alexandra Court Residential,No
Http://opendatacommunities.org/id/metropolitan-district-council/leeds,Leeds City Council,30/09/2023,Children and Families,Social Care,Agency Payments,Placement Support,550,04/09/2023,2309-00607,0.00,4.50,R,REDACTED PERSONAL DATA,No
Http://opendatacommunities.org/id/metropolitan-district-council/leeds,Leeds City Council,30/09/2023,Communities Housing and Environment,Customer Access,Supplies and Services,Other Hired And Contracted Services,265,29/09/2023,2309-00608,0.00,40.00,R,REDACTED PERSONAL DATA,No
Http://opendatacommunities.org/id/metropolitan-district-council/leeds,Leeds City Council,30/09/2023,Adults and Health,Services For Older People - 65 And Over Total,Supplies and Services,Clothing & Uniforms,241,07/09/2023,2309-00609,0.00,49.17,R,Alexandra Website,Yes
Http://opendatacommunities.org/id/metropolitan-district-council/leeds,Leeds City Council,30/09/2023,Strategy and Resources,Commercial Services,Supplies and Services,Compensation Claims,200,07/09/2023,2309-00610,0.00,1958.40,R,REDACTED PERSONAL DATA,No
Http://opendatacommunities.org/id/metropolitan-district-council/leeds,Leeds City Council,30/09/2023,Strategy and Resources,Leeds Building Services,Supplies and Services,Other Hired And Contracted Services,265,01/09/2023,2309-00611,0.00,15370.08,R,Alfred Bagnall & Sons (Leeds) Ltd,No
Http://opendatacommunities.org/id/metropolitan-district-council/leeds,Leeds City Council,30/09/2023,Strategy and Resources,Leeds Building Services,Supplies and Services,Other Hired And Contracted Services,265,01/09/2023,2309-00612,0.00,12324.01,R,Alfred Bagnall & Sons (Leeds) Ltd,No
Http://opendatacommunities.org/id/metropolitan-district-council/leeds,Leeds City Council,30/09/2023,Strategy and Resources,Leeds Building Services,Supplies and Services,Other Hired And Contracted Services,265,29/09/2023,2309-00613,0.00,440.50,R,Alfred Bagnall & Sons (Leeds) Ltd,No
Http://opendatacommunities.org/id/metropolitan-district-council/leeds,Leeds City Council,30/09/2023,City Development,Libraries Arts & Heritage,Supplies and Services,Other Hired And Contracted Services,265,27/09/2023,2309-00614,0.00,1400.00,R,Alfred Bridgens,No
Http://opendatacommunities.org/id/metropolitan-district-council/leeds,Leeds City Council,30/09/2023,Communities Housing and Environment,Climate Energy & Greenspaces,Transport,Hire Of Movable Plant & Machinery,315,01/09/2023,2309-00615,0.00,151.11,R,ALGECO UK LIMITED,No
Http://opendatacommunities.org/id/metropolitan-district-council/leeds,Leeds City Council,30/09/2023,Communities Housing and Environment,Customer Access,Supplies and Services,Bought In Professional Services,277,06/09/2023,2309-00616,0.00,18.00,R,Ali Pourakaberian,No
Http://opendatacommunities.org/id/metropolitan-district-council/leeds,Leeds City Council,30/09/2023,Communities Housing and Environment,Customer Access,Supplies and Services,Bought In Professional Services,277,06/09/2023,2309-00617,0.00,18.00,R,Ali Pourakaberian,No
Http://opendatacommunities.org/id/metropolitan-district-council/leeds,Leeds City Council,30/09/2023,Communities Housing and Environment,Customer Access,Supplies and Services,Bought In Professional Services,277,06/09/2023,2309-00618,0.00,18.00,R,Ali Pourakaberian,No
Http://opendatacommunities.org/id/metropolitan-district-council/leeds,Leeds City Council,30/09/2023,Communities Housing and Environment,Customer Access,Supplies and Services,Bought In Professional Services,277,06/09/2023,2309-00619,0.00,22.50,R,Ali Pourakaberian,No
Http://opendatacommunities.org/id/metropolitan-district-council/leeds,Leeds City Council,30/09/2023,Communities Housing and Environment,Customer Access,Supplies and Services,Bought In Professional Services,277,20/09/2023,2309-00620,0.00,18.00,R,Ali Pourakaberian,No
Http://opendatacommunities.org/id/metropolitan-district-council/leeds,Leeds City Council,30/09/2023,Communities Housing and Environment,Customer Access,Supplies and Services,Bought In Professional Services,277,27/09/2023,2309-00621,0.00,10.00,R,Ali Pourakaberian,No
Http://opendatacommunities.org/id/metropolitan-district-council/leeds,Leeds City Council,30/09/2023,Communities Housing and Environment,Elections Licensing and Registration,External Income,Admissions Booking Fees & Ticket Sales,933,14/09/2023,2309-00622,0.00,330.00,R,REDACTED PERSONAL DATA,No
Http://opendatacommunities.org/id/metropolitan-district-council/leeds,Leeds City Council,30/09/2023,City Development,Recreation,Supplies and Services,Bought In Professional Services,277,29/09/2023,2309-00623,0.00,80.00,R,Alice M Richardson,No
Http://opendatacommunities.org/id/metropolitan-district-council/leeds,Leeds City Council,30/09/2023,City Development,Recreation,Supplies and Services,Bought In Professional Services,277,29/09/2023,2309-00624,0.00,60.00,R,Alice M Richardson,No
Http://opendatacommunities.org/id/metropolitan-district-council/leeds,Leeds City Council,30/09/2023,City Development,Recreation,Supplies and Services,Bought In Professional Services,277,29/09/2023,2309-00625,0.00,80.00,R,Alice M Richardson,No
Http://opendatacommunities.org/id/metropolitan-district-council/leeds,Leeds City Council,30/09/2023,Adults and Health,Assessment And Care Management,Supplies and Services,Other Hired And Contracted Services,265,19/09/2023,2309-00626,0.00,94.78,R,REDACTED PERSONAL DATA,No
Http://opendatacommunities.org/id/metropolitan-district-council/leeds,Leeds City Council,30/09/2023,Children and Families,Social Care,Agency Payments,Contact,548,08/09/2023,2309-00627,0.00,60.00,R,REDACTED PERSONAL DATA,No
Http://opendatacommunities.org/id/metropolitan-district-council/leeds,Leeds City Council,30/09/2023,Children and Families,Social Care,Agency Payments,Placement Support,550,08/09/2023,2309-00628,0.00,30.00,R,REDACTED PERSONAL DATA,No
Http://opendatacommunities.org/id/metropolitan-district-council/leeds,Leeds City Council,30/09/2023,Children and Families,Social Care,Agency Payments,Services Rendered By Other Organisations,511,01/09/2023,2309-00629,0.00,264.60,R,REDACTED PERSONAL DATA,No
Http://opendatacommunities.org/id/metropolitan-district-council/leeds,Leeds City Council,30/09/2023,Children and Families,Social Care,Agency Payments,Section 17,551,25/09/2023,2309-00630,0.00,50.00,R,REDACTED PERSONAL DATA,No
Http://opendatacommunities.org/id/metropolitan-district-council/leeds,Leeds City Council,30/09/2023,Strategic Landlord,Property and Contracts,Supplies and Services,Insurance Claims,248,22/09/2023,2309-00631,0.00,6500.00,R,Alison Law Solicitors,No
Http://opendatacommunities.org/id/metropolitan-district-council/leeds,Leeds City Council,30/09/2023,Insurance,Insurance,Supplies and Services,Insurance Claims,248,06/09/2023,2309-00632,0.00,9407.50,R,Alkers Solicitors,No
Http://opendatacommunities.org/id/metropolitan-district-council/leeds,Leeds City Council,30/09/2023,Communities Housing and Environment,Communities,Supplies and Services,'Well Being' Large Grants Projects,230,04/09/2023,2309-00633,0.00,1500.00,R,All Community Connect,No
Http://opendatacommunities.org/id/metropolitan-district-council/leeds,Leeds City Council,30/09/2023,Children and Families,Learning,Employees,Training & Development,70,13/09/2023,2309-00634,0.00,25.00,R,ALL NE,No
Http://opendatacommunities.org/id/metropolitan-district-council/leeds,Leeds City Council,30/09/2023,Children and Families,Social Care Total,Supplies and Services,Operational Materials,205,04/09/2023,2309-00635,0.00,269.15,R,All Seasons Gazebos,Yes
Http://opendatacommunities.org/id/metropolitan-district-council/leeds,Leeds City Council,30/09/2023,Children and Families,Social Care,Agency Payments,Services Rendered By Other Organisations,511,01/09/2023,2309-00636,0.00,6306.30,R,All Stars Childcare,No
Http://opendatacommunities.org/id/metropolitan-district-council/leeds,Leeds City Council,30/09/2023,Children and Families,Social Care,Agency Payments,Services Rendered By Other Organisations,511,06/09/2023,2309-00637,0.00,1517.10,R,All Stars Childcare,No
Http://opendatacommunities.org/id/metropolitan-district-council/leeds,Leeds City Council as Accountable Body ,30/09/2023,Social Services Pooled Budgets,Jcs For People With Learning Disabilitie,Agency Payments,Sheltered Accommodation,569,13/09/2023,2309-00638,0.00,25207.52,R,Allerton Avenue,No
Http://opendatacommunities.org/id/metropolitan-district-council/leeds,Leeds City Council,30/09/2023,Adults and Health,Services For Older People - 65 And Over,Agency Payments,Nursing Care Dementia,574,13/09/2023,2309-00639,0.00,2269.94,R,ALLERTON PARK N H,No
Http://opendatacommunities.org/id/metropolitan-district-council/leeds,Leeds City Council,30/09/2023,Strategy and Resources,Finance,Supplies and Services,Bank Charges,263,06/09/2023,2309-00640,0.00,75.93,R,ALLIANCE & LEICESTER COMMERCIAL BANK,No
Http://opendatacommunities.org/id/metropolitan-district-council/leeds,Leeds City Council,30/09/2023,Strategy and Resources,Finance,Supplies and Services,Bank Charges,263,06/09/2023,2309-00641,0.00,100.00,R,ALLIANCE & LEICESTER COMMERCIAL BANK,No
Http://opendatacommunities.org/id/metropolitan-district-council/leeds,Leeds City Council,30/09/2023,Strategy and Resources,Commercial Services,Transport,Vehicle Spares,345,01/09/2023,2309-00642,0.00,-49.01,R,Alliance Automotive UK CV LTD,No
Http://opendatacommunities.org/id/metropolitan-district-council/leeds,Leeds City Council,30/09/2023,Strategy and Resources,Commercial Services,Transport,Vehicle Spares,345,01/09/2023,2309-00643,0.00,-23.46,R,Alliance Automotive UK CV LTD,No
Http://opendatacommunities.org/id/metropolitan-district-council/leeds,Leeds City Council,30/09/2023,Strategy and Resources,Commercial Services,Transport,Vehicle Spares,345,01/09/2023,2309-00644,0.00,-20.38,R,Alliance Automotive UK CV LTD,No
Http://opendatacommunities.org/id/metropolitan-district-council/leeds,Leeds City Council,30/09/2023,Strategy and Resources,Commercial Services,Transport,Vehicle Spares,345,01/09/2023,2309-00645,0.00,3408.23,R,Alliance Automotive UK CV LTD,No
Http://opendatacommunities.org/id/metropolitan-district-council/leeds,Leeds City Council,30/09/2023,Strategy and Resources,Commercial Services,Transport,Vehicle Spares,345,01/09/2023,2309-00646,0.00,43.39,R,Alliance Automotive UK CV LTD,No
Http://opendatacommunities.org/id/metropolitan-district-council/leeds,Leeds City Council,30/09/2023,Strategy and Resources,Commercial Services,Transport,Vehicle Spares,345,01/09/2023,2309-00647,0.00,108.71,R,Alliance Automotive UK CV LTD,No
Http://opendatacommunities.org/id/metropolitan-district-council/leeds,Leeds City Council,30/09/2023,Strategy and Resources,Commercial Services,Transport,Vehicle Spares,345,01/09/2023,2309-00648,0.00,136.41,R,Alliance Automotive UK CV LTD,No
Http://opendatacommunities.org/id/metropolitan-district-council/leeds,Leeds City Council,30/09/2023,Strategy and Resources,Commercial Services,Transport,Vehicle Spares,345,01/09/2023,2309-00649,0.00,227.28,R,Alliance Automotive UK CV LTD,No
Http://opendatacommunities.org/id/metropolitan-district-council/leeds,Leeds City Council,30/09/2023,Strategy and Resources,Commercial Services,Transport,Vehicle Spares,345,01/09/2023,2309-00650,0.00,43.31,R,Alliance Automotive UK CV LTD,No
Http://opendatacommunities.org/id/metropolitan-district-council/leeds,Leeds City Council,30/09/2023,Strategy and Resources,Commercial Services,Transport,Vehicle Spares,345,01/09/2023,2309-00651,0.00,24.39,R,Alliance Automotive UK CV LTD,No
Http://opendatacommunities.org/id/metropolitan-district-council/leeds,Leeds City Council,30/09/2023,Strategy and Resources,Commercial Services,Transport,Vehicle Spares,345,01/09/2023,2309-00652,0.00,6.92,R,Alliance Automotive UK CV LTD,No
Http://opendatacommunities.org/id/metropolitan-district-council/leeds,Leeds City Council,30/09/2023,Strategy and Resources,Commercial Services,Transport,Vehicle Spares,345,01/09/2023,2309-00653,0.00,563.84,R,Alliance Automotive UK CV LTD,No
Http://opendatacommunities.org/id/metropolitan-district-council/leeds,Leeds City Council,30/09/2023,Strategy and Resources,Commercial Services,Transport,Vehicle Spares,345,01/09/2023,2309-00654,0.00,21.15,R,Alliance Automotive UK CV LTD,No
Http://opendatacommunities.org/id/metropolitan-district-council/leeds,Leeds City Council,30/09/2023,Strategy and Resources,Commercial Services,Transport,Vehicle Spares,345,01/09/2023,2309-00655,0.00,61.23,R,Alliance Automotive UK CV LTD,No
Http://opendatacommunities.org/id/metropolitan-district-council/leeds,Leeds City Council,30/09/2023,Strategy and Resources,Commercial Services,Transport,Vehicle Spares,345,01/09/2023,2309-00656,0.00,68.67,R,Alliance Automotive UK CV LTD,No
Http://opendatacommunities.org/id/metropolitan-district-council/leeds,Leeds City Council,30/09/2023,Strategy and Resources,Commercial Services,Transport,Vehicle Spares,345,01/09/2023,2309-00657,0.00,730.13,R,Alliance Automotive UK CV LTD,No
Http://opendatacommunities.org/id/metropolitan-district-council/leeds,Leeds City Council,30/09/2023,Strategy and Resources,Commercial Services,Transport,Vehicle Spares,345,01/09/2023,2309-00658,0.00,51.98,R,Alliance Automotive UK CV LTD,No
Http://opendatacommunities.org/id/metropolitan-district-council/leeds,Leeds City Council,30/09/2023,Strategy and Resources,Commercial Services,Transport,Vehicle Spares,345,01/09/2023,2309-00659,0.00,97.45,R,Alliance Automotive UK CV LTD,No
Http://opendatacommunities.org/id/metropolitan-district-council/leeds,Leeds City Council,30/09/2023,Strategy and Resources,Commercial Services,Transport,Vehicle Spares,345,01/09/2023,2309-00660,0.00,101.35,R,Alliance Automotive UK CV LTD,No
Http://opendatacommunities.org/id/metropolitan-district-council/leeds,Leeds City Council,30/09/2023,Strategy and Resources,Commercial Services,Transport,Vehicle Spares,345,01/09/2023,2309-00661,0.00,302.91,R,Alliance Automotive UK CV LTD,No
Http://opendatacommunities.org/id/metropolitan-district-council/leeds,Leeds City Council,30/09/2023,Strategy and Resources,Commercial Services,Transport,Vehicle Spares,345,01/09/2023,2309-00662,0.00,33.66,R,Alliance Automotive UK CV LTD,No
Http://opendatacommunities.org/id/metropolitan-district-council/leeds,Leeds City Council,30/09/2023,Strategy and Resources,Commercial Services,Transport,Vehicle Spares,345,01/09/2023,2309-00663,0.00,64.16,R,Alliance Automotive UK CV LTD,No
Http://opendatacommunities.org/id/metropolitan-district-council/leeds,Leeds City Council,30/09/2023,Strategy and Resources,Commercial Services,Transport,Vehicle Spares,345,01/09/2023,2309-00664,0.00,91.83,R,Alliance Automotive UK CV LTD,No
Http://opendatacommunities.org/id/metropolitan-district-council/leeds,Leeds City Council,30/09/2023,Strategy and Resources,Commercial Services,Transport,Vehicle Spares,345,01/09/2023,2309-00665,0.00,706.27,R,Alliance Automotive UK CV LTD,No
Http://opendatacommunities.org/id/metropolitan-district-council/leeds,Leeds City Council,30/09/2023,Strategy and Resources,Commercial Services,Transport,Vehicle Spares,345,01/09/2023,2309-00666,0.00,173.40,R,Alliance Automotive UK CV LTD,No
Http://opendatacommunities.org/id/metropolitan-district-council/leeds,Leeds City Council,30/09/2023,Strategy and Resources,Commercial Services,Transport,Vehicle Spares,345,01/09/2023,2309-00667,0.00,321.76,R,Alliance Automotive UK CV LTD,No
Http://opendatacommunities.org/id/metropolitan-district-council/leeds,Leeds City Council,30/09/2023,Strategy and Resources,Commercial Services,Transport,Vehicle Spares,345,01/09/2023,2309-00668,0.00,357.02,R,Alliance Automotive UK CV LTD,No
Http://opendatacommunities.org/id/metropolitan-district-council/leeds,Leeds City Council,30/09/2023,Strategy and Resources,Commercial Services,Transport,Vehicle Spares,345,01/09/2023,2309-00669,0.00,117.22,R,Alliance Automotive UK CV LTD,No
Http://opendatacommunities.org/id/metropolitan-district-council/leeds,Leeds City Council,30/09/2023,Strategy and Resources,Commercial Services,Transport,Vehicle Spares,345,01/09/2023,2309-00670,0.00,36.22,R,Alliance Automotive UK CV LTD,No
Http://opendatacommunities.org/id/metropolitan-district-council/leeds,Leeds City Council,30/09/2023,Strategy and Resources,Commercial Services,Transport,Vehicle Spares,345,01/09/2023,2309-00671,0.00,475.03,R,Alliance Automotive UK CV LTD,No
Http://opendatacommunities.org/id/metropolitan-district-council/leeds,Leeds City Council,30/09/2023,Strategy and Resources,Commercial Services,Transport,Vehicle Spares,345,01/09/2023,2309-00672,0.00,203.94,R,Alliance Automotive UK CV LTD,No
Http://opendatacommunities.org/id/metropolitan-district-council/leeds,Leeds City Council,30/09/2023,Strategy and Resources,Commercial Services,Transport,Vehicle Spares,345,01/09/2023,2309-00673,0.00,106.92,R,Alliance Automotive UK CV LTD,No
Http://opendatacommunities.org/id/metropolitan-district-council/leeds,Leeds City Council,30/09/2023,Strategy and Resources,Commercial Services,Transport,Vehicle Spares,345,01/09/2023,2309-00674,0.00,5643.01,R,Alliance Automotive UK CV LTD,No
Http://opendatacommunities.org/id/metropolitan-district-council/leeds,Leeds City Council,30/09/2023,Strategy and Resources,Commercial Services,Transport,Vehicle Spares,345,01/09/2023,2309-00675,0.00,13.71,R,Alliance Automotive UK CV LTD,No
Http://opendatacommunities.org/id/metropolitan-district-council/leeds,Leeds City Council,30/09/2023,Strategy and Resources,Commercial Services,Transport,Vehicle Spares,345,01/09/2023,2309-00676,0.00,482.63,R,Alliance Automotive UK CV LTD,No
Http://opendatacommunities.org/id/metropolitan-district-council/leeds,Leeds City Council,30/09/2023,Strategy and Resources,Commercial Services,Transport,Vehicle Spares,345,01/09/2023,2309-00677,0.00,362.32,R,Alliance Automotive UK CV LTD,No
Http://opendatacommunities.org/id/metropolitan-district-council/leeds,Leeds City Council,30/09/2023,Strategy and Resources,Commercial Services,Transport,Vehicle Spares,345,01/09/2023,2309-00678,0.00,26.18,R,Alliance Automotive UK CV LTD,No
Http://opendatacommunities.org/id/metropolitan-district-council/leeds,Leeds City Council,30/09/2023,Strategy and Resources,Commercial Services,Transport,Vehicle Spares,345,01/09/2023,2309-00679,0.00,85.26,R,Alliance Automotive UK CV LTD,No
Http://opendatacommunities.org/id/metropolitan-district-council/leeds,Leeds City Council,30/09/2023,Strategy and Resources,Commercial Services,Transport,Vehicle Spares,345,01/09/2023,2309-00680,0.00,785.51,R,Alliance Automotive UK CV LTD,No
Http://opendatacommunities.org/id/metropolitan-district-council/leeds,Leeds City Council,30/09/2023,Strategy and Resources,Commercial Services,Transport,Vehicle Spares,345,01/09/2023,2309-00681,0.00,789.61,R,Alliance Automotive UK CV LTD,No
Http://opendatacommunities.org/id/metropolitan-district-council/leeds,Leeds City Council,30/09/2023,Strategy and Resources,Commercial Services,Transport,Vehicle Spares,345,01/09/2023,2309-00682,0.00,22.13,R,Alliance Automotive UK CV LTD,No
Http://opendatacommunities.org/id/metropolitan-district-council/leeds,Leeds City Council,30/09/2023,Strategy and Resources,Commercial Services,Transport,Vehicle Spares,345,01/09/2023,2309-00683,0.00,340.68,R,Alliance Automotive UK CV LTD,No
Http://opendatacommunities.org/id/metropolitan-district-council/leeds,Leeds City Council,30/09/2023,Strategy and Resources,Commercial Services,Transport,Vehicle Spares,345,01/09/2023,2309-00684,0.00,68.66,R,Alliance Automotive UK CV LTD,No
Http://opendatacommunities.org/id/metropolitan-district-council/leeds,Leeds City Council,30/09/2023,Strategy and Resources,Commercial Services,Transport,Vehicle Spares,345,01/09/2023,2309-00685,0.00,34.58,R,Alliance Automotive UK CV LTD,No
Http://opendatacommunities.org/id/metropolitan-district-council/leeds,Leeds City Council,30/09/2023,Strategy and Resources,Commercial Services,Transport,Vehicle Spares,345,01/09/2023,2309-00686,0.00,150.27,R,Alliance Automotive UK CV LTD,No
Http://opendatacommunities.org/id/metropolitan-district-council/leeds,Leeds City Council,30/09/2023,Strategy and Resources,Commercial Services,Transport,Vehicle Spares,345,01/09/2023,2309-00687,0.00,33.26,R,Alliance Automotive UK CV LTD,No
Http://opendatacommunities.org/id/metropolitan-district-council/leeds,Leeds City Council,30/09/2023,Strategy and Resources,Commercial Services,Transport,Vehicle Spares,345,01/09/2023,2309-00688,0.00,304.40,R,Alliance Automotive UK CV LTD,No
Http://opendatacommunities.org/id/metropolitan-district-council/leeds,Leeds City Council,30/09/2023,Strategy and Resources,Commercial Services,Transport,Vehicle Spares,345,01/09/2023,2309-00689,0.00,185.62,R,Alliance Automotive UK CV LTD,No
Http://opendatacommunities.org/id/metropolitan-district-council/leeds,Leeds City Council,30/09/2023,Strategy and Resources,Commercial Services,Transport,Vehicle Spares,345,04/09/2023,2309-00690,0.00,172.11,R,Alliance Automotive UK CV LTD,No
Http://opendatacommunities.org/id/metropolitan-district-council/leeds,Leeds City Council,30/09/2023,Strategy and Resources,Commercial Services,Transport,Vehicle Spares,345,04/09/2023,2309-00691,0.00,1404.58,R,Alliance Automotive UK CV LTD,No
Http://opendatacommunities.org/id/metropolitan-district-council/leeds,Leeds City Council,30/09/2023,Strategy and Resources,Commercial Services,Transport,Vehicle Spares,345,04/09/2023,2309-00692,0.00,717.76,R,Alliance Automotive UK CV LTD,No
Http://opendatacommunities.org/id/metropolitan-district-council/leeds,Leeds City Council,30/09/2023,Strategy and Resources,Commercial Services,Transport,Vehicle Spares,345,04/09/2023,2309-00693,0.00,162.40,R,Alliance Automotive UK CV LTD,No
Http://opendatacommunities.org/id/metropolitan-district-council/leeds,Leeds City Council,30/09/2023,Strategy and Resources,Commercial Services,Transport,Vehicle Spares,345,08/09/2023,2309-00694,0.00,-295.13,R,Alliance Automotive UK CV LTD,No
Http://opendatacommunities.org/id/metropolitan-district-council/leeds,Leeds City Council,30/09/2023,Strategy and Resources,Commercial Services,Transport,Vehicle Spares,345,08/09/2023,2309-00695,0.00,-446.03,R,Alliance Automotive UK CV LTD,No
Http://opendatacommunities.org/id/metropolitan-district-council/leeds,Leeds City Council,30/09/2023,Strategy and Resources,Commercial Services,Transport,Vehicle Spares,345,08/09/2023,2309-00696,0.00,-1404.58,R,Alliance Automotive UK CV LTD,No
Http://opendatacommunities.org/id/metropolitan-district-council/leeds,Leeds City Council,30/09/2023,Strategy and Resources,Commercial Services,Transport,Vehicle Spares,345,08/09/2023,2309-00697,0.00,27.90,R,Alliance Automotive UK CV LTD,No
Http://opendatacommunities.org/id/metropolitan-district-council/leeds,Leeds City Council,30/09/2023,Strategy and Resources,Commercial Services,Transport,Vehicle Spares,345,08/09/2023,2309-00698,0.00,18.77,R,Alliance Automotive UK CV LTD,No
Http://opendatacommunities.org/id/metropolitan-district-council/leeds,Leeds City Council,30/09/2023,Strategy and Resources,Commercial Services,Transport,Vehicle Spares,345,08/09/2023,2309-00699,0.00,131.90,R,Alliance Automotive UK CV LTD,No
Http://opendatacommunities.org/id/metropolitan-district-council/leeds,Leeds City Council,30/09/2023,Strategy and Resources,Commercial Services,Transport,Vehicle Spares,345,08/09/2023,2309-00700,0.00,356.26,R,Alliance Automotive UK CV LTD,No
Http://opendatacommunities.org/id/metropolitan-district-council/leeds,Leeds City Council,30/09/2023,Strategy and Resources,Commercial Services,Transport,Vehicle Spares,345,08/09/2023,2309-00701,0.00,163.95,R,Alliance Automotive UK CV LTD,No
Http://opendatacommunities.org/id/metropolitan-district-council/leeds,Leeds City Council,30/09/2023,Strategy and Resources,Commercial Services,Transport,Vehicle Spares,345,08/09/2023,2309-00702,0.00,921.86,R,Alliance Automotive UK CV LTD,No
Http://opendatacommunities.org/id/metropolitan-district-council/leeds,Leeds City Council,30/09/2023,Strategy and Resources,Commercial Services,Transport,Vehicle Spares,345,08/09/2023,2309-00703,0.00,272.65,R,Alliance Automotive UK CV LTD,No
Http://opendatacommunities.org/id/metropolitan-district-council/leeds,Leeds City Council,30/09/2023,Strategy and Resources,Commercial Services,Transport,Vehicle Spares,345,08/09/2023,2309-00704,0.00,422.73,R,Alliance Automotive UK CV LTD,No
Http://opendatacommunities.org/id/metropolitan-district-council/leeds,Leeds City Council,30/09/2023,Strategy and Resources,Commercial Services,Transport,Vehicle Spares,345,08/09/2023,2309-00705,0.00,198.54,R,Alliance Automotive UK CV LTD,No
Http://opendatacommunities.org/id/metropolitan-district-council/leeds,Leeds City Council,30/09/2023,Strategy and Resources,Commercial Services,Transport,Vehicle Spares,345,08/09/2023,2309-00706,0.00,941.36,R,Alliance Automotive UK CV LTD,No
Http://opendatacommunities.org/id/metropolitan-district-council/leeds,Leeds City Council,30/09/2023,Strategy and Resources,Commercial Services,Transport,Vehicle Spares,345,08/09/2023,2309-00707,0.00,214.19,R,Alliance Automotive UK CV LTD,No
Http://opendatacommunities.org/id/metropolitan-district-council/leeds,Leeds City Council,30/09/2023,Strategy and Resources,Commercial Services,Transport,Vehicle Spares,345,08/09/2023,2309-00708,0.00,84.25,R,Alliance Automotive UK CV LTD,No
Http://opendatacommunities.org/id/metropolitan-district-council/leeds,Leeds City Council,30/09/2023,Strategy and Resources,Commercial Services,Transport,Vehicle Spares,345,08/09/2023,2309-00709,0.00,418.01,R,Alliance Automotive UK CV LTD,No
Http://opendatacommunities.org/id/metropolitan-district-council/leeds,Leeds City Council,30/09/2023,Strategy and Resources,Commercial Services,Transport,Vehicle Spares,345,08/09/2023,2309-00710,0.00,38.57,R,Alliance Automotive UK CV LTD,No
Http://opendatacommunities.org/id/metropolitan-district-council/leeds,Leeds City Council,30/09/2023,Strategy and Resources,Commercial Services,Transport,Vehicle Spares,345,08/09/2023,2309-00711,0.00,4.58,R,Alliance Automotive UK CV LTD,No
Http://opendatacommunities.org/id/metropolitan-district-council/leeds,Leeds City Council,30/09/2023,Strategy and Resources,Commercial Services,Transport,Vehicle Spares,345,08/09/2023,2309-00712,0.00,302.17,R,Alliance Automotive UK CV LTD,No
Http://opendatacommunities.org/id/metropolitan-district-council/leeds,Leeds City Council,30/09/2023,Strategy and Resources,Commercial Services,Transport,Vehicle Spares,345,08/09/2023,2309-00713,0.00,77.52,R,Alliance Automotive UK CV LTD,No
Http://opendatacommunities.org/id/metropolitan-district-council/leeds,Leeds City Council,30/09/2023,Strategy and Resources,Commercial Services,Transport,Vehicle Spares,345,08/09/2023,2309-00714,0.00,277.07,R,Alliance Automotive UK CV LTD,No
Http://opendatacommunities.org/id/metropolitan-district-council/leeds,Leeds City Council,30/09/2023,Strategy and Resources,Commercial Services,Transport,Vehicle Spares,345,08/09/2023,2309-00715,0.00,29.31,R,Alliance Automotive UK CV LTD,No
Http://opendatacommunities.org/id/metropolitan-district-council/leeds,Leeds City Council,30/09/2023,Strategy and Resources,Commercial Services,Transport,Vehicle Spares,345,08/09/2023,2309-00716,0.00,299.77,R,Alliance Automotive UK CV LTD,No
Http://opendatacommunities.org/id/metropolitan-district-council/leeds,Leeds City Council,30/09/2023,Strategy and Resources,Commercial Services,Transport,Vehicle Spares,345,08/09/2023,2309-00717,0.00,1197.63,R,Alliance Automotive UK CV LTD,No
Http://opendatacommunities.org/id/metropolitan-district-council/leeds,Leeds City Council,30/09/2023,Strategy and Resources,Commercial Services,Transport,Vehicle Spares,345,08/09/2023,2309-00718,0.00,17.26,R,Alliance Automotive UK CV LTD,No
Http://opendatacommunities.org/id/metropolitan-district-council/leeds,Leeds City Council,30/09/2023,Strategy and Resources,Commercial Services,Transport,Vehicle Spares,345,08/09/2023,2309-00719,0.00,222.75,R,Alliance Automotive UK CV LTD,No
Http://opendatacommunities.org/id/metropolitan-district-council/leeds,Leeds City Council,30/09/2023,Strategy and Resources,Commercial Services,Transport,Vehicle Spares,345,08/09/2023,2309-00720,0.00,181.54,R,Alliance Automotive UK CV LTD,No
Http://opendatacommunities.org/id/metropolitan-district-council/leeds,Leeds City Council,30/09/2023,Strategy and Resources,Commercial Services,Transport,Vehicle Spares,345,08/09/2023,2309-00721,0.00,70.69,R,Alliance Automotive UK CV LTD,No
Http://opendatacommunities.org/id/metropolitan-district-council/leeds,Leeds City Council,30/09/2023,Strategy and Resources,Commercial Services,Transport,Vehicle Spares,345,08/09/2023,2309-00722,0.00,33.84,R,Alliance Automotive UK CV LTD,No
Http://opendatacommunities.org/id/metropolitan-district-council/leeds,Leeds City Council,30/09/2023,Strategy and Resources,Commercial Services,Transport,Vehicle Spares,345,08/09/2023,2309-00723,0.00,62.67,R,Alliance Automotive UK CV LTD,No
Http://opendatacommunities.org/id/metropolitan-district-council/leeds,Leeds City Council,30/09/2023,Strategy and Resources,Commercial Services,Transport,Vehicle Spares,345,08/09/2023,2309-00724,0.00,524.90,R,Alliance Automotive UK CV LTD,No
Http://opendatacommunities.org/id/metropolitan-district-council/leeds,Leeds City Council,30/09/2023,Strategy and Resources,Commercial Services,Transport,Vehicle Spares,345,08/09/2023,2309-00725,0.00,191.71,R,Alliance Automotive UK CV LTD,No
Http://opendatacommunities.org/id/metropolitan-district-council/leeds,Leeds City Council,30/09/2023,Strategy and Resources,Commercial Services,Transport,Vehicle Spares,345,08/09/2023,2309-00726,0.00,403.13,R,Alliance Automotive UK CV LTD,No
Http://opendatacommunities.org/id/metropolitan-district-council/leeds,Leeds City Council,30/09/2023,Strategy and Resources,Commercial Services,Transport,Vehicle Spares,345,08/09/2023,2309-00727,0.00,24.75,R,Alliance Automotive UK CV LTD,No
Http://opendatacommunities.org/id/metropolitan-district-council/leeds,Leeds City Council,30/09/2023,Strategy and Resources,Commercial Services,Transport,Vehicle Spares,345,08/09/2023,2309-00728,0.00,331.65,R,Alliance Automotive UK CV LTD,No
Http://opendatacommunities.org/id/metropolitan-district-council/leeds,Leeds City Council,30/09/2023,Strategy and Resources,Commercial Services,Transport,Vehicle Spares,345,08/09/2023,2309-00729,0.00,128.38,R,Alliance Automotive UK CV LTD,No
Http://opendatacommunities.org/id/metropolitan-district-council/leeds,Leeds City Council,30/09/2023,Strategy and Resources,Commercial Services,Transport,Vehicle Spares,345,08/09/2023,2309-00730,0.00,77.87,R,Alliance Automotive UK CV LTD,No
Http://opendatacommunities.org/id/metropolitan-district-council/leeds,Leeds City Council,30/09/2023,Strategy and Resources,Commercial Services,Transport,Vehicle Spares,345,08/09/2023,2309-00731,0.00,330.05,R,Alliance Automotive UK CV LTD,No
Http://opendatacommunities.org/id/metropolitan-district-council/leeds,Leeds City Council,30/09/2023,Strategy and Resources,Commercial Services,Transport,Vehicle Spares,345,08/09/2023,2309-00732,0.00,187.61,R,Alliance Automotive UK CV LTD,No
Http://opendatacommunities.org/id/metropolitan-district-council/leeds,Leeds City Council,30/09/2023,Strategy and Resources,Commercial Services,Transport,Vehicle Spares,345,08/09/2023,2309-00733,0.00,76.08,R,Alliance Automotive UK CV LTD,No
Http://opendatacommunities.org/id/metropolitan-district-council/leeds,Leeds City Council,30/09/2023,Strategy and Resources,Commercial Services,Transport,Vehicle Spares,345,08/09/2023,2309-00734,0.00,71.28,R,Alliance Automotive UK CV LTD,No
Http://opendatacommunities.org/id/metropolitan-district-council/leeds,Leeds City Council,30/09/2023,Strategy and Resources,Commercial Services,Transport,Vehicle Spares,345,08/09/2023,2309-00735,0.00,17.09,R,Alliance Automotive UK CV LTD,No
Http://opendatacommunities.org/id/metropolitan-district-council/leeds,Leeds City Council,30/09/2023,Strategy and Resources,Commercial Services,Transport,Vehicle Spares,345,08/09/2023,2309-00736,0.00,243.16,R,Alliance Automotive UK CV LTD,No
Http://opendatacommunities.org/id/metropolitan-district-council/leeds,Leeds City Council,30/09/2023,Strategy and Resources,Commercial Services,Transport,Vehicle Spares,345,08/09/2023,2309-00737,0.00,27.24,R,Alliance Automotive UK CV LTD,No
Http://opendatacommunities.org/id/metropolitan-district-council/leeds,Leeds City Council,30/09/2023,Strategy and Resources,Commercial Services,Transport,Vehicle Spares,345,08/09/2023,2309-00738,0.00,245.01,R,Alliance Automotive UK CV LTD,No
Http://opendatacommunities.org/id/metropolitan-district-council/leeds,Leeds City Council,30/09/2023,Strategy and Resources,Commercial Services,Transport,Vehicle Spares,345,08/09/2023,2309-00739,0.00,68.66,R,Alliance Automotive UK CV LTD,No
Http://opendatacommunities.org/id/metropolitan-district-council/leeds,Leeds City Council,30/09/2023,Strategy and Resources,Commercial Services,Transport,Vehicle Spares,345,08/09/2023,2309-00740,0.00,6.92,R,Alliance Automotive UK CV LTD,No
Http://opendatacommunities.org/id/metropolitan-district-council/leeds,Leeds City Council,30/09/2023,Strategy and Resources,Commercial Services,Transport,Vehicle Spares,345,08/09/2023,2309-00741,0.00,74.97,R,Alliance Automotive UK CV LTD,No
Http://opendatacommunities.org/id/metropolitan-district-council/leeds,Leeds City Council,30/09/2023,Strategy and Resources,Commercial Services,Transport,Vehicle Spares,345,14/09/2023,2309-00742,0.00,-68.66,R,Alliance Automotive UK CV LTD,No
Http://opendatacommunities.org/id/metropolitan-district-council/leeds,Leeds City Council,30/09/2023,Strategy and Resources,Commercial Services,Transport,Vehicle Spares,345,14/09/2023,2309-00743,0.00,-357.02,R,Alliance Automotive UK CV LTD,No
Http://opendatacommunities.org/id/metropolitan-district-council/leeds,Leeds City Council,30/09/2023,Strategy and Resources,Commercial Services,Transport,Vehicle Spares,345,14/09/2023,2309-00744,0.00,-29.31,R,Alliance Automotive UK CV LTD,No
Http://opendatacommunities.org/id/metropolitan-district-council/leeds,Leeds City Council,30/09/2023,Strategy and Resources,Commercial Services,Transport,Vehicle Spares,345,14/09/2023,2309-00745,0.00,-21.14,R,Alliance Automotive UK CV LTD,No
Http://opendatacommunities.org/id/metropolitan-district-council/leeds,Leeds City Council,30/09/2023,Strategy and Resources,Commercial Services,Transport,Vehicle Spares,345,14/09/2023,2309-00746,0.00,-105.92,R,Alliance Automotive UK CV LTD,No
Http://opendatacommunities.org/id/metropolitan-district-council/leeds,Leeds City Council,30/09/2023,Strategy and Resources,Commercial Services,Transport,Vehicle Spares,345,14/09/2023,2309-00747,0.00,286.11,R,Alliance Automotive UK CV LTD,No
Http://opendatacommunities.org/id/metropolitan-district-council/leeds,Leeds City Council,30/09/2023,Strategy and Resources,Commercial Services,Transport,Vehicle Spares,345,14/09/2023,2309-00748,0.00,34.86,R,Alliance Automotive UK CV LTD,No
Http://opendatacommunities.org/id/metropolitan-district-council/leeds,Leeds City Council,30/09/2023,Strategy and Resources,Commercial Services,Transport,Vehicle Spares,345,14/09/2023,2309-00749,0.00,29.31,R,Alliance Automotive UK CV LTD,No
Http://opendatacommunities.org/id/metropolitan-district-council/leeds,Leeds City Council,30/09/2023,Strategy and Resources,Commercial Services,Transport,Vehicle Spares,345,14/09/2023,2309-00750,0.00,207.03,R,Alliance Automotive UK CV LTD,No
Http://opendatacommunities.org/id/metropolitan-district-council/leeds,Leeds City Council,30/09/2023,Strategy and Resources,Commercial Services,Transport,Vehicle Spares,345,14/09/2023,2309-00751,0.00,367.78,R,Alliance Automotive UK CV LTD,No
Http://opendatacommunities.org/id/metropolitan-district-council/leeds,Leeds City Council,30/09/2023,Strategy and Resources,Commercial Services,Transport,Vehicle Spares,345,14/09/2023,2309-00752,0.00,211.19,R,Alliance Automotive UK CV LTD,No
Http://opendatacommunities.org/id/metropolitan-district-council/leeds,Leeds City Council,30/09/2023,Strategy and Resources,Commercial Services,Transport,Vehicle Spares,345,14/09/2023,2309-00753,0.00,25.35,R,Alliance Automotive UK CV LTD,No
Http://opendatacommunities.org/id/metropolitan-district-council/leeds,Leeds City Council,30/09/2023,Strategy and Resources,Commercial Services,Transport,Vehicle Spares,345,14/09/2023,2309-00754,0.00,116.59,R,Alliance Automotive UK CV LTD,No
Http://opendatacommunities.org/id/metropolitan-district-council/leeds,Leeds City Council,30/09/2023,Strategy and Resources,Commercial Services,Transport,Vehicle Spares,345,14/09/2023,2309-00755,0.00,44.39,R,Alliance Automotive UK CV LTD,No
Http://opendatacommunities.org/id/metropolitan-district-council/leeds,Leeds City Council,30/09/2023,Strategy and Resources,Commercial Services,Transport,Vehicle Spares,345,14/09/2023,2309-00756,0.00,13.77,R,Alliance Automotive UK CV LTD,No
Http://opendatacommunities.org/id/metropolitan-district-council/leeds,Leeds City Council,30/09/2023,Strategy and Resources,Commercial Services,Transport,Vehicle Spares,345,14/09/2023,2309-00757,0.00,331.65,R,Alliance Automotive UK CV LTD,No
Http://opendatacommunities.org/id/metropolitan-district-council/leeds,Leeds City Council,30/09/2023,Strategy and Resources,Commercial Services,Transport,Vehicle Spares,345,14/09/2023,2309-00758,0.00,26.75,R,Alliance Automotive UK CV LTD,No
Http://opendatacommunities.org/id/metropolitan-district-council/leeds,Leeds City Council,30/09/2023,Strategy and Resources,Commercial Services,Transport,Vehicle Spares,345,14/09/2023,2309-00759,0.00,161.29,R,Alliance Automotive UK CV LTD,No
Http://opendatacommunities.org/id/metropolitan-district-council/leeds,Leeds City Council,30/09/2023,Strategy and Resources,Commercial Services,Transport,Vehicle Spares,345,14/09/2023,2309-00760,0.00,136.61,R,Alliance Automotive UK CV LTD,No
Http://opendatacommunities.org/id/metropolitan-district-council/leeds,Leeds City Council,30/09/2023,Strategy and Resources,Commercial Services,Transport,Vehicle Spares,345,14/09/2023,2309-00761,0.00,74.97,R,Alliance Automotive UK CV LTD,No
Http://opendatacommunities.org/id/metropolitan-district-council/leeds,Leeds City Council,30/09/2023,Strategy and Resources,Commercial Services,Transport,Vehicle Spares,345,14/09/2023,2309-00762,0.00,67.32,R,Alliance Automotive UK CV LTD,No
Http://opendatacommunities.org/id/metropolitan-district-council/leeds,Leeds City Council,30/09/2023,Strategy and Resources,Commercial Services,Transport,Vehicle Spares,345,14/09/2023,2309-00763,0.00,126.46,R,Alliance Automotive UK CV LTD,No
Http://opendatacommunities.org/id/metropolitan-district-council/leeds,Leeds City Council,30/09/2023,Strategy and Resources,Commercial Services,Transport,Vehicle Spares,345,14/09/2023,2309-00764,0.00,147.32,R,Alliance Automotive UK CV LTD,No
Http://opendatacommunities.org/id/metropolitan-district-council/leeds,Leeds City Council,30/09/2023,Strategy and Resources,Commercial Services,Transport,Vehicle Spares,345,14/09/2023,2309-00765,0.00,36.85,R,Alliance Automotive UK CV LTD,No
Http://opendatacommunities.org/id/metropolitan-district-council/leeds,Leeds City Council,30/09/2023,Strategy and Resources,Commercial Services,Transport,Vehicle Spares,345,14/09/2023,2309-00766,0.00,404.93,R,Alliance Automotive UK CV LTD,No
Http://opendatacommunities.org/id/metropolitan-district-council/leeds,Leeds City Council,30/09/2023,Strategy and Resources,Commercial Services,Transport,Vehicle Spares,345,14/09/2023,2309-00767,0.00,92.25,R,Alliance Automotive UK CV LTD,No
Http://opendatacommunities.org/id/metropolitan-district-council/leeds,Leeds City Council,30/09/2023,Strategy and Resources,Commercial Services,Transport,Vehicle Spares,345,14/09/2023,2309-00768,0.00,117.28,R,Alliance Automotive UK CV LTD,No
Http://opendatacommunities.org/id/metropolitan-district-council/leeds,Leeds City Council,30/09/2023,Strategy and Resources,Commercial Services,Transport,Vehicle Spares,345,14/09/2023,2309-00769,0.00,43.75,R,Alliance Automotive UK CV LTD,No
Http://opendatacommunities.org/id/metropolitan-district-council/leeds,Leeds City Council,30/09/2023,Strategy and Resources,Commercial Services,Transport,Vehicle Spares,345,14/09/2023,2309-00770,0.00,66.83,R,Alliance Automotive UK CV LTD,No
Http://opendatacommunities.org/id/metropolitan-district-council/leeds,Leeds City Council,30/09/2023,Strategy and Resources,Commercial Services,Transport,Vehicle Spares,345,14/09/2023,2309-00771,0.00,76.51,R,Alliance Automotive UK CV LTD,No
Http://opendatacommunities.org/id/metropolitan-district-council/leeds,Leeds City Council,30/09/2023,Strategy and Resources,Commercial Services,Transport,Vehicle Spares,345,14/09/2023,2309-00772,0.00,98.13,R,Alliance Automotive UK CV LTD,No
Http://opendatacommunities.org/id/metropolitan-district-council/leeds,Leeds City Council,30/09/2023,Strategy and Resources,Commercial Services,Transport,Vehicle Spares,345,14/09/2023,2309-00773,0.00,8.29,R,Alliance Automotive UK CV LTD,No
Http://opendatacommunities.org/id/metropolitan-district-council/leeds,Leeds City Council,30/09/2023,Strategy and Resources,Commercial Services,Transport,Vehicle Spares,345,14/09/2023,2309-00774,0.00,78.16,R,Alliance Automotive UK CV LTD,No
Http://opendatacommunities.org/id/metropolitan-district-council/leeds,Leeds City Council,30/09/2023,Strategy and Resources,Commercial Services,Transport,Vehicle Spares,345,15/09/2023,2309-00775,0.00,-32.73,R,Alliance Automotive UK CV LTD,No
Http://opendatacommunities.org/id/metropolitan-district-council/leeds,Leeds City Council,30/09/2023,Strategy and Resources,Commercial Services,Transport,Vehicle Spares,345,15/09/2023,2309-00776,0.00,336.18,R,Alliance Automotive UK CV LTD,No
Http://opendatacommunities.org/id/metropolitan-district-council/leeds,Leeds City Council,30/09/2023,Strategy and Resources,Commercial Services,Transport,Vehicle Spares,345,15/09/2023,2309-00777,0.00,1.63,R,Alliance Automotive UK CV LTD,No
Http://opendatacommunities.org/id/metropolitan-district-council/leeds,Leeds City Council,30/09/2023,Strategy and Resources,Commercial Services,Transport,Vehicle Spares,345,15/09/2023,2309-00778,0.00,60.68,R,Alliance Automotive UK CV LTD,No
